Body Name,Body,Service Label,Service Code   ,Service Division Label,Service Division Code,Expenditure Category,Expenditure Code,CIPFA Detailed Expenditure Type,CIPFA Detailed Expenditure Code,Date,Transaction Number,Net Amount,Capital and Revenue,Creditor Name
Brighton & Hove City Council,http://statistics.data.gov.uk/id/local-authority/00ML,Adult Social Care,BVASOC,S Svcs - Older People Svcs,PPL,Customer n Client Receipts,M,Fees n Charges,MB,01/08/2012,PAY00494766,-571.84,Revenue,Chesswood Care
Brighton & Hove City Council,http://statistics.data.gov.uk/id/local-authority/00ML,Adult Social Care,BVASOC,S Svcs - Older People Svcs,PPL,Third Party Payments,F,Other Establishments,FH,01/08/2012,PAY00494766,1677.00,Revenue,Chesswood Care
Brighton & Hove City Council,http://statistics.data.gov.uk/id/local-authority/00ML,Adult Social Care,BVASOC,S Svcs - Older People Svcs,PPL,Customer n Client Receipts,M,Fees n Charges,MB,01/08/2012,PAY00494767,-473.04,Revenue,RMBI
Brighton & Hove City Council,http://statistics.data.gov.uk/id/local-authority/00ML,Adult Social Care,BVASOC,S Svcs - Older People Svcs,PPL,Third Party Payments,F,Other Establishments,FH,01/08/2012,PAY00494767,2028.60,Revenue,RMBI
Brighton & Hove City Council,http://statistics.data.gov.uk/id/local-authority/00ML,Adult Social Care,BVASOC,S Svcs - Older People Svcs,PPL,Third Party Payments,F,Other Establishments,FH,01/08/2012,PAY00494769,2212.80,Revenue,Woodean Ltd
Brighton & Hove City Council,http://statistics.data.gov.uk/id/local-authority/00ML,Central Services To The Public,BVACEN,Support Services (SSC),PPT,Supplies and Services,E,Services,EF,01/08/2012,PAY00494772,825.00,Revenue,Payment to Individual
Brighton & Hove City Council,http://statistics.data.gov.uk/id/local-authority/00ML,Housing Services General Fund,BVAHOG,Homelessness,HML,Premises Related,C,Rents Payable,CC,01/08/2012,PAY00494773,850.00,Revenue,Payment to Individual
Brighton & Hove City Council,http://statistics.data.gov.uk/id/local-authority/00ML,Cultural and Related Services,BVACUL,Tourism,TRM,Supplies and Services,E,Miscellaneous Expenses,EM,01/08/2012,PAY00494774,591.75,Revenue,South of England Agricultural Society
Brighton & Hove City Council,http://statistics.data.gov.uk/id/local-authority/00ML,Children�s Social Care,BVACSC,Management Services (DEC),MGT,Supplies and Services,E,Services,EF,01/08/2012,PAY00494775,550.00,Revenue,Payment to Individual
Brighton & Hove City Council,http://statistics.data.gov.uk/id/local-authority/00ML,Housing Services General Fund,BVAHOG,Homelessness,HML,Premises Related,C,Rents Payable,CC,01/08/2012,PAY00494779,1250.00,Revenue,Payment to Individual
Brighton & Hove City Council,http://statistics.data.gov.uk/id/local-authority/00ML,Housing Services General Fund,BVAHOG,Homelessness,HML,Premises Related,C,Rents Payable,CC,01/08/2012,PAY00494781,750.00,Revenue,Payment to Individual
Brighton & Hove City Council,http://statistics.data.gov.uk/id/local-authority/00ML,Housing Services General Fund,BVAHOG,Homelessness,HML,Premises Related,C,Rents Payable,CC,01/08/2012,PAY00494784,630.00,Revenue,Payment to Individual
Brighton & Hove City Council,http://statistics.data.gov.uk/id/local-authority/00ML,Education Services,BVAEDU,Ed - Srvcs YP - Youth Srvcs,ENY,Third Party Payments,F,Other Establishments,FH,01/08/2012,PAY00494786,15000.00,Revenue,The Black & Minority Ethnic Young Peoples Project
Brighton & Hove City Council,http://statistics.data.gov.uk/id/local-authority/00ML,Adult Social Care,BVASOC,S Svcs - Mental Health,MHT,Third Party Payments,F,Other Establishments,FH,01/08/2012,PAY00494788,630.00,Revenue,Hove Wardley Company Ltd
Brighton & Hove City Council,http://statistics.data.gov.uk/id/local-authority/00ML,Children�s Social Care,BVACSC,Child Srvcs - Other Fam Supp,FFX,Transfer Payments,G,Other Transfer Payments,GD,01/08/2012,PAY00494788,680.00,Revenue,Hove Wardley Company Ltd
Brighton & Hove City Council,http://statistics.data.gov.uk/id/local-authority/00ML,Housing Services General Fund,BVAHOG,Homelessness,HML,Supplies and Services,E,Services,EF,01/08/2012,PAY00494788,1340.00,Revenue,Hove Wardley Company Ltd
Brighton & Hove City Council,http://statistics.data.gov.uk/id/local-authority/00ML,Adult Social Care,BVASOC,S Svcs - Mental Health,MHT,Customer n Client Receipts,M,Fees n Charges,MB,01/08/2012,PAY00494792,-1088.00,Revenue,Payment to Individual
Brighton & Hove City Council,http://statistics.data.gov.uk/id/local-authority/00ML,Adult Social Care,BVASOC,S Svcs - Mental Health,MHT,Third Party Payments,F,Other Establishments,FH,01/08/2012,PAY00494792,5172.00,Revenue,Payment to Individual
Brighton & Hove City Council,http://statistics.data.gov.uk/id/local-authority/00ML,Adult Social Care,BVASOC,S Svcs - Learning Disability,LDY,Customer n Client Receipts,M,Fees n Charges,MB,01/08/2012,PAY00494793,-92.00,Revenue,Payment to Individual
Brighton & Hove City Council,http://statistics.data.gov.uk/id/local-authority/00ML,Adult Social Care,BVASOC,S Svcs - Learning Disability,LDY,Third Party Payments,F,Other Establishments,FH,01/08/2012,PAY00494793,1555.20,Revenue,Payment to Individual
Brighton & Hove City Council,http://statistics.data.gov.uk/id/local-authority/00ML,Housing Services General Fund,BVAHOG,Homelessness,HML,Premises Related,C,Rents Payable,CC,01/08/2012,PAY00494794,700.00,Revenue,Payment to Individual
Brighton & Hove City Council,http://statistics.data.gov.uk/id/local-authority/00ML,Adult Social Care,BVASOC,S Svcs - Older People Svcs,PPL,Indirect Employees,B,Misc Employee Costs,BP,01/08/2012,PAY00494795,729.00,Revenue,Helping Hand Company (Ledbury) Ltd
Brighton & Hove City Council,http://statistics.data.gov.uk/id/local-authority/00ML,Education Services,BVAEDU,Ed - Ed Other - LA Attrib Sch,ELA,Transport Related,D,Other Transport Costs,DG,01/08/2012,PAY00494796,41812.80,Revenue,Minibus Travel Services Ltd
Brighton & Hove City Council,http://statistics.data.gov.uk/id/local-authority/00ML,Children�s Social Care,BVACSC,Child Srvcs - Adoption,FAA,Supplies and Services,E,Miscellaneous Expenses,EM,01/08/2012,PAY00494798,1306.75,Revenue,Adoption UK
Brighton & Hove City Council,http://statistics.data.gov.uk/id/local-authority/00ML,Housing Services General Fund,BVAHOG,Hsing Welfare,HGW,Transfer Payments,G,Supporting People,GF,01/08/2012,PAY00494799,1096.49,Revenue,Brighton & Hove Jewish Housing Assoc Ltd
Brighton & Hove City Council,http://statistics.data.gov.uk/id/local-authority/00ML,Adult Social Care,BVASOC,S Svcs - Learning Disability,LDY,Customer n Client Receipts,M,Fees n Charges,MB,01/08/2012,PAY00494800,-444.00,Revenue,Outlook Foundation
Brighton & Hove City Council,http://statistics.data.gov.uk/id/local-authority/00ML,Adult Social Care,BVASOC,S Svcs - Learning Disability,LDY,Third Party Payments,F,Other Establishments,FH,01/08/2012,PAY00494800,8258.80,Revenue,Outlook Foundation
Brighton & Hove City Council,http://statistics.data.gov.uk/id/local-authority/00ML,Children�s Social Care,BVACSC,Child Srvcs - Residential Svcs,FLR,Third Party Payments,F,Other Establishments,FH,01/08/2012,PAY00494801,1491.00,Revenue,Chailey Heritage School
Brighton & Hove City Council,http://statistics.data.gov.uk/id/local-authority/00ML,Central Services To The Public,BVACEN,Support Services (SSC),PPT,Premises Related,C,Repair Maint n Alterations,CA,01/08/2012,PAY00494802,1227.87,Revenue,TSS Facilities Ltd
Brighton & Hove City Council,http://statistics.data.gov.uk/id/local-authority/00ML,Adult Social Care,BVASOC,S Svcs - Mental Health,MHT,Customer n Client Receipts,M,Fees n Charges,MB,01/08/2012,PAY00494803,-740.00,Revenue,Payment to Individual
Brighton & Hove City Council,http://statistics.data.gov.uk/id/local-authority/00ML,Adult Social Care,BVASOC,S Svcs - Mental Health,MHT,Third Party Payments,F,Other Establishments,FH,01/08/2012,PAY00494803,5172.00,Revenue,Payment to Individual
Brighton & Hove City Council,http://statistics.data.gov.uk/id/local-authority/00ML,Education Services,BVAEDU,Ed - Special Ed,EKE,Third Party Payments,F,Other Agencies,FL,01/08/2012,PAY00494804,14510.00,Revenue,Moor House School
Brighton & Hove City Council,http://statistics.data.gov.uk/id/local-authority/00ML,Education Services,BVAEDU,Ed - Special Ed,EKE,Third Party Payments,F,Other Agencies,FL,01/08/2012,PAY00494805,41576.00,Revenue,St Mary`s Wrestwood Children`s Trust
Brighton & Hove City Council,http://statistics.data.gov.uk/id/local-authority/00ML,Housing Services General Fund,BVAHOG,Homelessness,HML,Premises Related,C,Rents Payable,CC,01/08/2012,PAY00494806,715.00,Revenue,Payment to Individual
Brighton & Hove City Council,http://statistics.data.gov.uk/id/local-authority/00ML,Children�s Social Care,BVACSC,Child Srvcs - Adoption,FAA,Supplies and Services,E,Catering,EB,01/08/2012,PAY00494808,123.15,Revenue,The Imprest Holder
Brighton & Hove City Council,http://statistics.data.gov.uk/id/local-authority/00ML,Children�s Social Care,BVACSC,Child Srvcs - Adoption,FAA,Supplies and Services,E,Communications n Computing,EH,01/08/2012,PAY00494808,94.75,Revenue,The Imprest Holder
Brighton & Hove City Council,http://statistics.data.gov.uk/id/local-authority/00ML,Children�s Social Care,BVACSC,Child Srvcs - Adoption,FAA,Supplies and Services,E,Miscellaneous Expenses,EM,01/08/2012,PAY00494808,464.63,Revenue,The Imprest Holder
Brighton & Hove City Council,http://statistics.data.gov.uk/id/local-authority/00ML,Children�s Social Care,BVACSC,Child Srvcs - Adoption,FAA,Supplies and Services,E,Services,EF,01/08/2012,PAY00494808,186.72,Revenue,The Imprest Holder
Brighton & Hove City Council,http://statistics.data.gov.uk/id/local-authority/00ML,Children�s Social Care,BVACSC,Child Srvcs - Adoption,FAA,Third Party Payments,F,Other Establishments,FH,01/08/2012,PAY00494808,51.40,Revenue,The Imprest Holder
Brighton & Hove City Council,http://statistics.data.gov.uk/id/local-authority/00ML,Children�s Social Care,BVACSC,Child Srvcs - Fostering,FLF,Supplies and Services,E,Communications n Computing,EH,01/08/2012,PAY00494808,12.25,Revenue,The Imprest Holder
Brighton & Hove City Council,http://statistics.data.gov.uk/id/local-authority/00ML,Children�s Social Care,BVACSC,Child Srvcs - Fostering,FLF,Supplies and Services,E,Equip't Furniture n Materials,EA,01/08/2012,PAY00494808,190.58,Revenue,The Imprest Holder
Brighton & Hove City Council,http://statistics.data.gov.uk/id/local-authority/00ML,Children�s Social Care,BVACSC,Child Srvcs - Fostering,FLF,Supplies and Services,E,Grants n Subscriptions,EK,01/08/2012,PAY00494808,78.00,Revenue,The Imprest Holder
Brighton & Hove City Council,http://statistics.data.gov.uk/id/local-authority/00ML,Children�s Social Care,BVACSC,Child Srvcs - Fostering,FLF,Supplies and Services,E,Miscellaneous Expenses,EM,01/08/2012,PAY00494808,432.16,Revenue,The Imprest Holder
Brighton & Hove City Council,http://statistics.data.gov.uk/id/local-authority/00ML,Children�s Social Care,BVACSC,Child Srvcs - Fostering,FLF,Third Party Payments,F,Other Establishments,FH,01/08/2012,PAY00494808,228.75,Revenue,The Imprest Holder
Brighton & Hove City Council,http://statistics.data.gov.uk/id/local-authority/00ML,Children�s Social Care,BVACSC,Child Srvcs - Fostering,FLF,Transport Related,D,Public Transport,DD,01/08/2012,PAY00494808,57.42,Revenue,The Imprest Holder
Brighton & Hove City Council,http://statistics.data.gov.uk/id/local-authority/00ML,Adult Social Care,BVASOC,S Svcs - Learning Disability,LDY,Premises Related,C,Cleaning n Domestic Supps,CH,01/08/2012,PAY00494809,5.46,Revenue,The Imprest Holder
Brighton & Hove City Council,http://statistics.data.gov.uk/id/local-authority/00ML,Adult Social Care,BVASOC,S Svcs - Learning Disability,LDY,Supplies and Services,E,Catering,EB,01/08/2012,PAY00494809,306.80,Revenue,The Imprest Holder
Brighton & Hove City Council,http://statistics.data.gov.uk/id/local-authority/00ML,Adult Social Care,BVASOC,S Svcs - Learning Disability,LDY,Supplies and Services,E,Equip't Furniture n Materials,EA,01/08/2012,PAY00494809,70.24,Revenue,The Imprest Holder
Brighton & Hove City Council,http://statistics.data.gov.uk/id/local-authority/00ML,Adult Social Care,BVASOC,S Svcs - Learning Disability,LDY,Supplies and Services,E,Expenses,EJ,01/08/2012,PAY00494809,93.37,Revenue,The Imprest Holder
Brighton & Hove City Council,http://statistics.data.gov.uk/id/local-authority/00ML,Adult Social Care,BVASOC,S Svcs - Learning Disability,LDY,Transport Related,D,Other Transport Costs,DG,01/08/2012,PAY00494809,2.00,Revenue,The Imprest Holder
Brighton & Hove City Council,http://statistics.data.gov.uk/id/local-authority/00ML,Adult Social Care,BVASOC,S Svcs - Learning Disability,LDY,Transport Related,D,Public Transport,DD,01/08/2012,PAY00494809,37.50,Revenue,The Imprest Holder
Brighton & Hove City Council,http://statistics.data.gov.uk/id/local-authority/00ML,Children�s Social Care,BVACSC,Management Services (DEC),MGT,Supplies and Services,E,Services,EF,01/08/2012,PAY00494811,1855.00,Revenue,Payment to Individual
Brighton & Hove City Council,http://statistics.data.gov.uk/id/local-authority/00ML,Adult Social Care,BVASOC,S Svcs - Learning Disability,LDY,Third Party Payments,F,Other Establishments,FH,01/08/2012,PAY00494813,1355.28,Revenue,Payment to Individual
Brighton & Hove City Council,http://statistics.data.gov.uk/id/local-authority/00ML,Children�s Social Care,BVACSC,Child Srvcs - Other Fam Supp,FFX,Third Party Payments,F,Other Establishments,FH,01/08/2012,PAY00494814,75000.00,Revenue,Amaze Brighton & Hove
Brighton & Hove City Council,http://statistics.data.gov.uk/id/local-authority/00ML,Adult Social Care,BVASOC,S Svcs - Older People Svcs,PPL,Indirect Employees,B,Misc Employee Costs,BP,01/08/2012,PAY00494816,1300.00,Revenue,Gala Coral Group / Gala Leisure Ltd
Brighton & Hove City Council,http://statistics.data.gov.uk/id/local-authority/00ML,Central Services To The Public,BVACEN,Support Services (SSC),PPT,Supplies and Services,E,Equip't Furniture n Materials,EA,01/08/2012,PAY00494817,512.60,Revenue,Portsdown Office Furniture
Brighton & Hove City Council,http://statistics.data.gov.uk/id/local-authority/00ML,Central Services To The Public,BVACEN,Support Services (SSC),PPT,Supplies and Services,E,Print Stat & Gen Office Exps,ED,01/08/2012,PAY00494817,152.00,Revenue,Portsdown Office Furniture
Brighton & Hove City Council,http://statistics.data.gov.uk/id/local-authority/00ML,Housing Services General Fund,BVAHOG,Hsing Welfare,HGW,Transfer Payments,G,Supporting People,GF,01/08/2012,PAY00494818,11537.00,Revenue,Brighton & Hove Mencap
Brighton & Hove City Council,http://statistics.data.gov.uk/id/local-authority/00ML,Cultural and Related Services,BVACUL,Open Spaces,PEN,Supplies and Services,E,Equip't Furniture n Materials,EA,01/08/2012,PAY00494819,6090.00,Revenue,Earth Anchors Ltd
Brighton & Hove City Council,http://statistics.data.gov.uk/id/local-authority/00ML,Housing Services General Fund,BVAHOG,Hsing Welfare,HGW,Transfer Payments,G,Supporting People,GF,01/08/2012,PAY00494820,5774.00,Revenue,Care Co-operatives Ltd
Brighton & Hove City Council,http://statistics.data.gov.uk/id/local-authority/00ML,Housing Services General Fund,BVAHOG,Hsing Welfare,HGW,Transfer Payments,G,Supporting People,GF,01/08/2012,PAY00494827,54933.17,Revenue,Brighton YMCA
Brighton & Hove City Council,http://statistics.data.gov.uk/id/local-authority/00ML,Adult Social Care,BVASOC,S Svcs - Learning Disability,LDY,Customer n Client Receipts,M,Fees n Charges,MB,01/08/2012,PAY00494832,-240.00,Revenue,Caburn Support Services
Brighton & Hove City Council,http://statistics.data.gov.uk/id/local-authority/00ML,Adult Social Care,BVASOC,S Svcs - Learning Disability,LDY,Third Party Payments,F,Other Establishments,FH,01/08/2012,PAY00494832,4689.50,Revenue,Caburn Support Services
Brighton & Hove City Council,http://statistics.data.gov.uk/id/local-authority/00ML,Adult Social Care,BVASOC,S Svcs - Mental Health,MHT,Customer n Client Receipts,M,Fees n Charges,MB,01/08/2012,PAY00494832,-37.00,Revenue,Caburn Support Services
Brighton & Hove City Council,http://statistics.data.gov.uk/id/local-authority/00ML,Adult Social Care,BVASOC,S Svcs - Mental Health,MHT,Third Party Payments,F,Other Establishments,FH,01/08/2012,PAY00494832,62.00,Revenue,Caburn Support Services
Brighton & Hove City Council,http://statistics.data.gov.uk/id/local-authority/00ML,Children�s Social Care,BVACSC,Child Srvcs - Other Fam Supp,FFX,Transfer Payments,G,Other Transfer Payments,GD,01/08/2012,PAY00494832,285.00,Revenue,Caburn Support Services
Brighton & Hove City Council,http://statistics.data.gov.uk/id/local-authority/00ML,Housing Services General Fund,BVAHOG,Hsing Welfare,HGW,Transfer Payments,G,Supporting People,GF,01/08/2012,PAY00494833,38312.84,Revenue,Southdown Housing Association
Brighton & Hove City Council,http://statistics.data.gov.uk/id/local-authority/00ML,Adult Social Care,BVASOC,S Svcs - Older People Svcs,PPL,Customer n Client Receipts,M,Fees n Charges,MB,01/08/2012,PAY00494834,-1411.42,Revenue,Seaway Nursing Home Ltd
Brighton & Hove City Council,http://statistics.data.gov.uk/id/local-authority/00ML,Adult Social Care,BVASOC,S Svcs - Older People Svcs,PPL,Third Party Payments,F,Other Establishments,FH,01/08/2012,PAY00494834,4202.34,Revenue,Seaway Nursing Home Ltd
Brighton & Hove City Council,http://statistics.data.gov.uk/id/local-authority/00ML,Education Services,BVAEDU,Ed - Primary Ed,EHE,Supplies and Services,E,Services,EF,01/08/2012,PAY00494835,8106.28,Revenue,Cntr for Education & Finance Managmnt Ld
Brighton & Hove City Council,http://statistics.data.gov.uk/id/local-authority/00ML,Education Services,BVAEDU,Ed - Secondary Ed,EJE,Supplies and Services,E,Services,EF,01/08/2012,PAY00494835,8106.29,Revenue,Cntr for Education & Finance Managmnt Ld
Brighton & Hove City Council,http://statistics.data.gov.uk/id/local-authority/00ML,Non SERCOP,BVANON,Cap - Housing Services - GF,4HG,Capital Grants,PF,Level not required,NR5012,01/08/2012,PAY00494836,3382.46,Capital,Access Mobility
Brighton & Hove City Council,http://statistics.data.gov.uk/id/local-authority/00ML,Non SERCOP,BVANON,Cap - Housing Services - HRA,4HR,New Construction n Conversion,PB,Level not required,NR5026,01/08/2012,PAY00494836,100.00,Capital,Access Mobility
Brighton & Hove City Council,http://statistics.data.gov.uk/id/local-authority/00ML,Adult Social Care,BVASOC,S Svcs - Learning Disability,LDY,Customer n Client Receipts,M,Fees n Charges,MB,01/08/2012,PAY00494838,-112.00,Revenue,Payment to Individual
Brighton & Hove City Council,http://statistics.data.gov.uk/id/local-authority/00ML,Adult Social Care,BVASOC,S Svcs - Learning Disability,LDY,Third Party Payments,F,Other Establishments,FH,01/08/2012,PAY00494838,4442.00,Revenue,Payment to Individual
Brighton & Hove City Council,http://statistics.data.gov.uk/id/local-authority/00ML,Housing Services General Fund,BVAHOG,Homelessness,HML,Premises Related,C,Rents Payable,CC,01/08/2012,PAY00494840,850.00,Revenue,Payment to Individual
Brighton & Hove City Council,http://statistics.data.gov.uk/id/local-authority/00ML,Cultural and Related Services,BVACUL,Open Spaces,PEN,Third Party Payments,F,Private Contractors,FJ,01/08/2012,PAY00494841,18663.00,Revenue,E J Services (UK) Ltd
Brighton & Hove City Council,http://statistics.data.gov.uk/id/local-authority/00ML,Environment and Regulatory Ser,BVAERS,Environmental Health,EVH,Indirect Employees,B,Misc Employee Costs,BP,01/08/2012,PAY00494843,25000.00,Revenue,Sussex Police Authority
Brighton & Hove City Council,http://statistics.data.gov.uk/id/local-authority/00ML,Cultural and Related Services,BVACUL,Culture & Heritage,CHG,Premises Related,C,Energy Costs,CB,01/08/2012,PAY00494846,4857.68,Revenue,Brighton Dome & Festival Ltd
Brighton & Hove City Council,http://statistics.data.gov.uk/id/local-authority/00ML,Cultural and Related Services,BVACUL,Culture & Heritage,CHG,Premises Related,C,Water Services,CE,01/08/2012,PAY00494846,1813.28,Revenue,Brighton Dome & Festival Ltd
Brighton & Hove City Council,http://statistics.data.gov.uk/id/local-authority/00ML,Adult Social Care,BVASOC,S Svcs - Physical Disability,PDY,Customer n Client Receipts,M,Fees n Charges,MB,01/08/2012,PAY00494848,654.24,Revenue,Payment to Individual
Brighton & Hove City Council,http://statistics.data.gov.uk/id/local-authority/00ML,Adult Social Care,BVASOC,S Svcs - Learning Disability,LDY,Customer n Client Receipts,M,Fees n Charges,MB,01/08/2012,PAY00494849,-476.80,Revenue,Honeybourne House Ltd
Brighton & Hove City Council,http://statistics.data.gov.uk/id/local-authority/00ML,Adult Social Care,BVASOC,S Svcs - Learning Disability,LDY,Third Party Payments,F,Other Establishments,FH,01/08/2012,PAY00494849,2868.40,Revenue,Honeybourne House Ltd
Brighton & Hove City Council,http://statistics.data.gov.uk/id/local-authority/00ML,Housing Services General Fund,BVAHOG,Homelessness,HML,Premises Related,C,Rents Payable,CC,01/08/2012,PAY00494852,3510.13,Revenue,Forward Properties Limited
Brighton & Hove City Council,http://statistics.data.gov.uk/id/local-authority/00ML,Central Services To The Public,BVACEN,Support Services (SSC),PPT,Supplies and Services,E,Services,EF,01/08/2012,PAY00494854,842.42,Revenue,Emprise Services Plc
Brighton & Hove City Council,http://statistics.data.gov.uk/id/local-authority/00ML,Cultural and Related Services,BVACUL,Culture & Heritage,CHG,Direct Employees,A,Wages,AB,01/08/2012,PAY00494854,510.00,Revenue,Emprise Services Plc
Brighton & Hove City Council,http://statistics.data.gov.uk/id/local-authority/00ML,Adult Social Care,BVASOC,S Svcs - Older People Svcs,PPL,Customer n Client Receipts,M,Fees n Charges,MB,01/08/2012,PAY00494856,-713.64,Revenue,Clifden House Nursing Home
Brighton & Hove City Council,http://statistics.data.gov.uk/id/local-authority/00ML,Adult Social Care,BVASOC,S Svcs - Older People Svcs,PPL,Third Party Payments,F,Other Establishments,FH,01/08/2012,PAY00494856,2000.00,Revenue,Clifden House Nursing Home
Brighton & Hove City Council,http://statistics.data.gov.uk/id/local-authority/00ML,Planning Services,BVAPLA,Economic Development,ECD,Supplies and Services,E,Miscellaneous Expenses,EM,01/08/2012,PAY00494858,10000.00,Revenue,The B & H Community & Voluntary Sector Forum
Brighton & Hove City Council,http://statistics.data.gov.uk/id/local-authority/00ML,Adult Social Care,BVASOC,S Svcs - Mental Health,MHT,Third Party Payments,F,Other Establishments,FH,01/08/2012,PAY00494859,1008.92,Revenue,NAS Services Limited
Brighton & Hove City Council,http://statistics.data.gov.uk/id/local-authority/00ML,Housing Services General Fund,BVAHOG,Hsing Welfare,HGW,Transfer Payments,G,Supporting People,GF,01/08/2012,PAY00494860,33834.67,Revenue,Riverside Group Ltd
Brighton & Hove City Council,http://statistics.data.gov.uk/id/local-authority/00ML,Adult Social Care,BVASOC,S Svcs - Mental Health,MHT,Customer n Client Receipts,M,Fees n Charges,MB,01/08/2012,PAY00494863,-520.00,Revenue,Payment to Individual
Brighton & Hove City Council,http://statistics.data.gov.uk/id/local-authority/00ML,Adult Social Care,BVASOC,S Svcs - Mental Health,MHT,Third Party Payments,F,Other Establishments,FH,01/08/2012,PAY00494863,3448.00,Revenue,Payment to Individual
Brighton & Hove City Council,http://statistics.data.gov.uk/id/local-authority/00ML,Highways and Transportation,BVAHRT,Public transport,PTR,Supplies and Services,E,Miscellaneous Expenses,EM,01/08/2012,PAY00494864,624.00,Revenue,Primary Times
Brighton & Hove City Council,http://statistics.data.gov.uk/id/local-authority/00ML,Adult Social Care,BVASOC,S Svcs - Learning Disability,LDY,Third Party Payments,F,Other Establishments,FH,01/08/2012,PAY00494866,1530.00,Revenue,Payment to Individual
Brighton & Hove City Council,http://statistics.data.gov.uk/id/local-authority/00ML,Adult Social Care,BVASOC,S Svcs - Mental Health,MHT,Customer n Client Receipts,M,Fees n Charges,MB,01/08/2012,PAY00494867,-1676.00,Revenue,Payment to Individual
Brighton & Hove City Council,http://statistics.data.gov.uk/id/local-authority/00ML,Adult Social Care,BVASOC,S Svcs - Mental Health,MHT,Third Party Payments,F,Other Establishments,FH,01/08/2012,PAY00494867,5172.00,Revenue,Payment to Individual
Brighton & Hove City Council,http://statistics.data.gov.uk/id/local-authority/00ML,Children�s Social Care,BVACSC,Child Srvcs - Adoption,FAA,Third Party Payments,F,Other Establishments,FH,01/08/2012,PAY00494869,9000.00,Revenue,Cabrini Children`s Society
Brighton & Hove City Council,http://statistics.data.gov.uk/id/local-authority/00ML,Housing Services General Fund,BVAHOG,Homelessness,HML,Premises Related,C,Rents Payable,CC,01/08/2012,PAY00494873,825.00,Revenue,Payment to Individual
Brighton & Hove City Council,http://statistics.data.gov.uk/id/local-authority/00ML,Adult Social Care,BVASOC,S Svcs - Learning Disability,LDY,Indirect Employees,B,Training,BM,01/08/2012,PAY00494874,700.00,Revenue,Brighton & Hove Speak Out
Brighton & Hove City Council,http://statistics.data.gov.uk/id/local-authority/00ML,Housing Services General Fund,BVAHOG,Hsing Welfare,HGW,Transfer Payments,G,Supporting People,GF,01/08/2012,PAY00494876,15295.75,Revenue,Sanctuary Carr-Gomm
Brighton & Hove City Council,http://statistics.data.gov.uk/id/local-authority/00ML,Central Services To The Public,BVACEN,Local Tax Collection,LTC,Supplies and Services,E,Communications n Computing,EH,01/08/2012,PAY00494877,1034.12,Revenue,Royal Mail Group Ltd
Brighton & Hove City Council,http://statistics.data.gov.uk/id/local-authority/00ML,Adult Social Care,BVASOC,S Svcs - Learning Disability,LDY,Customer n Client Receipts,M,Fees n Charges,MB,01/08/2012,PAY00494878,-68.00,Revenue,Payment to Individual
Brighton & Hove City Council,http://statistics.data.gov.uk/id/local-authority/00ML,Adult Social Care,BVASOC,S Svcs - Learning Disability,LDY,Third Party Payments,F,Other Establishments,FH,01/08/2012,PAY00494878,8213.92,Revenue,Payment to Individual
Brighton & Hove City Council,http://statistics.data.gov.uk/id/local-authority/00ML,Housing Services General Fund,BVAHOG,Hsing Welfare,HGW,Transfer Payments,G,Supporting People,GF,01/08/2012,PAY00494878,2751.67,Revenue,Payment to Individual
Brighton & Hove City Council,http://statistics.data.gov.uk/id/local-authority/00ML,Children�s Social Care,BVACSC,Child Srvcs - Fostering,FLF,Third Party Payments,F,Other Establishments,FH,01/08/2012,PAY00494879,162604.53,Revenue,Barnardos
Brighton & Hove City Council,http://statistics.data.gov.uk/id/local-authority/00ML,Environment and Regulatory Ser,BVAERS,Community Safety,CMY,Third Party Payments,F,Other Establishments,FH,01/08/2012,PAY00494881,80.00,Revenue,Sussex Interpreting Services
Brighton & Hove City Council,http://statistics.data.gov.uk/id/local-authority/00ML,Environment and Regulatory Ser,BVAERS,Environmental Health,EVH,Supplies and Services,E,Print Stat & Gen Office Exps,ED,01/08/2012,PAY00494881,624.00,Revenue,Sussex Interpreting Services
Brighton & Hove City Council,http://statistics.data.gov.uk/id/local-authority/00ML,Environment and Regulatory Ser,BVAERS,Environmental Health,EVH,Supplies and Services,E,Services,EF,01/08/2012,PAY00494881,160.00,Revenue,Sussex Interpreting Services
Brighton & Hove City Council,http://statistics.data.gov.uk/id/local-authority/00ML,Housing Services Revnue Acc,BVAHOU,Hsing Management - HRA,HGM,Supplies and Services,E,Miscellaneous Expenses,EM,01/08/2012,PAY00494881,105.00,Revenue,Sussex Interpreting Services
Brighton & Hove City Council,http://statistics.data.gov.uk/id/local-authority/00ML,Housing Services Revnue Acc,BVAHOU,Hsing Management - HRA,HGM,Supplies and Services,E,Services,EF,01/08/2012,PAY00494881,50.00,Revenue,Sussex Interpreting Services
Brighton & Hove City Council,http://statistics.data.gov.uk/id/local-authority/00ML,Housing Services General Fund,BVAHOG,Homelessness,HML,Premises Related,C,Rents Payable,CC,01/08/2012,PAY00494884,925.00,Revenue,Payment to Individual
Brighton & Hove City Council,http://statistics.data.gov.uk/id/local-authority/00ML,Adult Social Care,BVASOC,S Svcs - Learning Disability,LDY,Transport Related,D,Contract Hire n Operating Leas,DB,01/08/2012,PAY00494886,134.24,Revenue,Enterprise Rent-a-Car UK Ltd
Brighton & Hove City Council,http://statistics.data.gov.uk/id/local-authority/00ML,Children�s Social Care,BVACSC,Child Srvcs - Com & Scl Work,FCW,Transport Related,D,Contract Hire n Operating Leas,DB,01/08/2012,PAY00494886,596.68,Revenue,Enterprise Rent-a-Car UK Ltd
Brighton & Hove City Council,http://statistics.data.gov.uk/id/local-authority/00ML,Children�s Social Care,BVACSC,Child Srvcs - Com & Scl Work,FCW,Transport Related,D,Other Transport Costs,DG,01/08/2012,PAY00494886,47.12,Revenue,Enterprise Rent-a-Car UK Ltd
Brighton & Hove City Council,http://statistics.data.gov.uk/id/local-authority/00ML,Children�s Social Care,BVACSC,Child Srvcs - Secure Accomm,FLA,Third Party Payments,F,Other Local Authorities,FB,01/08/2012,PAY00494891,650.25,Revenue,Essex County Council
Brighton & Hove City Council,http://statistics.data.gov.uk/id/local-authority/00ML,Adult Social Care,BVASOC,S Svcs - Older People Svcs,PPL,Customer n Client Receipts,M,Fees n Charges,MB,01/08/2012,PAY00494893,-37.00,Revenue,Care UK Homecare
Brighton & Hove City Council,http://statistics.data.gov.uk/id/local-authority/00ML,Adult Social Care,BVASOC,S Svcs - Older People Svcs,PPL,Third Party Payments,F,Other Establishments,FH,01/08/2012,PAY00494893,179.03,Revenue,Care UK Homecare
Brighton & Hove City Council,http://statistics.data.gov.uk/id/local-authority/00ML,Adult Social Care,BVASOC,S Svcs - Physical Disability,PDY,Customer n Client Receipts,M,Fees n Charges,MB,01/08/2012,PAY00494893,-84.00,Revenue,Care UK Homecare
Brighton & Hove City Council,http://statistics.data.gov.uk/id/local-authority/00ML,Adult Social Care,BVASOC,S Svcs - Physical Disability,PDY,Third Party Payments,F,Other Establishments,FH,01/08/2012,PAY00494893,10048.52,Revenue,Care UK Homecare
Brighton & Hove City Council,http://statistics.data.gov.uk/id/local-authority/00ML,Adult Social Care,BVASOC,S Svcs - Physical Disability,PDY,Third Party Payments,F,Other Establishments,FH,01/08/2012,PAY00494894,6373.48,Revenue,Priory Group Ltd
Brighton & Hove City Council,http://statistics.data.gov.uk/id/local-authority/00ML,Environment and Regulatory Ser,BVAERS,Management Services (DEC),MGT,Transport Related,D,Direct Transport Costs,DA,01/08/2012,PAY00494895,572.59,Revenue,Dennis Eagle Ltd
Brighton & Hove City Council,http://statistics.data.gov.uk/id/local-authority/00ML,Cultural and Related Services,BVACUL,Culture & Heritage,CHG,Supplies and Services,E,Miscellaneous Expenses,EM,01/08/2012,PAY00494896,300.00,Revenue,S.W.A.T Marketing Ltd
Brighton & Hove City Council,http://statistics.data.gov.uk/id/local-authority/00ML,Cultural and Related Services,BVACUL,Culture & Heritage,CHG,Supplies and Services,E,Services,EF,01/08/2012,PAY00494896,135.00,Revenue,S.W.A.T Marketing Ltd
Brighton & Hove City Council,http://statistics.data.gov.uk/id/local-authority/00ML,Housing Services General Fund,BVAHOG,Hsing Welfare,HGW,Transfer Payments,G,Supporting People,GF,01/08/2012,PAY00494897,57843.59,Revenue,Sussex Central YMCA
Brighton & Hove City Council,http://statistics.data.gov.uk/id/local-authority/00ML,Adult Social Care,BVASOC,S Svcs - Older People Svcs,PPL,Customer n Client Receipts,M,Fees n Charges,MB,01/08/2012,PAY00494905,-252.00,Revenue,Payment to Individual
Brighton & Hove City Council,http://statistics.data.gov.uk/id/local-authority/00ML,Adult Social Care,BVASOC,S Svcs - Older People Svcs,PPL,Third Party Payments,F,Other Establishments,FH,01/08/2012,PAY00494905,1496.00,Revenue,Payment to Individual
Brighton & Hove City Council,http://statistics.data.gov.uk/id/local-authority/00ML,Housing Services General Fund,BVAHOG,Hsing Welfare,HGW,Transfer Payments,G,Supporting People,GF,01/08/2012,PAY00494906,25820.42,Revenue,Money Advice & Community Support Service
Brighton & Hove City Council,http://statistics.data.gov.uk/id/local-authority/00ML,Adult Social Care,BVASOC,S Svcs - Older People Svcs,PPL,Third Party Payments,F,Voluntary Associations,FG,01/08/2012,PAY00494907,6250.00,Revenue,The Hangleton & Knoll Project
Brighton & Hove City Council,http://statistics.data.gov.uk/id/local-authority/00ML,Environment and Regulatory Ser,BVAERS,Management Services (DEC),MGT,Premises Related,C,Repair Maint n Alterations,CA,01/08/2012,PAY00494909,602.85,Revenue,FJS Building & Property Maintenance Ltd
Brighton & Hove City Council,http://statistics.data.gov.uk/id/local-authority/00ML,Adult Social Care,BVASOC,S Svcs - Mental Health,MHT,Customer n Client Receipts,M,Fees n Charges,MB,01/08/2012,PAY00494910,-612.00,Revenue,Victoria Lodge Care Home
Brighton & Hove City Council,http://statistics.data.gov.uk/id/local-authority/00ML,Adult Social Care,BVASOC,S Svcs - Mental Health,MHT,Third Party Payments,F,Other Establishments,FH,01/08/2012,PAY00494910,3448.00,Revenue,Victoria Lodge Care Home
Brighton & Hove City Council,http://statistics.data.gov.uk/id/local-authority/00ML,Adult Social Care,BVASOC,Management Services (DEC),MGT,Supplies and Services,E,Services,EF,01/08/2012,PAY00494912,36233.53,Revenue,Brighton & Hove City Teaching PCT
Brighton & Hove City Council,http://statistics.data.gov.uk/id/local-authority/00ML,Cultural and Related Services,BVACUL,Recreation and sport,REC,Third Party Payments,F,Private Contractors,FJ,01/08/2012,PAY00494913,16752.00,Revenue,Freedom Leisure
Brighton & Hove City Council,http://statistics.data.gov.uk/id/local-authority/00ML,Children�s Social Care,BVACSC,Child Srvcs - Leaving Care,FAL,Transfer Payments,G,Other Transfer Payments,GD,01/08/2012,PAY00494914,200.00,Revenue,Solutions
Brighton & Hove City Council,http://statistics.data.gov.uk/id/local-authority/00ML,Housing Services General Fund,BVAHOG,Homelessness,HML,Supplies and Services,E,Services,EF,01/08/2012,PAY00494914,1523.00,Revenue,Solutions
Brighton & Hove City Council,http://statistics.data.gov.uk/id/local-authority/00ML,Cultural and Related Services,BVACUL,Management Services (DEC),MGT,Supplies and Services,E,Grants n Subscriptions,EK,01/08/2012,PAY00494916,2000.00,Revenue,Sussex Wildlife Trust
Brighton & Hove City Council,http://statistics.data.gov.uk/id/local-authority/00ML,Adult Social Care,BVASOC,S Svcs - Mental Health,MHT,Customer n Client Receipts,M,Fees n Charges,MB,01/08/2012,PAY00494917,-311.40,Revenue,Clifton Court Development Company
Brighton & Hove City Council,http://statistics.data.gov.uk/id/local-authority/00ML,Adult Social Care,BVASOC,S Svcs - Mental Health,MHT,Third Party Payments,F,Other Establishments,FH,01/08/2012,PAY00494917,1373.52,Revenue,Clifton Court Development Company
Brighton & Hove City Council,http://statistics.data.gov.uk/id/local-authority/00ML,Housing Services General Fund,BVAHOG,Homelessness,HML,Premises Related,C,Rents Payable,CC,01/08/2012,PAY00494919,620.00,Revenue,Payment to Individual
Brighton & Hove City Council,http://statistics.data.gov.uk/id/local-authority/00ML,Housing Services General Fund,BVAHOG,Hsing Welfare,HGW,Transfer Payments,G,Supporting People,GF,01/08/2012,PAY00494920,1109.33,Revenue,Raglan Housing Association Ltd
Brighton & Hove City Council,http://statistics.data.gov.uk/id/local-authority/00ML,Adult Social Care,BVASOC,S Svcs - Learning Disability,LDY,Customer n Client Receipts,M,Fees n Charges,MB,01/08/2012,PAY00494921,-311.40,Revenue,Independence Homes 
Brighton & Hove City Council,http://statistics.data.gov.uk/id/local-authority/00ML,Adult Social Care,BVASOC,S Svcs - Learning Disability,LDY,Third Party Payments,F,Other Establishments,FH,01/08/2012,PAY00494921,10926.56,Revenue,Independence Homes 
Brighton & Hove City Council,http://statistics.data.gov.uk/id/local-authority/00ML,Central Services To The Public,BVACEN,Support Services (SSC),PPT,Supplies and Services,E,Services,EF,01/08/2012,PAY00494922,678.33,Revenue,Payment to Individual
Brighton & Hove City Council,http://statistics.data.gov.uk/id/local-authority/00ML,Central Services To The Public,BVACEN,Support Services (SSC),PPT,Supplies and Services,E,Miscellaneous Expenses,EM,01/08/2012,PAY00494924,1530.00,Revenue,ASB Law LLP
Brighton & Hove City Council,http://statistics.data.gov.uk/id/local-authority/00ML,Adult Social Care,BVASOC,S Svcs - Older People Svcs,PPL,Customer n Client Receipts,M,Fees n Charges,MB,01/08/2012,PAY00494926,-476.80,Revenue,Hollymead House
Brighton & Hove City Council,http://statistics.data.gov.uk/id/local-authority/00ML,Adult Social Care,BVASOC,S Svcs - Older People Svcs,PPL,Third Party Payments,F,Other Establishments,FH,01/08/2012,PAY00494926,3100.00,Revenue,Hollymead House
Brighton & Hove City Council,http://statistics.data.gov.uk/id/local-authority/00ML,Adult Social Care,BVASOC,S Svcs - Mental Health,MHT,Customer n Client Receipts,M,Fees n Charges,MB,01/08/2012,PAY00494928,-152.00,Revenue,Saga Homecare
Brighton & Hove City Council,http://statistics.data.gov.uk/id/local-authority/00ML,Adult Social Care,BVASOC,S Svcs - Mental Health,MHT,Third Party Payments,F,Other Establishments,FH,01/08/2012,PAY00494928,881.42,Revenue,Saga Homecare
Brighton & Hove City Council,http://statistics.data.gov.uk/id/local-authority/00ML,Adult Social Care,BVASOC,S Svcs - Older People Svcs,PPL,Customer n Client Receipts,M,Fees n Charges,MB,01/08/2012,PAY00494928,-9236.29,Revenue,Saga Homecare
Brighton & Hove City Council,http://statistics.data.gov.uk/id/local-authority/00ML,Adult Social Care,BVASOC,S Svcs - Older People Svcs,PPL,Third Party Payments,F,Other Establishments,FH,01/08/2012,PAY00494928,69112.72,Revenue,Saga Homecare
Brighton & Hove City Council,http://statistics.data.gov.uk/id/local-authority/00ML,Adult Social Care,BVASOC,S Svcs - Physical Disability,PDY,Customer n Client Receipts,M,Fees n Charges,MB,01/08/2012,PAY00494928,-528.00,Revenue,Saga Homecare
Brighton & Hove City Council,http://statistics.data.gov.uk/id/local-authority/00ML,Adult Social Care,BVASOC,S Svcs - Physical Disability,PDY,Third Party Payments,F,Other Establishments,FH,01/08/2012,PAY00494928,6201.24,Revenue,Saga Homecare
Brighton & Hove City Council,http://statistics.data.gov.uk/id/local-authority/00ML,Adult Social Care,BVASOC,S Svcs - Learning Disability,LDY,Customer n Client Receipts,M,Fees n Charges,MB,01/08/2012,PAY00494929,-1332.00,Revenue,CMG Limited
Brighton & Hove City Council,http://statistics.data.gov.uk/id/local-authority/00ML,Adult Social Care,BVASOC,S Svcs - Learning Disability,LDY,Third Party Payments,F,Other Establishments,FH,01/08/2012,PAY00494929,89021.44,Revenue,CMG Limited
Brighton & Hove City Council,http://statistics.data.gov.uk/id/local-authority/00ML,Environment and Regulatory Ser,BVAERS,Community Safety,CMY,Third Party Payments,F,Other Establishments,FH,01/08/2012,PAY00494931,46810.00,Revenue,Crime Reduction Initiatives Ltd
Brighton & Hove City Council,http://statistics.data.gov.uk/id/local-authority/00ML,Housing Services General Fund,BVAHOG,Hsing Welfare,HGW,Transfer Payments,G,Supporting People,GF,01/08/2012,PAY00494931,23977.75,Revenue,Crime Reduction Initiatives Ltd
Brighton & Hove City Council,http://statistics.data.gov.uk/id/local-authority/00ML,Adult Social Care,BVASOC,S Svcs - Mental Health,MHT,Third Party Payments,F,Other Establishments,FH,01/08/2012,PAY00494932,29.91,Revenue,Prime Care Community Services Ltd
Brighton & Hove City Council,http://statistics.data.gov.uk/id/local-authority/00ML,Adult Social Care,BVASOC,S Svcs - Older People Svcs,PPL,Third Party Payments,F,Other Establishments,FH,01/08/2012,PAY00494932,1457.35,Revenue,Prime Care Community Services Ltd
Brighton & Hove City Council,http://statistics.data.gov.uk/id/local-authority/00ML,Adult Social Care,BVASOC,S Svcs - Physical Disability,PDY,Third Party Payments,F,Other Establishments,FH,01/08/2012,PAY00494932,217.66,Revenue,Prime Care Community Services Ltd
Brighton & Hove City Council,http://statistics.data.gov.uk/id/local-authority/00ML,Cultural and Related Services,BVACUL,Management Services (DEC),MGT,Transport Related,D,Direct Transport Costs,DA,01/08/2012,PAY00494933,921.54,Revenue,Haynes Bros Ltd
Brighton & Hove City Council,http://statistics.data.gov.uk/id/local-authority/00ML,Housing Services General Fund,BVAHOG,Hsing Welfare,HGW,Transfer Payments,G,Supporting People,GF,01/08/2012,PAY00494934,7985.75,Revenue,Friends First
Brighton & Hove City Council,http://statistics.data.gov.uk/id/local-authority/00ML,Housing Services General Fund,BVAHOG,Hsing Welfare,HGW,Transfer Payments,G,Supporting People,GF,01/08/2012,PAY00494935,5211.92,Revenue,Independent Living Company (Sussex) Ltd
Brighton & Hove City Council,http://statistics.data.gov.uk/id/local-authority/00ML,Housing Services General Fund,BVAHOG,Hsing Welfare,HGW,Transfer Payments,G,Supporting People,GF,01/08/2012,PAY00494937,16666.67,Revenue,Sussex Oakleaf Housing Association
Brighton & Hove City Council,http://statistics.data.gov.uk/id/local-authority/00ML,Housing Services General Fund,BVAHOG,Homelessness,HML,Premises Related,C,Rents Payable,CC,01/08/2012,PAY00494942,8985.06,Revenue,Sanctuary Housing Association
Brighton & Hove City Council,http://statistics.data.gov.uk/id/local-authority/00ML,Housing Services General Fund,BVAHOG,Homelessness,HML,Premises Related,C,Rents Payable,CC,01/08/2012,PAY00494943,88978.14,Revenue,KEM Property Services Ltd
Brighton & Hove City Council,http://statistics.data.gov.uk/id/local-authority/00ML,Adult Social Care,BVASOC,Management Services (DEC),MGT,Indirect Employees,B,Misc Employee Costs,BP,01/08/2012,PAY00494944,41.63,Revenue,Corporate Petty Cash
Brighton & Hove City Council,http://statistics.data.gov.uk/id/local-authority/00ML,Central Services To The Public,BVACEN,Support Services (SSC),PPT,Supplies and Services,E,Clothing Uniforms n Laundry,EC,01/08/2012,PAY00494944,27.08,Revenue,Corporate Petty Cash
Brighton & Hove City Council,http://statistics.data.gov.uk/id/local-authority/00ML,Children�s Social Care,BVACSC,Child Srvcs - Other Yth Jstce,FYX,Transport Related,D,Public Transport,DD,01/08/2012,PAY00494944,28.70,Revenue,Corporate Petty Cash
Brighton & Hove City Council,http://statistics.data.gov.uk/id/local-authority/00ML,Cultural and Related Services,BVACUL,Tourism,TRM,Supplies and Services,E,Miscellaneous Expenses,EM,01/08/2012,PAY00494944,50.76,Revenue,Corporate Petty Cash
Brighton & Hove City Council,http://statistics.data.gov.uk/id/local-authority/00ML,Education Services,BVAEDU,Ed - Srvcs YP - Ad & Cmty Ln,ENA,Supplies and Services,E,Miscellaneous Expenses,EM,01/08/2012,PAY00494944,57.56,Revenue,Corporate Petty Cash
Brighton & Hove City Council,http://statistics.data.gov.uk/id/local-authority/00ML,Education Services,BVAEDU,Ed - Srvcs YP - Ad & Cmty Ln,ENA,Transport Related,D,Public Transport,DD,01/08/2012,PAY00494944,8.80,Revenue,Corporate Petty Cash
Brighton & Hove City Council,http://statistics.data.gov.uk/id/local-authority/00ML,Environment and Regulatory Ser,BVAERS,Community Safety,CMY,Supplies and Services,E,Equip't Furniture n Materials,EA,01/08/2012,PAY00494944,116.27,Revenue,Corporate Petty Cash
Brighton & Hove City Council,http://statistics.data.gov.uk/id/local-authority/00ML,Environment and Regulatory Ser,BVAERS,Consumer Protection,CNP,Transport Related,D,Other Transport Costs,DG,01/08/2012,PAY00494944,4.50,Revenue,Corporate Petty Cash
Brighton & Hove City Council,http://statistics.data.gov.uk/id/local-authority/00ML,Environment and Regulatory Ser,BVAERS,Consumer Protection,CNP,Transport Related,D,Public Transport,DD,01/08/2012,PAY00494944,28.20,Revenue,Corporate Petty Cash
Brighton & Hove City Council,http://statistics.data.gov.uk/id/local-authority/00ML,Environment and Regulatory Ser,BVAERS,Environmental Health,EVH,Supplies and Services,E,Equip't Furniture n Materials,EA,01/08/2012,PAY00494944,19.23,Revenue,Corporate Petty Cash
Brighton & Hove City Council,http://statistics.data.gov.uk/id/local-authority/00ML,Environment and Regulatory Ser,BVAERS,Environmental Health,EVH,Supplies and Services,E,Miscellaneous Expenses,EM,01/08/2012,PAY00494944,14.21,Revenue,Corporate Petty Cash
Brighton & Hove City Council,http://statistics.data.gov.uk/id/local-authority/00ML,Highways and Transportation,BVAHRT,Parking Services,PRK,Customer n Client Receipts,M,Fees n Charges,MB,01/08/2012,PAY00494944,21.00,Revenue,Corporate Petty Cash
Brighton & Hove City Council,http://statistics.data.gov.uk/id/local-authority/00ML,Highways and Transportation,BVAHRT,Parking Services,PRK,Supplies and Services,E,Equip't Furniture n Materials,EA,01/08/2012,PAY00494944,7.00,Revenue,Corporate Petty Cash
Brighton & Hove City Council,http://statistics.data.gov.uk/id/local-authority/00ML,Housing Services General Fund,BVAHOG,Homelessness,HML,Premises Related,C,Energy Costs,CB,01/08/2012,PAY00494944,40.00,Revenue,Corporate Petty Cash
Brighton & Hove City Council,http://statistics.data.gov.uk/id/local-authority/00ML,Housing Services General Fund,BVAHOG,Homelessness,HML,Supplies and Services,E,Communications n Computing,EH,01/08/2012,PAY00494944,15.00,Revenue,Corporate Petty Cash
Brighton & Hove City Council,http://statistics.data.gov.uk/id/local-authority/00ML,Housing Services General Fund,BVAHOG,Homelessness,HML,Transport Related,D,Other Transport Costs,DG,01/08/2012,PAY00494944,18.50,Revenue,Corporate Petty Cash
Brighton & Hove City Council,http://statistics.data.gov.uk/id/local-authority/00ML,Housing Services General Fund,BVAHOG,Homelessness,HML,Transport Related,D,Public Transport,DD,01/08/2012,PAY00494944,51.00,Revenue,Corporate Petty Cash
Brighton & Hove City Council,http://statistics.data.gov.uk/id/local-authority/00ML,Housing Services General Fund,BVAHOG,Hsing Benefits,HGB,Transport Related,D,Public Transport,DD,01/08/2012,PAY00494944,4.40,Revenue,Corporate Petty Cash
Brighton & Hove City Council,http://statistics.data.gov.uk/id/local-authority/00ML,Housing Services General Fund,BVAHOG,Hsing Strat Advice and RSLs,HGR,Transport Related,D,Public Transport,DD,01/08/2012,PAY00494944,4.40,Revenue,Corporate Petty Cash
Brighton & Hove City Council,http://statistics.data.gov.uk/id/local-authority/00ML,Housing Services General Fund,BVAHOG,Hsing Welfare,HGW,Transport Related,D,Public Transport,DD,01/08/2012,PAY00494944,2.20,Revenue,Corporate Petty Cash
Brighton & Hove City Council,http://statistics.data.gov.uk/id/local-authority/00ML,Housing Services General Fund,BVAHOG,Management Services (DEC),MGT,Transport Related,D,Public Transport,DD,01/08/2012,PAY00494944,2.00,Revenue,Corporate Petty Cash
Brighton & Hove City Council,http://statistics.data.gov.uk/id/local-authority/00ML,Housing Services General Fund,BVAHOG,Private Sector Hsing Renewal,PHR,Supplies and Services,E,Print Stat & Gen Office Exps,ED,01/08/2012,PAY00494944,0.83,Revenue,Corporate Petty Cash
Brighton & Hove City Council,http://statistics.data.gov.uk/id/local-authority/00ML,Housing Services General Fund,BVAHOG,Private Sector Hsing Renewal,PHR,Transport Related,D,Public Transport,DD,01/08/2012,PAY00494944,8.80,Revenue,Corporate Petty Cash
Brighton & Hove City Council,http://statistics.data.gov.uk/id/local-authority/00ML,Planning Services,BVAPLA,Community Development,CDV,Supplies and Services,E,Catering,EB,01/08/2012,PAY00494944,98.50,Revenue,Corporate Petty Cash
Brighton & Hove City Council,http://statistics.data.gov.uk/id/local-authority/00ML,Planning Services,BVAPLA,Community Development,CDV,Supplies and Services,E,Miscellaneous Expenses,EM,01/08/2012,PAY00494944,49.72,Revenue,Corporate Petty Cash
Brighton & Hove City Council,http://statistics.data.gov.uk/id/local-authority/00ML,Adult Social Care,BVASOC,Child Srvcs - Other Fam Supp,FFX,Direct Employees,A,Salaries,AA,01/08/2012,PAY00494945,1244.76,Revenue,Carlisle Staffing Plc
Brighton & Hove City Council,http://statistics.data.gov.uk/id/local-authority/00ML,Adult Social Care,BVASOC,Management Services (DEC),MGT,Direct Employees,A,Salaries,AA,01/08/2012,PAY00494945,7538.76,Revenue,Carlisle Staffing Plc
Brighton & Hove City Council,http://statistics.data.gov.uk/id/local-authority/00ML,Adult Social Care,BVASOC,Management Services (DEC),MGT,Indirect Employees,B,Training,BM,01/08/2012,PAY00494945,8.26,Revenue,Carlisle Staffing Plc
Brighton & Hove City Council,http://statistics.data.gov.uk/id/local-authority/00ML,Adult Social Care,BVASOC,S Svcs - Learning Disability,LDY,Direct Employees,A,Salaries,AA,01/08/2012,PAY00494945,3826.61,Revenue,Carlisle Staffing Plc
Brighton & Hove City Council,http://statistics.data.gov.uk/id/local-authority/00ML,Adult Social Care,BVASOC,S Svcs - Mental Health,MHT,Direct Employees,A,Salaries,AA,01/08/2012,PAY00494945,103.00,Revenue,Carlisle Staffing Plc
Brighton & Hove City Council,http://statistics.data.gov.uk/id/local-authority/00ML,Adult Social Care,BVASOC,S Svcs - Older People Svcs,PPL,Direct Employees,A,Salaries,AA,01/08/2012,PAY00494945,13064.01,Revenue,Carlisle Staffing Plc
Brighton & Hove City Council,http://statistics.data.gov.uk/id/local-authority/00ML,Adult Social Care,BVASOC,S Svcs - Supported Employment,EMP,Direct Employees,A,Salaries,AA,01/08/2012,PAY00494945,9.88,Revenue,Carlisle Staffing Plc
Brighton & Hove City Council,http://statistics.data.gov.uk/id/local-authority/00ML,Adult Social Care,BVASOC,Support Services (SSC),PPT,Direct Employees,A,Salaries,AA,01/08/2012,PAY00494945,46.63,Revenue,Carlisle Staffing Plc
Brighton & Hove City Council,http://statistics.data.gov.uk/id/local-authority/00ML,Central Services To The Public,BVACEN,Ed - EY - Central,EAE,Direct Employees,A,Salaries,AA,01/08/2012,PAY00494945,200.96,Revenue,Carlisle Staffing Plc
Brighton & Hove City Council,http://statistics.data.gov.uk/id/local-authority/00ML,Central Services To The Public,BVACEN,Reg - Birth Death and Marriage,RBD,Direct Employees,A,Salaries,AA,01/08/2012,PAY00494945,18.44,Revenue,Carlisle Staffing Plc
Brighton & Hove City Council,http://statistics.data.gov.uk/id/local-authority/00ML,Central Services To The Public,BVACEN,Support Services (SSC),PPT,Direct Employees,A,Salaries,AA,01/08/2012,PAY00494945,22563.17,Revenue,Carlisle Staffing Plc
Brighton & Hove City Council,http://statistics.data.gov.uk/id/local-authority/00ML,Children�s Social Care,BVACSC,Child Srvcs - Com & Scl Work,FCW,Direct Employees,A,Salaries,AA,01/08/2012,PAY00494945,1809.80,Revenue,Carlisle Staffing Plc
Brighton & Hove City Council,http://statistics.data.gov.uk/id/local-authority/00ML,Children�s Social Care,BVACSC,Child Srvcs - Family Centres,FFF,Direct Employees,A,Salaries,AA,01/08/2012,PAY00494945,235.16,Revenue,Carlisle Staffing Plc
Brighton & Hove City Council,http://statistics.data.gov.uk/id/local-authority/00ML,Children�s Social Care,BVACSC,Child Srvcs - Fostering,FLF,Direct Employees,A,Salaries,AA,01/08/2012,PAY00494945,150.70,Revenue,Carlisle Staffing Plc
Brighton & Hove City Council,http://statistics.data.gov.uk/id/local-authority/00ML,Children�s Social Care,BVACSC,Child Srvcs - Leaving Care,FAL,Direct Employees,A,Salaries,AA,01/08/2012,PAY00494945,16.75,Revenue,Carlisle Staffing Plc
Brighton & Hove City Council,http://statistics.data.gov.uk/id/local-authority/00ML,Children�s Social Care,BVACSC,Child Srvcs - Other,FAX,Direct Employees,A,Salaries,AA,01/08/2012,PAY00494945,0.63,Revenue,Carlisle Staffing Plc
Brighton & Hove City Council,http://statistics.data.gov.uk/id/local-authority/00ML,Children�s Social Care,BVACSC,Child Srvcs - Residential Svcs,FLR,Direct Employees,A,Salaries,AA,01/08/2012,PAY00494945,171.57,Revenue,Carlisle Staffing Plc
Brighton & Hove City Council,http://statistics.data.gov.uk/id/local-authority/00ML,Cultural and Related Services,BVACUL,Management Services (DEC),MGT,Direct Employees,A,Salaries,AA,01/08/2012,PAY00494945,9.25,Revenue,Carlisle Staffing Plc
Brighton & Hove City Council,http://statistics.data.gov.uk/id/local-authority/00ML,Cultural and Related Services,BVACUL,Open Spaces,PEN,Direct Employees,A,Salaries,AA,01/08/2012,PAY00494945,1124.66,Revenue,Carlisle Staffing Plc
Brighton & Hove City Council,http://statistics.data.gov.uk/id/local-authority/00ML,Cultural and Related Services,BVACUL,Recreation and sport,REC,Direct Employees,A,Salaries,AA,01/08/2012,PAY00494945,360.67,Revenue,Carlisle Staffing Plc
Brighton & Hove City Council,http://statistics.data.gov.uk/id/local-authority/00ML,Education Services,BVAEDU,Ed - Ed Other - LA Attrib Sch,ELA,Direct Employees,A,Salaries,AA,01/08/2012,PAY00494945,4.63,Revenue,Carlisle Staffing Plc
Brighton & Hove City Council,http://statistics.data.gov.uk/id/local-authority/00ML,Education Services,BVAEDU,Ed - Ed Other - Other,ENF,Direct Employees,A,Salaries,AA,01/08/2012,PAY00494945,20.63,Revenue,Carlisle Staffing Plc
Brighton & Hove City Council,http://statistics.data.gov.uk/id/local-authority/00ML,Education Services,BVAEDU,Ed - EY - Central,EAE,Direct Employees,A,Salaries,AA,01/08/2012,PAY00494945,4694.53,Revenue,Carlisle Staffing Plc
Brighton & Hove City Council,http://statistics.data.gov.uk/id/local-authority/00ML,Education Services,BVAEDU,Ed - Mgmt & Support Services,EMG,Direct Employees,A,Salaries,AA,01/08/2012,PAY00494945,1034.77,Revenue,Carlisle Staffing Plc
Brighton & Hove City Council,http://statistics.data.gov.uk/id/local-authority/00ML,Education Services,BVAEDU,Ed - Primary schools,EHH,Direct Employees,A,Salaries,AA,01/08/2012,PAY00494945,79.28,Revenue,Carlisle Staffing Plc
Brighton & Hove City Council,http://statistics.data.gov.uk/id/local-authority/00ML,Education Services,BVAEDU,Ed - Secondary Ed,EJE,Direct Employees,A,Salaries,AA,01/08/2012,PAY00494945,7.19,Revenue,Carlisle Staffing Plc
Brighton & Hove City Council,http://statistics.data.gov.uk/id/local-authority/00ML,Education Services,BVAEDU,Ed - Secondary Schools,EJJ,Direct Employees,A,Salaries,AA,01/08/2012,PAY00494945,878.40,Revenue,Carlisle Staffing Plc
Brighton & Hove City Council,http://statistics.data.gov.uk/id/local-authority/00ML,Education Services,BVAEDU,Ed - Special Ed,EKE,Direct Employees,A,Salaries,AA,01/08/2012,PAY00494945,428.41,Revenue,Carlisle Staffing Plc
Brighton & Hove City Council,http://statistics.data.gov.uk/id/local-authority/00ML,Education Services,BVAEDU,Ed - Special Schools,EKK,Direct Employees,A,Salaries,AA,01/08/2012,PAY00494945,9.38,Revenue,Carlisle Staffing Plc
Brighton & Hove City Council,http://statistics.data.gov.uk/id/local-authority/00ML,Education Services,BVAEDU,Management Services (DEC),MGT,Direct Employees,A,Salaries,AA,01/08/2012,PAY00494945,7.44,Revenue,Carlisle Staffing Plc
Brighton & Hove City Council,http://statistics.data.gov.uk/id/local-authority/00ML,Environment and Regulatory Ser,BVAERS,Cem Crem and Mortuary Services,CCM,Direct Employees,A,Salaries,AA,01/08/2012,PAY00494945,462.67,Revenue,Carlisle Staffing Plc
Brighton & Hove City Council,http://statistics.data.gov.uk/id/local-authority/00ML,Environment and Regulatory Ser,BVAERS,Community Safety,CMY,Direct Employees,A,Salaries,AA,01/08/2012,PAY00494945,670.48,Revenue,Carlisle Staffing Plc
Brighton & Hove City Council,http://statistics.data.gov.uk/id/local-authority/00ML,Environment and Regulatory Ser,BVAERS,Environmental Health,EVH,Direct Employees,A,Salaries,AA,01/08/2012,PAY00494945,818.57,Revenue,Carlisle Staffing Plc
Brighton & Hove City Council,http://statistics.data.gov.uk/id/local-authority/00ML,Environment and Regulatory Ser,BVAERS,Management Services (DEC),MGT,Direct Employees,A,Salaries,AA,01/08/2012,PAY00494945,1381.62,Revenue,Carlisle Staffing Plc
Brighton & Hove City Council,http://statistics.data.gov.uk/id/local-authority/00ML,Environment and Regulatory Ser,BVAERS,Street Cleansing,CLE,Direct Employees,A,Salaries,AA,01/08/2012,PAY00494945,3258.57,Revenue,Carlisle Staffing Plc
Brighton & Hove City Council,http://statistics.data.gov.uk/id/local-authority/00ML,Environment and Regulatory Ser,BVAERS,Waste Management,WMT,Direct Employees,A,Salaries,AA,01/08/2012,PAY00494945,11344.63,Revenue,Carlisle Staffing Plc
Brighton & Hove City Council,http://statistics.data.gov.uk/id/local-authority/00ML,Highways and Transportation,BVAHRT,Highways and Roads - Mntnce,HRM,Direct Employees,A,Salaries,AA,01/08/2012,PAY00494945,1122.63,Revenue,Carlisle Staffing Plc
Brighton & Hove City Council,http://statistics.data.gov.uk/id/local-authority/00ML,Highways and Transportation,BVAHRT,Parking Services,PRK,Direct Employees,A,Salaries,AA,01/08/2012,PAY00494945,798.22,Revenue,Carlisle Staffing Plc
Brighton & Hove City Council,http://statistics.data.gov.uk/id/local-authority/00ML,Highways and Transportation,BVAHRT,Transport plan policy strategy,TPP,Direct Employees,A,Salaries,AA,01/08/2012,PAY00494945,2071.98,Revenue,Carlisle Staffing Plc
Brighton & Hove City Council,http://statistics.data.gov.uk/id/local-authority/00ML,Housing Services General Fund,BVAHOG,Homelessness,HML,Direct Employees,A,Salaries,AA,01/08/2012,PAY00494945,2259.50,Revenue,Carlisle Staffing Plc
Brighton & Hove City Council,http://statistics.data.gov.uk/id/local-authority/00ML,Housing Services General Fund,BVAHOG,Hsing Benefits,HGB,Direct Employees,A,Salaries,AA,01/08/2012,PAY00494945,21.38,Revenue,Carlisle Staffing Plc
Brighton & Hove City Council,http://statistics.data.gov.uk/id/local-authority/00ML,Housing Services General Fund,BVAHOG,Hsing Strat Advice and RSLs,HGR,Direct Employees,A,Salaries,AA,01/08/2012,PAY00494945,17.75,Revenue,Carlisle Staffing Plc
Brighton & Hove City Council,http://statistics.data.gov.uk/id/local-authority/00ML,Housing Services General Fund,BVAHOG,Hsing Welfare,HGW,Direct Employees,A,Salaries,AA,01/08/2012,PAY00494945,904.36,Revenue,Carlisle Staffing Plc
Brighton & Hove City Council,http://statistics.data.gov.uk/id/local-authority/00ML,Housing Services Revnue Acc,BVAHOU,Hsing Management - HRA,HGM,Direct Employees,A,Salaries,AA,01/08/2012,PAY00494945,16710.04,Revenue,Carlisle Staffing Plc
Brighton & Hove City Council,http://statistics.data.gov.uk/id/local-authority/00ML,Non SERCOP,BVANON,Cap - Mgmnt & Support Services,4PT,Plant Machinery n Equipment,PE2,Level not required,NR5025,01/08/2012,PAY00494945,411.13,Capital,Carlisle Staffing Plc
Brighton & Hove City Council,http://statistics.data.gov.uk/id/local-authority/00ML,Planning Services,BVAPLA,Development Control,DEV,Direct Employees,A,Salaries,AA,01/08/2012,PAY00494945,374.42,Revenue,Carlisle Staffing Plc
Brighton & Hove City Council,http://statistics.data.gov.uk/id/local-authority/00ML,Planning Services,BVAPLA,Economic Development,ECD,Direct Employees,A,Salaries,AA,01/08/2012,PAY00494945,9.25,Revenue,Carlisle Staffing Plc
Brighton & Hove City Council,http://statistics.data.gov.uk/id/local-authority/00ML,Housing Services General Fund,BVAHOG,Homelessness,HML,Premises Related,C,Rents Payable,CC,01/08/2012,PAY00494947,1165.00,Revenue,Payment to Individual
Brighton & Hove City Council,http://statistics.data.gov.uk/id/local-authority/00ML,Cultural and Related Services,BVACUL,Recreation and sport,REC,Supplies and Services,E,Print Stat & Gen Office Exps,ED,01/08/2012,PAY00494949,550.00,Revenue,Hollingdean Development Trust
Brighton & Hove City Council,http://statistics.data.gov.uk/id/local-authority/00ML,Education Services,BVAEDU,Ed - Special Ed,EKE,Third Party Payments,F,Other Agencies,FL,01/08/2012,PAY00494952,43430.33,Revenue,Cambian Asperger Syndrome Services Limited
Brighton & Hove City Council,http://statistics.data.gov.uk/id/local-authority/00ML,Adult Social Care,BVASOC,S Svcs - Older People Svcs,PPL,Third Party Payments,F,Other Establishments,FH,01/08/2012,PAY00494954,1614.97,Revenue,Birchgrove Healthcare (Sussex) Ltd
Brighton & Hove City Council,http://statistics.data.gov.uk/id/local-authority/00ML,Housing Services General Fund,BVAHOG,Hsing Welfare,HGW,Transfer Payments,G,Supporting People,GF,01/08/2012,PAY00494955,3001.58,Revenue,Anchor Trust Rent Account
Brighton & Hove City Council,http://statistics.data.gov.uk/id/local-authority/00ML,Cultural and Related Services,BVACUL,Culture & Heritage,CHG,Premises Related,C,Repair Maint n Alterations,CA,01/08/2012,PAY00494959,2153.60,Revenue,Kudos Hospitality Ltd
Brighton & Hove City Council,http://statistics.data.gov.uk/id/local-authority/00ML,Adult Social Care,BVASOC,S Svcs - Learning Disability,LDY,Third Party Payments,F,Other Establishments,FH,01/08/2012,PAY00494962,1200.24,Revenue,Payment to Individual
Brighton & Hove City Council,http://statistics.data.gov.uk/id/local-authority/00ML,Adult Social Care,BVASOC,S Svcs - Learning Disability,LDY,Customer n Client Receipts,M,Fees n Charges,MB,01/08/2012,PAY00494965,-57.25,Revenue,The Well House
Brighton & Hove City Council,http://statistics.data.gov.uk/id/local-authority/00ML,Adult Social Care,BVASOC,S Svcs - Learning Disability,LDY,Third Party Payments,F,Other Establishments,FH,01/08/2012,PAY00494965,2088.69,Revenue,The Well House
Brighton & Hove City Council,http://statistics.data.gov.uk/id/local-authority/00ML,Adult Social Care,BVASOC,S Svcs - Other Adult Services,ADT,Indirect Employees,B,Training,BM,01/08/2012,PAY00494966,1980.00,Revenue,Payment to Individual
Brighton & Hove City Council,http://statistics.data.gov.uk/id/local-authority/00ML,Children�s Social Care,BVACSC,Management Services (DEC),MGT,Supplies and Services,E,Services,EF,01/08/2012,PAY00494966,895.00,Revenue,Payment to Individual
Brighton & Hove City Council,http://statistics.data.gov.uk/id/local-authority/00ML,Central Services To The Public,BVACEN,Support Services (SSC),PPT,Premises Related,C,Repair Maint n Alterations,CA,01/08/2012,PAY00494967,22892.61,Revenue,Team Waste Southern Ltd
Brighton & Hove City Council,http://statistics.data.gov.uk/id/local-authority/00ML,Central Services To The Public,BVACEN,Support Services (SSC),PPT,Premises Related,C,Repair Maint n Alterations,CA,01/08/2012,PAY00494973,471.00,Revenue,N L C Nova Lift Company Limited
Brighton & Hove City Council,http://statistics.data.gov.uk/id/local-authority/00ML,Non SERCOP,BVANON,Cap - Social Services,4RV,New Construction n Conversion,PB,Level not required,NR5026,01/08/2012,PAY00494974,1654.26,Capital,Tectonic Digital Systems Ltd
Brighton & Hove City Council,http://statistics.data.gov.uk/id/local-authority/00ML,Highways and Transportation,BVAHRT,Public transport,PTR,Supplies and Services,E,Miscellaneous Expenses,EM,01/08/2012,PAY00494975,890.80,Revenue,Sussex Magazines Ltd
Brighton & Hove City Council,http://statistics.data.gov.uk/id/local-authority/00ML,Adult Social Care,BVASOC,S Svcs - Older People Svcs,PPL,Customer n Client Receipts,M,Fees n Charges,MB,01/08/2012,PAY00494976,-1037.00,Revenue,Agincare UK Ltd
Brighton & Hove City Council,http://statistics.data.gov.uk/id/local-authority/00ML,Adult Social Care,BVASOC,S Svcs - Older People Svcs,PPL,Third Party Payments,F,Other Establishments,FH,01/08/2012,PAY00494976,6324.91,Revenue,Agincare UK Ltd
Brighton & Hove City Council,http://statistics.data.gov.uk/id/local-authority/00ML,Adult Social Care,BVASOC,S Svcs - Physical Disability,PDY,Customer n Client Receipts,M,Fees n Charges,MB,01/08/2012,PAY00494976,-38.00,Revenue,Agincare UK Ltd
Brighton & Hove City Council,http://statistics.data.gov.uk/id/local-authority/00ML,Adult Social Care,BVASOC,S Svcs - Physical Disability,PDY,Third Party Payments,F,Other Establishments,FH,01/08/2012,PAY00494976,225.37,Revenue,Agincare UK Ltd
Brighton & Hove City Council,http://statistics.data.gov.uk/id/local-authority/00ML,Housing Services General Fund,BVAHOG,Homelessness,HML,Premises Related,C,Rents Payable,CC,01/08/2012,PAY00494978,5631.08,Revenue,West Pier Services Limited
Brighton & Hove City Council,http://statistics.data.gov.uk/id/local-authority/00ML,Adult Social Care,BVASOC,S Svcs - Learning Disability,LDY,Premises Related,C,Repair Maint n Alterations,CA,01/08/2012,PAY00494986,440.00,Revenue,Lee Sullivan Contract Flooring Limited
Brighton & Hove City Council,http://statistics.data.gov.uk/id/local-authority/00ML,Central Services To The Public,BVACEN,Support Services (SSC),PPT,Premises Related,C,Repair Maint n Alterations,CA,01/08/2012,PAY00494986,1008.50,Revenue,Lee Sullivan Contract Flooring Limited
Brighton & Hove City Council,http://statistics.data.gov.uk/id/local-authority/00ML,Education Services,BVAEDU,Ed - EY - Central,EAE,Premises Related,C,Repair Maint n Alterations,CA,01/08/2012,PAY00494986,145.00,Revenue,Lee Sullivan Contract Flooring Limited
Brighton & Hove City Council,http://statistics.data.gov.uk/id/local-authority/00ML,Non SERCOP,BVANON,Cap - Housing Services - HRA,4HR,New Construction n Conversion,PB,Level not required,NR5026,01/08/2012,PAY00494987,3780.00,Capital,Clearwell Mobility Ltd
Brighton & Hove City Council,http://statistics.data.gov.uk/id/local-authority/00ML,Central Services To The Public,BVACEN,Support Services (SSC),PPT,Supplies and Services,E,Miscellaneous Expenses,EM,01/08/2012,PAY00494988,2202.24,Revenue,The Bikes the Business
Brighton & Hove City Council,http://statistics.data.gov.uk/id/local-authority/00ML,Adult Social Care,BVASOC,S Svcs - Learning Disability,LDY,Premises Related,C,Repair Maint n Alterations,CA,01/08/2012,PAY00494991,198.63,Revenue,NPS South East Ltd
Brighton & Hove City Council,http://statistics.data.gov.uk/id/local-authority/00ML,Central Services To The Public,BVACEN,Support Services (SSC),PPT,Supplies and Services,E,Services,EF,01/08/2012,PAY00494991,8780.80,Revenue,NPS South East Ltd
Brighton & Hove City Council,http://statistics.data.gov.uk/id/local-authority/00ML,Education Services,BVAEDU,Ed - Ed Other - Other,ENF,Premises Related,C,Repair Maint n Alterations,CA,01/08/2012,PAY00494991,5453.97,Revenue,NPS South East Ltd
Brighton & Hove City Council,http://statistics.data.gov.uk/id/local-authority/00ML,Education Services,BVAEDU,Ed - Ed Other - Other,ENF,Third Party Payments,F,Other Local Authorities,FB,01/08/2012,PAY00494991,1299.35,Revenue,NPS South East Ltd
Brighton & Hove City Council,http://statistics.data.gov.uk/id/local-authority/00ML,Non SERCOP,BVANON,Cap - Education Services,4ED,New Construction n Conversion,PB,Level not required,NR5026,01/08/2012,PAY00494991,45392.58,Capital,NPS South East Ltd
Brighton & Hove City Council,http://statistics.data.gov.uk/id/local-authority/00ML,Adult Social Care,BVASOC,Support Services (SSC),PPT,Transport Related,D,Other Transport Costs,DG,01/08/2012,PAY00494994,13.00,Revenue,The Imprest Holder
Brighton & Hove City Council,http://statistics.data.gov.uk/id/local-authority/00ML,Adult Social Care,BVASOC,Support Services (SSC),PPT,Transport Related,D,Public Transport,DD,01/08/2012,PAY00494994,26.80,Revenue,The Imprest Holder
Brighton & Hove City Council,http://statistics.data.gov.uk/id/local-authority/00ML,Central Services To The Public,BVACEN,Emergency Planning,EPL,Transport Related,D,Other Transport Costs,DG,01/08/2012,PAY00494994,7.92,Revenue,The Imprest Holder
Brighton & Hove City Council,http://statistics.data.gov.uk/id/local-authority/00ML,Central Services To The Public,BVACEN,Support Services (SSC),PPT,Supplies and Services,E,Catering,EB,01/08/2012,PAY00494994,2.83,Revenue,The Imprest Holder
Brighton & Hove City Council,http://statistics.data.gov.uk/id/local-authority/00ML,Central Services To The Public,BVACEN,Support Services (SSC),PPT,Supplies and Services,E,Equip't Furniture n Materials,EA,01/08/2012,PAY00494994,24.99,Revenue,The Imprest Holder
Brighton & Hove City Council,http://statistics.data.gov.uk/id/local-authority/00ML,Central Services To The Public,BVACEN,Support Services (SSC),PPT,Supplies and Services,E,Miscellaneous Expenses,EM,01/08/2012,PAY00494994,74.58,Revenue,The Imprest Holder
Brighton & Hove City Council,http://statistics.data.gov.uk/id/local-authority/00ML,Central Services To The Public,BVACEN,Support Services (SSC),PPT,Supplies and Services,E,Print Stat & Gen Office Exps,ED,01/08/2012,PAY00494994,50.81,Revenue,The Imprest Holder
Brighton & Hove City Council,http://statistics.data.gov.uk/id/local-authority/00ML,Central Services To The Public,BVACEN,Support Services (SSC),PPT,Supplies and Services,E,Services,EF,01/08/2012,PAY00494994,44.00,Revenue,The Imprest Holder
Brighton & Hove City Council,http://statistics.data.gov.uk/id/local-authority/00ML,Central Services To The Public,BVACEN,Support Services (SSC),PPT,Transport Related,D,Other Transport Costs,DG,01/08/2012,PAY00494994,51.71,Revenue,The Imprest Holder
Brighton & Hove City Council,http://statistics.data.gov.uk/id/local-authority/00ML,Central Services To The Public,BVACEN,Support Services (SSC),PPT,Transport Related,D,Public Transport,DD,01/08/2012,PAY00494994,228.65,Revenue,The Imprest Holder
Brighton & Hove City Council,http://statistics.data.gov.uk/id/local-authority/00ML,Children�s Social Care,BVACSC,Child Srvcs - Other,FAX,Supplies and Services,E,Catering,EB,01/08/2012,PAY00494994,62.17,Revenue,The Imprest Holder
Brighton & Hove City Council,http://statistics.data.gov.uk/id/local-authority/00ML,Children�s Social Care,BVACSC,Child Srvcs - Other,FAX,Supplies and Services,E,Miscellaneous Expenses,EM,01/08/2012,PAY00494994,11.10,Revenue,The Imprest Holder
Brighton & Hove City Council,http://statistics.data.gov.uk/id/local-authority/00ML,Children�s Social Care,BVACSC,Child Srvcs - Other,FAX,Transfer Payments,G,Other Transfer Payments,GD,01/08/2012,PAY00494994,37.20,Revenue,The Imprest Holder
Brighton & Hove City Council,http://statistics.data.gov.uk/id/local-authority/00ML,Children�s Social Care,BVACSC,Child Srvcs - Other,FAX,Transport Related,D,Other Transport Costs,DG,01/08/2012,PAY00494994,9.00,Revenue,The Imprest Holder
Brighton & Hove City Council,http://statistics.data.gov.uk/id/local-authority/00ML,Children�s Social Care,BVACSC,Child Srvcs - Other,FAX,Transport Related,D,Public Transport,DD,01/08/2012,PAY00494994,36.30,Revenue,The Imprest Holder
Brighton & Hove City Council,http://statistics.data.gov.uk/id/local-authority/00ML,Children�s Social Care,BVACSC,Child Srvcs - Other Fam Supp,FFX,Supplies and Services,E,Print Stat & Gen Office Exps,ED,01/08/2012,PAY00494994,24.08,Revenue,The Imprest Holder
Brighton & Hove City Council,http://statistics.data.gov.uk/id/local-authority/00ML,Children�s Social Care,BVACSC,Child Srvcs - Other Fam Supp,FFX,Supplies and Services,E,Services,EF,01/08/2012,PAY00494994,18.70,Revenue,The Imprest Holder
Brighton & Hove City Council,http://statistics.data.gov.uk/id/local-authority/00ML,Children�s Social Care,BVACSC,Child Srvcs - Other Fam Supp,FFX,Transport Related,D,Other Transport Costs,DG,01/08/2012,PAY00494994,13.50,Revenue,The Imprest Holder
Brighton & Hove City Council,http://statistics.data.gov.uk/id/local-authority/00ML,Children�s Social Care,BVACSC,Child Srvcs - Other Fam Supp,FFX,Transport Related,D,Public Transport,DD,01/08/2012,PAY00494994,4.40,Revenue,The Imprest Holder
Brighton & Hove City Council,http://statistics.data.gov.uk/id/local-authority/00ML,Children�s Social Care,BVACSC,Ed - Ed Other - Strat Mgt,ENM,Transport Related,D,Public Transport,DD,01/08/2012,PAY00494994,8.80,Revenue,The Imprest Holder
Brighton & Hove City Council,http://statistics.data.gov.uk/id/local-authority/00ML,Children�s Social Care,BVACSC,Management Services (DEC),MGT,Transport Related,D,Public Transport,DD,01/08/2012,PAY00494994,34.10,Revenue,The Imprest Holder
Brighton & Hove City Council,http://statistics.data.gov.uk/id/local-authority/00ML,Cultural and Related Services,BVACUL,Recreation and sport,REC,Supplies and Services,E,Miscellaneous Expenses,EM,01/08/2012,PAY00494994,79.34,Revenue,The Imprest Holder
Brighton & Hove City Council,http://statistics.data.gov.uk/id/local-authority/00ML,Cultural and Related Services,BVACUL,Recreation and sport,REC,Supplies and Services,E,Print Stat & Gen Office Exps,ED,01/08/2012,PAY00494994,34.96,Revenue,The Imprest Holder
Brighton & Hove City Council,http://statistics.data.gov.uk/id/local-authority/00ML,Cultural and Related Services,BVACUL,Recreation and sport,REC,Transport Related,D,Other Transport Costs,DG,01/08/2012,PAY00494994,20.17,Revenue,The Imprest Holder
Brighton & Hove City Council,http://statistics.data.gov.uk/id/local-authority/00ML,Cultural and Related Services,BVACUL,Recreation and sport,REC,Transport Related,D,Public Transport,DD,01/08/2012,PAY00494994,15.80,Revenue,The Imprest Holder
Brighton & Hove City Council,http://statistics.data.gov.uk/id/local-authority/00ML,Education Services,BVAEDU,Ed - Ed Other - LA Attrib Sch,ELA,Supplies and Services,E,Miscellaneous Expenses,EM,01/08/2012,PAY00494994,16.57,Revenue,The Imprest Holder
Brighton & Hove City Council,http://statistics.data.gov.uk/id/local-authority/00ML,Education Services,BVAEDU,Ed - Ed Other - LA Attrib Sch,ELA,Transport Related,D,Other Transport Costs,DG,01/08/2012,PAY00494994,6.67,Revenue,The Imprest Holder
Brighton & Hove City Council,http://statistics.data.gov.uk/id/local-authority/00ML,Education Services,BVAEDU,Ed - Ed Other - LA Attrib Sch,ELA,Transport Related,D,Public Transport,DD,01/08/2012,PAY00494994,9.40,Revenue,The Imprest Holder
Brighton & Hove City Council,http://statistics.data.gov.uk/id/local-authority/00ML,Education Services,BVAEDU,Ed - Ed Other - Other,ENF,Transport Related,D,Public Transport,DD,01/08/2012,PAY00494994,46.50,Revenue,The Imprest Holder
Brighton & Hove City Council,http://statistics.data.gov.uk/id/local-authority/00ML,Education Services,BVAEDU,Ed - Mgmt & Support Services,EMG,Supplies and Services,E,Miscellaneous Expenses,EM,01/08/2012,PAY00494994,6.71,Revenue,The Imprest Holder
Brighton & Hove City Council,http://statistics.data.gov.uk/id/local-authority/00ML,Education Services,BVAEDU,Management Services (DEC),MGT,Supplies and Services,E,Print Stat & Gen Office Exps,ED,01/08/2012,PAY00494994,9.83,Revenue,The Imprest Holder
Brighton & Hove City Council,http://statistics.data.gov.uk/id/local-authority/00ML,Housing Services Revnue Acc,BVAHOU,Hsing Management - HRA,HGM,Supplies and Services,E,Print Stat & Gen Office Exps,ED,01/08/2012,PAY00494994,2.44,Revenue,The Imprest Holder
Brighton & Hove City Council,http://statistics.data.gov.uk/id/local-authority/00ML,Housing Services Revnue Acc,BVAHOU,Hsing Management - HRA,HGM,Transport Related,D,Public Transport,DD,01/08/2012,PAY00494994,5.20,Revenue,The Imprest Holder
Brighton & Hove City Council,http://statistics.data.gov.uk/id/local-authority/00ML,Planning Services,BVAPLA,Community Development,CDV,Transport Related,D,Other Transport Costs,DG,01/08/2012,PAY00494994,7.83,Revenue,The Imprest Holder
Brighton & Hove City Council,http://statistics.data.gov.uk/id/local-authority/00ML,Planning Services,BVAPLA,Community Development,CDV,Transport Related,D,Public Transport,DD,01/08/2012,PAY00494994,1.50,Revenue,The Imprest Holder
Brighton & Hove City Council,http://statistics.data.gov.uk/id/local-authority/00ML,Planning Services,BVAPLA,Economic Development,ECD,Supplies and Services,E,Expenses,EJ,01/08/2012,PAY00494994,11.50,Revenue,The Imprest Holder
Brighton & Hove City Council,http://statistics.data.gov.uk/id/local-authority/00ML,Planning Services,BVAPLA,Economic Development,ECD,Supplies and Services,E,Miscellaneous Expenses,EM,01/08/2012,PAY00494994,21.16,Revenue,The Imprest Holder
Brighton & Hove City Council,http://statistics.data.gov.uk/id/local-authority/00ML,Planning Services,BVAPLA,Economic Development,ECD,Supplies and Services,E,Print Stat & Gen Office Exps,ED,01/08/2012,PAY00494994,3.33,Revenue,The Imprest Holder
Brighton & Hove City Council,http://statistics.data.gov.uk/id/local-authority/00ML,Planning Services,BVAPLA,Economic Development,ECD,Transport Related,D,Public Transport,DD,01/08/2012,PAY00494994,56.20,Revenue,The Imprest Holder
Brighton & Hove City Council,http://statistics.data.gov.uk/id/local-authority/00ML,Central Services To The Public,BVACEN,Trading Services,TRD,Customer n Client Receipts,M,Fees n Charges,MB,01/08/2012,PAY00494995,-4.22,Revenue,Cluttons LLP
Brighton & Hove City Council,http://statistics.data.gov.uk/id/local-authority/00ML,Central Services To The Public,BVACEN,Trading Services,TRD,Premises Related,C,Energy Costs,CB,01/08/2012,PAY00494995,92.82,Revenue,Cluttons LLP
Brighton & Hove City Council,http://statistics.data.gov.uk/id/local-authority/00ML,Central Services To The Public,BVACEN,Trading Services,TRD,Supplies and Services,E,Services,EF,01/08/2012,PAY00494995,3896.03,Revenue,Cluttons LLP
Brighton & Hove City Council,http://statistics.data.gov.uk/id/local-authority/00ML,Central Services To The Public,BVACEN,Trading Services,TRD,Third Party Payments,F,Private Contractors,FJ,01/08/2012,PAY00494995,8526.25,Revenue,Cluttons LLP
Brighton & Hove City Council,http://statistics.data.gov.uk/id/local-authority/00ML,Planning Services,BVAPLA,Economic Development,ECD,Premises Related,C,Energy Costs,CB,01/08/2012,PAY00494995,314.44,Revenue,Cluttons LLP
Brighton & Hove City Council,http://statistics.data.gov.uk/id/local-authority/00ML,Planning Services,BVAPLA,Economic Development,ECD,Premises Related,C,Rates,CD,01/08/2012,PAY00494995,-14467.30,Revenue,Cluttons LLP
Brighton & Hove City Council,http://statistics.data.gov.uk/id/local-authority/00ML,Planning Services,BVAPLA,Economic Development,ECD,Third Party Payments,F,Private Contractors,FJ,01/08/2012,PAY00494995,380.00,Revenue,Cluttons LLP
Brighton & Hove City Council,http://statistics.data.gov.uk/id/local-authority/00ML,Non SERCOP,BVANON,Cap - Housing Services - HRA,4HR,New Construction n Conversion,PB,Level not required,NR5026,01/08/2012,PAY00494996,25080.35,Capital,PH Jones 
Brighton & Hove City Council,http://statistics.data.gov.uk/id/local-authority/00ML,Adult Social Care,BVASOC,S Svcs - Learning Disability,LDY,Premises Related,C,Rents Payable,CC,01/08/2012,PAY00494998,875.00,Revenue,Payment to Individual
Brighton & Hove City Council,http://statistics.data.gov.uk/id/local-authority/00ML,Housing Services General Fund,BVAHOG,Hsing Welfare,HGW,Transfer Payments,G,Supporting People,GF,01/08/2012,PAY00495006,12733.91,Revenue,In Touch 
Brighton & Hove City Council,http://statistics.data.gov.uk/id/local-authority/00ML,Housing Services General Fund,BVAHOG,Homelessness,HML,Premises Related,C,Rents Payable,CC,01/08/2012,PAY00495008,775.00,Revenue,Marchmont Estates Ltd
Brighton & Hove City Council,http://statistics.data.gov.uk/id/local-authority/00ML,Housing Services General Fund,BVAHOG,Homelessness,HML,Premises Related,C,Rents Payable,CC,01/08/2012,PAY00495010,775.00,Revenue,Payment to Individual
Brighton & Hove City Council,http://statistics.data.gov.uk/id/local-authority/00ML,Housing Services General Fund,BVAHOG,Homelessness,HML,Premises Related,C,Rents Payable,CC,01/08/2012,PAY00495012,1660.00,Revenue,Payment to Individual
Brighton & Hove City Council,http://statistics.data.gov.uk/id/local-authority/00ML,Housing Services General Fund,BVAHOG,Hsing Welfare,HGW,Transfer Payments,G,Supporting People,GF,01/08/2012,PAY00495014,2802.67,Revenue,Hanover Housing Association
Brighton & Hove City Council,http://statistics.data.gov.uk/id/local-authority/00ML,Adult Social Care,BVASOC,S Svcs - Learning Disability,LDY,Premises Related,C,Cleaning n Domestic Supps,CH,01/08/2012,PAY00495015,92.25,Revenue,The Imprest Holder
Brighton & Hove City Council,http://statistics.data.gov.uk/id/local-authority/00ML,Adult Social Care,BVASOC,S Svcs - Learning Disability,LDY,Supplies and Services,E,Catering,EB,01/08/2012,PAY00495015,755.06,Revenue,The Imprest Holder
Brighton & Hove City Council,http://statistics.data.gov.uk/id/local-authority/00ML,Adult Social Care,BVASOC,S Svcs - Learning Disability,LDY,Supplies and Services,E,Equip't Furniture n Materials,EA,01/08/2012,PAY00495015,34.54,Revenue,The Imprest Holder
Brighton & Hove City Council,http://statistics.data.gov.uk/id/local-authority/00ML,Adult Social Care,BVASOC,S Svcs - Learning Disability,LDY,Supplies and Services,E,Print Stat & Gen Office Exps,ED,01/08/2012,PAY00495015,1.67,Revenue,The Imprest Holder
Brighton & Hove City Council,http://statistics.data.gov.uk/id/local-authority/00ML,Adult Social Care,BVASOC,S Svcs - Learning Disability,LDY,Transport Related,D,Public Transport,DD,01/08/2012,PAY00495015,38.50,Revenue,The Imprest Holder
Brighton & Hove City Council,http://statistics.data.gov.uk/id/local-authority/00ML,Non SERCOP,BVANON,Cap - Transport,4TR,New Construction n Conversion,PB,Level not required,NR5026,01/08/2012,PAY00495017,5589.58,Capital,Urban Initiatives Limited
Brighton & Hove City Council,http://statistics.data.gov.uk/id/local-authority/00ML,Planning Services,BVAPLA,Development Control,DEV,Supplies and Services,E,Miscellaneous Expenses,EM,01/08/2012,PAY00495021,1401.70,Revenue,Alexander Advertising(International)Ltd
Brighton & Hove City Council,http://statistics.data.gov.uk/id/local-authority/00ML,Central Services To The Public,BVACEN,Support Services (SSC),PPT,Supplies and Services,E,Services,EF,01/08/2012,PAY00495022,3327.00,Revenue,Andus Print Limited
Brighton & Hove City Council,http://statistics.data.gov.uk/id/local-authority/00ML,Adult Social Care,BVASOC,S Svcs - Older People Svcs,PPL,Supplies and Services,E,Catering,EB,01/08/2012,PAY00495023,1219.29,Revenue,3663 BFS Group Ltd
Brighton & Hove City Council,http://statistics.data.gov.uk/id/local-authority/00ML,Cultural and Related Services,BVACUL,Culture & Heritage,CHG,Supplies and Services,E,Catering,EB,01/08/2012,PAY00495023,249.63,Revenue,3663 BFS Group Ltd
Brighton & Hove City Council,http://statistics.data.gov.uk/id/local-authority/00ML,Housing Services General Fund,BVAHOG,Homelessness,HML,Supplies and Services,E,Catering,EB,01/08/2012,PAY00495023,416.04,Revenue,3663 BFS Group Ltd
Brighton & Hove City Council,http://statistics.data.gov.uk/id/local-authority/00ML,Cultural and Related Services,BVACUL,Management Services (DEC),MGT,Transport Related,D,Public Transport,DD,01/08/2012,PAY00495024,548.24,Revenue,Brighton & Hove Streamline Taxis Ltd
Brighton & Hove City Council,http://statistics.data.gov.uk/id/local-authority/00ML,Education Services,BVAEDU,Ed - Ed Other - LA Attrib Sch,ELA,Transport Related,D,Other Transport Costs,DG,01/08/2012,PAY00495024,6983.33,Revenue,Brighton & Hove Streamline Taxis Ltd
Brighton & Hove City Council,http://statistics.data.gov.uk/id/local-authority/00ML,Adult Social Care,BVASOC,S Svcs - Asylum Seekers,AYL,Third Party Payments,F,Other Establishments,FH,01/08/2012,PAY00495025,2937.60,Revenue,Brighton Housing Trust
Brighton & Hove City Council,http://statistics.data.gov.uk/id/local-authority/00ML,Housing Services General Fund,BVAHOG,Hsing Welfare,HGW,Transfer Payments,G,Supporting People,GF,01/08/2012,PAY00495025,194509.00,Revenue,Brighton Housing Trust
Brighton & Hove City Council,http://statistics.data.gov.uk/id/local-authority/00ML,Education Services,BVAEDU,Ed - Ed Other - LA Attrib Sch,ELA,Transport Related,D,Other Transport Costs,DG,01/08/2012,PAY00495032,11134.50,Revenue,Community Transport (Bton Hove & Area) Ltd
Brighton & Hove City Council,http://statistics.data.gov.uk/id/local-authority/00ML,Highways and Transportation,BVAHRT,Public transport,PTR,Supplies and Services,E,Miscellaneous Expenses,EM,01/08/2012,PAY00495032,95.00,Revenue,Community Transport (Bton Hove & Area) Ltd
Brighton & Hove City Council,http://statistics.data.gov.uk/id/local-authority/00ML,Highways and Transportation,BVAHRT,Public transport,PTR,Third Party Payments,F,Private Contractors,FJ,01/08/2012,PAY00495032,14516.06,Revenue,Community Transport (Bton Hove & Area) Ltd
Brighton & Hove City Council,http://statistics.data.gov.uk/id/local-authority/00ML,Highways and Transportation,BVAHRT,Public transport,PTR,Transport Related,D,Public Transport,DD,01/08/2012,PAY00495032,27.50,Revenue,Community Transport (Bton Hove & Area) Ltd
Brighton & Hove City Council,http://statistics.data.gov.uk/id/local-authority/00ML,Cultural and Related Services,BVACUL,Culture & Heritage,CHG,Premises Related,C,Repair Maint n Alterations,CA,01/08/2012,PAY00495033,525.00,Revenue,Connick Tree Care Brighton Ltd
Brighton & Hove City Council,http://statistics.data.gov.uk/id/local-authority/00ML,Housing Services General Fund,BVAHOG,Homelessness,HML,Premises Related,C,Rents Payable,CC,01/08/2012,PAY00495034,900.00,Revenue,Payment to Individual
Brighton & Hove City Council,http://statistics.data.gov.uk/id/local-authority/00ML,Highways and Transportation,BVAHRT,Highways and Roads - Mntnce,HRM,Supplies and Services,E,Communications n Computing,EH,01/08/2012,PAY00495035,68.78,Revenue,Dell Computer Corporation Ltd
Brighton & Hove City Council,http://statistics.data.gov.uk/id/local-authority/00ML,Housing Services Revnue Acc,BVAHOU,Hsing Management - HRA,HGM,Supplies and Services,E,Equip't Furniture n Materials,EA,01/08/2012,PAY00495035,591.92,Revenue,Dell Computer Corporation Ltd
Brighton & Hove City Council,http://statistics.data.gov.uk/id/local-authority/00ML,Housing Services General Fund,BVAHOG,Hsing Welfare,HGW,Transfer Payments,G,Supporting People,GF,01/08/2012,PAY00495036,8333.33,Revenue,Affinity Sutton Homes Ltd
Brighton & Hove City Council,http://statistics.data.gov.uk/id/local-authority/00ML,Environment and Regulatory Ser,BVAERS,Community Safety,CMY,Premises Related,C,Repair Maint n Alterations,CA,01/08/2012,PAY00495037,441.05,Revenue,Dockerills (Brighton) Ltd
Brighton & Hove City Council,http://statistics.data.gov.uk/id/local-authority/00ML,Housing Services General Fund,BVAHOG,Homelessness,HML,Premises Related,C,Repair Maint n Alterations,CA,01/08/2012,PAY00495037,136.60,Revenue,Dockerills (Brighton) Ltd
Brighton & Hove City Council,http://statistics.data.gov.uk/id/local-authority/00ML,Housing Services General Fund,BVAHOG,Hsing Welfare,HGW,Transfer Payments,G,Supporting People,GF,01/08/2012,PAY00495039,9135.00,Revenue,Equinox Care
Brighton & Hove City Council,http://statistics.data.gov.uk/id/local-authority/00ML,Education Services,BVAEDU,Ed - Primary Ed,EHE,Supplies and Services,E,Equip't Furniture n Materials,EA,01/08/2012,PAY00495040,45629.00,Revenue,East Sussex County Council
Brighton & Hove City Council,http://statistics.data.gov.uk/id/local-authority/00ML,Cultural and Related Services,BVACUL,Open Spaces,PEN,Third Party Payments,F,Private Contractors,FJ,01/08/2012,PAY00495042,785.94,Revenue,Europlants Interiors  Ltd
Brighton & Hove City Council,http://statistics.data.gov.uk/id/local-authority/00ML,Adult Social Care,BVASOC,S Svcs - Learning Disability,LDY,Customer n Client Receipts,M,Fees n Charges,MB,01/08/2012,PAY00495043,-128.00,Revenue,Payment to Individual
Brighton & Hove City Council,http://statistics.data.gov.uk/id/local-authority/00ML,Adult Social Care,BVASOC,S Svcs - Learning Disability,LDY,Third Party Payments,F,Other Establishments,FH,01/08/2012,PAY00495043,1555.20,Revenue,Payment to Individual
Brighton & Hove City Council,http://statistics.data.gov.uk/id/local-authority/00ML,Adult Social Care,BVASOC,S Svcs - Learning Disability,LDY,Customer n Client Receipts,M,Fees n Charges,MB,01/08/2012,PAY00495044,-180.00,Revenue,Payment to Individual
Brighton & Hove City Council,http://statistics.data.gov.uk/id/local-authority/00ML,Adult Social Care,BVASOC,S Svcs - Learning Disability,LDY,Third Party Payments,F,Other Establishments,FH,01/08/2012,PAY00495044,1726.44,Revenue,Payment to Individual
Brighton & Hove City Council,http://statistics.data.gov.uk/id/local-authority/00ML,Housing Services General Fund,BVAHOG,Hsing Welfare,HGW,Transfer Payments,G,Supporting People,GF,01/08/2012,PAY00495045,5940.00,Revenue,Friends Centre
Brighton & Hove City Council,http://statistics.data.gov.uk/id/local-authority/00ML,Cultural and Related Services,BVACUL,Library Service,LBR,Supplies and Services,E,Grants n Subscriptions,EK,01/08/2012,PAY00495049,735.42,Revenue,DX Network Services Limited
Brighton & Hove City Council,http://statistics.data.gov.uk/id/local-authority/00ML,Housing Services Revnue Acc,BVAHOU,Hsing Management - HRA,HGM,Supplies and Services,E,Services,EF,01/08/2012,PAY00495050,7500.00,Revenue,HQN Limited
Brighton & Hove City Council,http://statistics.data.gov.uk/id/local-authority/00ML,Children�s Social Care,BVACSC,Management Services (DEC),MGT,Supplies and Services,E,Services,EF,01/08/2012,PAY00495052,1150.00,Revenue,Payment to Individual
Brighton & Hove City Council,http://statistics.data.gov.uk/id/local-authority/00ML,Central Services To The Public,BVACEN,Support Services (SSC),PPT,Supplies and Services,E,Services,EF,01/08/2012,PAY00495054,600.00,Revenue,CIPFA Business Ltd
Brighton & Hove City Council,http://statistics.data.gov.uk/id/local-authority/00ML,Highways and Transportation,BVAHRT,Parking Services,PRK,Supplies and Services,E,Equip't Furniture n Materials,EA,01/08/2012,PAY00495055,8920.00,Revenue,J Davies Building Ltd
Brighton & Hove City Council,http://statistics.data.gov.uk/id/local-authority/00ML,Cultural and Related Services,BVACUL,Management Services (DEC),MGT,Transport Related,D,Direct Transport Costs,DA,01/08/2012,PAY00495056,1104.61,Revenue,John Shaw (Machinery) Ltd
Brighton & Hove City Council,http://statistics.data.gov.uk/id/local-authority/00ML,Cultural and Related Services,BVACUL,Culture & Heritage,CHG,Premises Related,C,Repair Maint n Alterations,CA,01/08/2012,PAY00495057,3432.00,Revenue,J R Tasker Contractors Ltd
Brighton & Hove City Council,http://statistics.data.gov.uk/id/local-authority/00ML,Adult Social Care,BVASOC,S Svcs - Learning Disability,LDY,Supplies and Services,E,Miscellaneous Expenses,EM,01/08/2012,PAY00495058,8.70,Revenue,Kent County Council (KCS)
Brighton & Hove City Council,http://statistics.data.gov.uk/id/local-authority/00ML,Adult Social Care,BVASOC,S Svcs - Older People Svcs,PPL,Supplies and Services,E,Print Stat & Gen Office Exps,ED,01/08/2012,PAY00495058,208.64,Revenue,Kent County Council (KCS)
Brighton & Hove City Council,http://statistics.data.gov.uk/id/local-authority/00ML,Central Services To The Public,BVACEN,Ed - EY - Central,EAE,Supplies and Services,E,Equip't Furniture n Materials,EA,01/08/2012,PAY00495058,2.50,Revenue,Kent County Council (KCS)
Brighton & Hove City Council,http://statistics.data.gov.uk/id/local-authority/00ML,Central Services To The Public,BVACEN,Holding Accounts,PPH,Transport Related,D,Direct Transport Costs,DA,01/08/2012,PAY00495058,28905.61,Revenue,Kent County Council (KCS)
Brighton & Hove City Council,http://statistics.data.gov.uk/id/local-authority/00ML,Cultural and Related Services,BVACUL,Ed - Ed Other - Other,ENF,Supplies and Services,E,Equip't Furniture n Materials,EA,01/08/2012,PAY00495058,21.78,Revenue,Kent County Council (KCS)
Brighton & Hove City Council,http://statistics.data.gov.uk/id/local-authority/00ML,Education Services,BVAEDU,Ed - Srvcs YP - Ad & Cmty Ln,ENA,Supplies and Services,E,Print Stat & Gen Office Exps,ED,01/08/2012,PAY00495058,0.00,Revenue,Kent County Council (KCS)
Brighton & Hove City Council,http://statistics.data.gov.uk/id/local-authority/00ML,Cultural and Related Services,BVACUL,Open Spaces,PEN,Third Party Payments,F,Private Contractors,FJ,01/08/2012,PAY00495062,622.50,Revenue,Macconvilles Ltd
Brighton & Hove City Council,http://statistics.data.gov.uk/id/local-authority/00ML,Non SERCOP,BVANON,Cap - Sport & Recreation,4RC,New Construction n Conversion,PB,Level not required,NR5026,01/08/2012,PAY00495062,3695.00,Capital,Macconvilles Ltd
Brighton & Hove City Council,http://statistics.data.gov.uk/id/local-authority/00ML,Adult Social Care,BVASOC,Hsing Welfare,HGW,Supplies and Services,E,Equip't Furniture n Materials,EA,01/08/2012,PAY00495065,35.23,Revenue,Office Depot UK Limited
Brighton & Hove City Council,http://statistics.data.gov.uk/id/local-authority/00ML,Adult Social Care,BVASOC,Hsing Welfare,HGW,Supplies and Services,E,Print Stat & Gen Office Exps,ED,01/08/2012,PAY00495065,67.67,Revenue,Office Depot UK Limited
Brighton & Hove City Council,http://statistics.data.gov.uk/id/local-authority/00ML,Adult Social Care,BVASOC,Management Services (DEC),MGT,Supplies and Services,E,Print Stat & Gen Office Exps,ED,01/08/2012,PAY00495065,35.29,Revenue,Office Depot UK Limited
Brighton & Hove City Council,http://statistics.data.gov.uk/id/local-authority/00ML,Adult Social Care,BVASOC,S Svcs - Learning Disability,LDY,Supplies and Services,E,Equip't Furniture n Materials,EA,01/08/2012,PAY00495065,173.95,Revenue,Office Depot UK Limited
Brighton & Hove City Council,http://statistics.data.gov.uk/id/local-authority/00ML,Adult Social Care,BVASOC,S Svcs - Learning Disability,LDY,Supplies and Services,E,Print Stat & Gen Office Exps,ED,01/08/2012,PAY00495065,464.17,Revenue,Office Depot UK Limited
Brighton & Hove City Council,http://statistics.data.gov.uk/id/local-authority/00ML,Adult Social Care,BVASOC,S Svcs - Older People Svcs,PPL,Supplies and Services,E,Print Stat & Gen Office Exps,ED,01/08/2012,PAY00495065,936.68,Revenue,Office Depot UK Limited
Brighton & Hove City Council,http://statistics.data.gov.uk/id/local-authority/00ML,Adult Social Care,BVASOC,S Svcs - Physical Disability,PDY,Supplies and Services,E,Equip't Furniture n Materials,EA,01/08/2012,PAY00495065,46.01,Revenue,Office Depot UK Limited
Brighton & Hove City Council,http://statistics.data.gov.uk/id/local-authority/00ML,Adult Social Care,BVASOC,S Svcs - Physical Disability,PDY,Supplies and Services,E,Print Stat & Gen Office Exps,ED,01/08/2012,PAY00495065,44.12,Revenue,Office Depot UK Limited
Brighton & Hove City Council,http://statistics.data.gov.uk/id/local-authority/00ML,Adult Social Care,BVASOC,S Svcs - Supported Employment,EMP,Supplies and Services,E,Print Stat & Gen Office Exps,ED,01/08/2012,PAY00495065,233.39,Revenue,Office Depot UK Limited
Brighton & Hove City Council,http://statistics.data.gov.uk/id/local-authority/00ML,Adult Social Care,BVASOC,Support Services (SSC),PPT,Supplies and Services,E,Print Stat & Gen Office Exps,ED,01/08/2012,PAY00495065,96.72,Revenue,Office Depot UK Limited
Brighton & Hove City Council,http://statistics.data.gov.uk/id/local-authority/00ML,Central Services To The Public,BVACEN,Elections,ELE,Supplies and Services,E,Print Stat & Gen Office Exps,ED,01/08/2012,PAY00495065,94.94,Revenue,Office Depot UK Limited
Brighton & Hove City Council,http://statistics.data.gov.uk/id/local-authority/00ML,Central Services To The Public,BVACEN,Emergency Planning,EPL,Supplies and Services,E,Print Stat & Gen Office Exps,ED,01/08/2012,PAY00495065,74.65,Revenue,Office Depot UK Limited
Brighton & Hove City Council,http://statistics.data.gov.uk/id/local-authority/00ML,Central Services To The Public,BVACEN,Holding Accounts,PPH,Supplies and Services,E,Print Stat & Gen Office Exps,ED,01/08/2012,PAY00495065,133.26,Revenue,Office Depot UK Limited
Brighton & Hove City Council,http://statistics.data.gov.uk/id/local-authority/00ML,Central Services To The Public,BVACEN,Local Tax Collection,LTC,Supplies and Services,E,Print Stat & Gen Office Exps,ED,01/08/2012,PAY00495065,69.87,Revenue,Office Depot UK Limited
Brighton & Hove City Council,http://statistics.data.gov.uk/id/local-authority/00ML,Central Services To The Public,BVACEN,Reg - Birth Death and Marriage,RBD,Supplies and Services,E,Print Stat & Gen Office Exps,ED,01/08/2012,PAY00495065,73.26,Revenue,Office Depot UK Limited
Brighton & Hove City Council,http://statistics.data.gov.uk/id/local-authority/00ML,Central Services To The Public,BVACEN,Support Services (SSC),PPT,Supplies and Services,E,Catering,EB,01/08/2012,PAY00495065,3.96,Revenue,Office Depot UK Limited
Brighton & Hove City Council,http://statistics.data.gov.uk/id/local-authority/00ML,Central Services To The Public,BVACEN,Support Services (SSC),PPT,Supplies and Services,E,Equip't Furniture n Materials,EA,01/08/2012,PAY00495065,78.81,Revenue,Office Depot UK Limited
Brighton & Hove City Council,http://statistics.data.gov.uk/id/local-authority/00ML,Central Services To The Public,BVACEN,Support Services (SSC),PPT,Supplies and Services,E,Print Stat & Gen Office Exps,ED,01/08/2012,PAY00495065,3097.22,Revenue,Office Depot UK Limited
Brighton & Hove City Council,http://statistics.data.gov.uk/id/local-authority/00ML,Children�s Social Care,BVACSC,Child Srvcs - Com & Scl Work,FCW,Supplies and Services,E,Catering,EB,01/08/2012,PAY00495065,2.72,Revenue,Office Depot UK Limited
Brighton & Hove City Council,http://statistics.data.gov.uk/id/local-authority/00ML,Children�s Social Care,BVACSC,Child Srvcs - Com & Scl Work,FCW,Supplies and Services,E,Communications n Computing,EH,01/08/2012,PAY00495065,60.00,Revenue,Office Depot UK Limited
Brighton & Hove City Council,http://statistics.data.gov.uk/id/local-authority/00ML,Children�s Social Care,BVACSC,Child Srvcs - Com & Scl Work,FCW,Supplies and Services,E,Equip't Furniture n Materials,EA,01/08/2012,PAY00495065,5.14,Revenue,Office Depot UK Limited
Brighton & Hove City Council,http://statistics.data.gov.uk/id/local-authority/00ML,Children�s Social Care,BVACSC,Child Srvcs - Com & Scl Work,FCW,Supplies and Services,E,Print Stat & Gen Office Exps,ED,01/08/2012,PAY00495065,1429.53,Revenue,Office Depot UK Limited
Brighton & Hove City Council,http://statistics.data.gov.uk/id/local-authority/00ML,Children�s Social Care,BVACSC,Child Srvcs - Family Centres,FFF,Supplies and Services,E,Print Stat & Gen Office Exps,ED,01/08/2012,PAY00495065,191.15,Revenue,Office Depot UK Limited
Brighton & Hove City Council,http://statistics.data.gov.uk/id/local-authority/00ML,Children�s Social Care,BVACSC,Child Srvcs - Fostering,FLF,Supplies and Services,E,Communications n Computing,EH,01/08/2012,PAY00495065,120.00,Revenue,Office Depot UK Limited
Brighton & Hove City Council,http://statistics.data.gov.uk/id/local-authority/00ML,Children�s Social Care,BVACSC,Child Srvcs - Fostering,FLF,Supplies and Services,E,Print Stat & Gen Office Exps,ED,01/08/2012,PAY00495065,280.08,Revenue,Office Depot UK Limited
Brighton & Hove City Council,http://statistics.data.gov.uk/id/local-authority/00ML,Children�s Social Care,BVACSC,Child Srvcs - Leaving Care,FAL,Supplies and Services,E,Miscellaneous Expenses,EM,01/08/2012,PAY00495065,12.30,Revenue,Office Depot UK Limited
Brighton & Hove City Council,http://statistics.data.gov.uk/id/local-authority/00ML,Children�s Social Care,BVACSC,Child Srvcs - Leaving Care,FAL,Supplies and Services,E,Print Stat & Gen Office Exps,ED,01/08/2012,PAY00495065,212.67,Revenue,Office Depot UK Limited
Brighton & Hove City Council,http://statistics.data.gov.uk/id/local-authority/00ML,Children�s Social Care,BVACSC,Child Srvcs - Other,FAX,Supplies and Services,E,Print Stat & Gen Office Exps,ED,01/08/2012,PAY00495065,32.82,Revenue,Office Depot UK Limited
Brighton & Hove City Council,http://statistics.data.gov.uk/id/local-authority/00ML,Children�s Social Care,BVACSC,Child Srvcs - Other Fam Supp,FFX,Supplies and Services,E,Print Stat & Gen Office Exps,ED,01/08/2012,PAY00495065,62.47,Revenue,Office Depot UK Limited
Brighton & Hove City Council,http://statistics.data.gov.uk/id/local-authority/00ML,Children�s Social Care,BVACSC,Ed - Ed Other - Strat Mgt,ENM,Supplies and Services,E,Print Stat & Gen Office Exps,ED,01/08/2012,PAY00495065,83.22,Revenue,Office Depot UK Limited
Brighton & Hove City Council,http://statistics.data.gov.uk/id/local-authority/00ML,Children�s Social Care,BVACSC,Management Services (DEC),MGT,Supplies and Services,E,Print Stat & Gen Office Exps,ED,01/08/2012,PAY00495065,22.26,Revenue,Office Depot UK Limited
Brighton & Hove City Council,http://statistics.data.gov.uk/id/local-authority/00ML,Cultural and Related Services,BVACUL,Culture & Heritage,CHG,Premises Related,C,Repair Maint n Alterations,CA,01/08/2012,PAY00495065,82.21,Revenue,Office Depot UK Limited
Brighton & Hove City Council,http://statistics.data.gov.uk/id/local-authority/00ML,Cultural and Related Services,BVACUL,Culture & Heritage,CHG,Supplies and Services,E,Equip't Furniture n Materials,EA,01/08/2012,PAY00495065,93.22,Revenue,Office Depot UK Limited
Brighton & Hove City Council,http://statistics.data.gov.uk/id/local-authority/00ML,Cultural and Related Services,BVACUL,Culture & Heritage,CHG,Supplies and Services,E,Print Stat & Gen Office Exps,ED,01/08/2012,PAY00495065,770.42,Revenue,Office Depot UK Limited
Brighton & Hove City Council,http://statistics.data.gov.uk/id/local-authority/00ML,Cultural and Related Services,BVACUL,Culture & Heritage,CHG,Supplies and Services,E,Services,EF,01/08/2012,PAY00495065,88.04,Revenue,Office Depot UK Limited
Brighton & Hove City Council,http://statistics.data.gov.uk/id/local-authority/00ML,Cultural and Related Services,BVACUL,Library Service,LBR,Premises Related,C,Cleaning n Domestic Supps,CH,01/08/2012,PAY00495065,122.09,Revenue,Office Depot UK Limited
Brighton & Hove City Council,http://statistics.data.gov.uk/id/local-authority/00ML,Cultural and Related Services,BVACUL,Library Service,LBR,Supplies and Services,E,Catering,EB,01/08/2012,PAY00495065,171.52,Revenue,Office Depot UK Limited
Brighton & Hove City Council,http://statistics.data.gov.uk/id/local-authority/00ML,Cultural and Related Services,BVACUL,Library Service,LBR,Supplies and Services,E,Communications n Computing,EH,01/08/2012,PAY00495065,100.00,Revenue,Office Depot UK Limited
Brighton & Hove City Council,http://statistics.data.gov.uk/id/local-authority/00ML,Cultural and Related Services,BVACUL,Library Service,LBR,Supplies and Services,E,Print Stat & Gen Office Exps,ED,01/08/2012,PAY00495065,1314.62,Revenue,Office Depot UK Limited
Brighton & Hove City Council,http://statistics.data.gov.uk/id/local-authority/00ML,Cultural and Related Services,BVACUL,Management Services (DEC),MGT,Supplies and Services,E,Print Stat & Gen Office Exps,ED,01/08/2012,PAY00495065,386.27,Revenue,Office Depot UK Limited
Brighton & Hove City Council,http://statistics.data.gov.uk/id/local-authority/00ML,Cultural and Related Services,BVACUL,Open Spaces,PEN,Supplies and Services,E,Equip't Furniture n Materials,EA,01/08/2012,PAY00495065,138.13,Revenue,Office Depot UK Limited
Brighton & Hove City Council,http://statistics.data.gov.uk/id/local-authority/00ML,Cultural and Related Services,BVACUL,Recreation and sport,REC,Supplies and Services,E,Equip't Furniture n Materials,EA,01/08/2012,PAY00495065,67.85,Revenue,Office Depot UK Limited
Brighton & Hove City Council,http://statistics.data.gov.uk/id/local-authority/00ML,Cultural and Related Services,BVACUL,Recreation and sport,REC,Supplies and Services,E,Print Stat & Gen Office Exps,ED,01/08/2012,PAY00495065,450.58,Revenue,Office Depot UK Limited
Brighton & Hove City Council,http://statistics.data.gov.uk/id/local-authority/00ML,Cultural and Related Services,BVACUL,Tourism,TRM,Supplies and Services,E,Print Stat & Gen Office Exps,ED,01/08/2012,PAY00495065,42.21,Revenue,Office Depot UK Limited
Brighton & Hove City Council,http://statistics.data.gov.uk/id/local-authority/00ML,Education Services,BVAEDU,Ed - Ed Other - LA Attrib Sch,ELA,Third Party Payments,F,Other Establishments,FH,01/08/2012,PAY00495065,32.51,Revenue,Office Depot UK Limited
Brighton & Hove City Council,http://statistics.data.gov.uk/id/local-authority/00ML,Education Services,BVAEDU,Ed - Ed Other - Other,ENF,Supplies and Services,E,Equip't Furniture n Materials,EA,01/08/2012,PAY00495065,120.13,Revenue,Office Depot UK Limited
Brighton & Hove City Council,http://statistics.data.gov.uk/id/local-authority/00ML,Education Services,BVAEDU,Ed - Ed Other - Other,ENF,Supplies and Services,E,Print Stat & Gen Office Exps,ED,01/08/2012,PAY00495065,153.17,Revenue,Office Depot UK Limited
Brighton & Hove City Council,http://statistics.data.gov.uk/id/local-authority/00ML,Education Services,BVAEDU,Ed - Ed Other - Strat Mgt,ENM,Supplies and Services,E,Print Stat & Gen Office Exps,ED,01/08/2012,PAY00495065,31.07,Revenue,Office Depot UK Limited
Brighton & Hove City Council,http://statistics.data.gov.uk/id/local-authority/00ML,Education Services,BVAEDU,Ed - EY - Central,EAE,Premises Related,C,Cleaning n Domestic Supps,CH,01/08/2012,PAY00495065,31.62,Revenue,Office Depot UK Limited
Brighton & Hove City Council,http://statistics.data.gov.uk/id/local-authority/00ML,Education Services,BVAEDU,Ed - EY - Central,EAE,Supplies and Services,E,Catering,EB,01/08/2012,PAY00495065,40.52,Revenue,Office Depot UK Limited
Brighton & Hove City Council,http://statistics.data.gov.uk/id/local-authority/00ML,Education Services,BVAEDU,Ed - EY - Central,EAE,Supplies and Services,E,Equip't Furniture n Materials,EA,01/08/2012,PAY00495065,18.53,Revenue,Office Depot UK Limited
Brighton & Hove City Council,http://statistics.data.gov.uk/id/local-authority/00ML,Education Services,BVAEDU,Ed - EY - Central,EAE,Supplies and Services,E,Print Stat & Gen Office Exps,ED,01/08/2012,PAY00495065,2469.82,Revenue,Office Depot UK Limited
Brighton & Hove City Council,http://statistics.data.gov.uk/id/local-authority/00ML,Education Services,BVAEDU,Ed - Mgmt & Support Services,EMG,Supplies and Services,E,Communications n Computing,EH,01/08/2012,PAY00495065,161.84,Revenue,Office Depot UK Limited
Brighton & Hove City Council,http://statistics.data.gov.uk/id/local-authority/00ML,Education Services,BVAEDU,Ed - Mgmt & Support Services,EMG,Supplies and Services,E,Equip't Furniture n Materials,EA,01/08/2012,PAY00495065,21.41,Revenue,Office Depot UK Limited
Brighton & Hove City Council,http://statistics.data.gov.uk/id/local-authority/00ML,Education Services,BVAEDU,Ed - Mgmt & Support Services,EMG,Supplies and Services,E,Print Stat & Gen Office Exps,ED,01/08/2012,PAY00495065,227.30,Revenue,Office Depot UK Limited
Brighton & Hove City Council,http://statistics.data.gov.uk/id/local-authority/00ML,Education Services,BVAEDU,Ed - Secondary Ed,EJE,Supplies and Services,E,Print Stat & Gen Office Exps,ED,01/08/2012,PAY00495065,111.90,Revenue,Office Depot UK Limited
Brighton & Hove City Council,http://statistics.data.gov.uk/id/local-authority/00ML,Education Services,BVAEDU,Ed - Special Ed,EKE,Premises Related,C,Cleaning n Domestic Supps,CH,01/08/2012,PAY00495065,291.37,Revenue,Office Depot UK Limited
Brighton & Hove City Council,http://statistics.data.gov.uk/id/local-authority/00ML,Education Services,BVAEDU,Ed - Special Ed,EKE,Supplies and Services,E,Communications n Computing,EH,01/08/2012,PAY00495065,134.50,Revenue,Office Depot UK Limited
Brighton & Hove City Council,http://statistics.data.gov.uk/id/local-authority/00ML,Education Services,BVAEDU,Ed - Special Ed,EKE,Supplies and Services,E,Equip't Furniture n Materials,EA,01/08/2012,PAY00495065,15.92,Revenue,Office Depot UK Limited
Brighton & Hove City Council,http://statistics.data.gov.uk/id/local-authority/00ML,Education Services,BVAEDU,Ed - Special Ed,EKE,Supplies and Services,E,Miscellaneous Expenses,EM,01/08/2012,PAY00495065,11.56,Revenue,Office Depot UK Limited
Brighton & Hove City Council,http://statistics.data.gov.uk/id/local-authority/00ML,Education Services,BVAEDU,Ed - Special Ed,EKE,Supplies and Services,E,Print Stat & Gen Office Exps,ED,01/08/2012,PAY00495065,479.29,Revenue,Office Depot UK Limited
Brighton & Hove City Council,http://statistics.data.gov.uk/id/local-authority/00ML,Education Services,BVAEDU,Ed - Srvcs YP - Ad & Cmty Ln,ENA,Supplies and Services,E,Print Stat & Gen Office Exps,ED,01/08/2012,PAY00495065,95.35,Revenue,Office Depot UK Limited
Brighton & Hove City Council,http://statistics.data.gov.uk/id/local-authority/00ML,Education Services,BVAEDU,Ed - Srvcs YP - Youth Srvcs,ENY,Supplies and Services,E,Catering,EB,01/08/2012,PAY00495065,59.18,Revenue,Office Depot UK Limited
Brighton & Hove City Council,http://statistics.data.gov.uk/id/local-authority/00ML,Education Services,BVAEDU,Ed - Srvcs YP - Youth Srvcs,ENY,Supplies and Services,E,Print Stat & Gen Office Exps,ED,01/08/2012,PAY00495065,363.11,Revenue,Office Depot UK Limited
Brighton & Hove City Council,http://statistics.data.gov.uk/id/local-authority/00ML,Education Services,BVAEDU,Ed - Srvcs YP - Youth Srvcs,ENY,Third Party Payments,F,Other Establishments,FH,01/08/2012,PAY00495065,4.31,Revenue,Office Depot UK Limited
Brighton & Hove City Council,http://statistics.data.gov.uk/id/local-authority/00ML,Education Services,BVAEDU,Management Services (DEC),MGT,Supplies and Services,E,Catering,EB,01/08/2012,PAY00495065,7.50,Revenue,Office Depot UK Limited
Brighton & Hove City Council,http://statistics.data.gov.uk/id/local-authority/00ML,Education Services,BVAEDU,Management Services (DEC),MGT,Supplies and Services,E,Print Stat & Gen Office Exps,ED,01/08/2012,PAY00495065,306.43,Revenue,Office Depot UK Limited
Brighton & Hove City Council,http://statistics.data.gov.uk/id/local-authority/00ML,Environment and Regulatory Ser,BVAERS,Cem Crem and Mortuary Services,CCM,Supplies and Services,E,Print Stat & Gen Office Exps,ED,01/08/2012,PAY00495065,72.62,Revenue,Office Depot UK Limited
Brighton & Hove City Council,http://statistics.data.gov.uk/id/local-authority/00ML,Environment and Regulatory Ser,BVAERS,Community Safety,CMY,Supplies and Services,E,Grants n Subscriptions,EK,01/08/2012,PAY00495065,38.99,Revenue,Office Depot UK Limited
Brighton & Hove City Council,http://statistics.data.gov.uk/id/local-authority/00ML,Environment and Regulatory Ser,BVAERS,Community Safety,CMY,Supplies and Services,E,Print Stat & Gen Office Exps,ED,01/08/2012,PAY00495065,324.75,Revenue,Office Depot UK Limited
Brighton & Hove City Council,http://statistics.data.gov.uk/id/local-authority/00ML,Environment and Regulatory Ser,BVAERS,Consumer Protection,CNP,Supplies and Services,E,Print Stat & Gen Office Exps,ED,01/08/2012,PAY00495065,62.01,Revenue,Office Depot UK Limited
Brighton & Hove City Council,http://statistics.data.gov.uk/id/local-authority/00ML,Environment and Regulatory Ser,BVAERS,Court Services,CRT,Supplies and Services,E,Print Stat & Gen Office Exps,ED,01/08/2012,PAY00495065,267.47,Revenue,Office Depot UK Limited
Brighton & Hove City Council,http://statistics.data.gov.uk/id/local-authority/00ML,Environment and Regulatory Ser,BVAERS,Environmental Health,EVH,Supplies and Services,E,Print Stat & Gen Office Exps,ED,01/08/2012,PAY00495065,525.83,Revenue,Office Depot UK Limited
Brighton & Hove City Council,http://statistics.data.gov.uk/id/local-authority/00ML,Environment and Regulatory Ser,BVAERS,Management Services (DEC),MGT,Supplies and Services,E,Print Stat & Gen Office Exps,ED,01/08/2012,PAY00495065,391.48,Revenue,Office Depot UK Limited
Brighton & Hove City Council,http://statistics.data.gov.uk/id/local-authority/00ML,Environment and Regulatory Ser,BVAERS,Street Cleansing,CLE,Supplies and Services,E,Equip't Furniture n Materials,EA,01/08/2012,PAY00495065,104.22,Revenue,Office Depot UK Limited
Brighton & Hove City Council,http://statistics.data.gov.uk/id/local-authority/00ML,Highways and Transportation,BVAHRT,Highways and Roads - Mntnce,HRM,Supplies and Services,E,Print Stat & Gen Office Exps,ED,01/08/2012,PAY00495065,427.19,Revenue,Office Depot UK Limited
Brighton & Hove City Council,http://statistics.data.gov.uk/id/local-authority/00ML,Highways and Transportation,BVAHRT,Parking Services,PRK,Indirect Employees,B,Training,BM,01/08/2012,PAY00495065,117.25,Revenue,Office Depot UK Limited
Brighton & Hove City Council,http://statistics.data.gov.uk/id/local-authority/00ML,Highways and Transportation,BVAHRT,Parking Services,PRK,Supplies and Services,E,Print Stat & Gen Office Exps,ED,01/08/2012,PAY00495065,1580.13,Revenue,Office Depot UK Limited
Brighton & Hove City Council,http://statistics.data.gov.uk/id/local-authority/00ML,Housing Services General Fund,BVAHOG,Homelessness,HML,Premises Related,C,Repair Maint n Alterations,CA,01/08/2012,PAY00495065,22.00,Revenue,Office Depot UK Limited
Brighton & Hove City Council,http://statistics.data.gov.uk/id/local-authority/00ML,Housing Services General Fund,BVAHOG,Homelessness,HML,Supplies and Services,E,Equip't Furniture n Materials,EA,01/08/2012,PAY00495065,8.12,Revenue,Office Depot UK Limited
Brighton & Hove City Council,http://statistics.data.gov.uk/id/local-authority/00ML,Housing Services General Fund,BVAHOG,Homelessness,HML,Supplies and Services,E,Print Stat & Gen Office Exps,ED,01/08/2012,PAY00495065,123.81,Revenue,Office Depot UK Limited
Brighton & Hove City Council,http://statistics.data.gov.uk/id/local-authority/00ML,Housing Services General Fund,BVAHOG,Hsing Benefits,HGB,Supplies and Services,E,Print Stat & Gen Office Exps,ED,01/08/2012,PAY00495065,110.84,Revenue,Office Depot UK Limited
Brighton & Hove City Council,http://statistics.data.gov.uk/id/local-authority/00ML,Housing Services General Fund,BVAHOG,Hsing Strat Advice and RSLs,HGR,Supplies and Services,E,Print Stat & Gen Office Exps,ED,01/08/2012,PAY00495065,150.12,Revenue,Office Depot UK Limited
Brighton & Hove City Council,http://statistics.data.gov.uk/id/local-authority/00ML,Housing Services General Fund,BVAHOG,Hsing Welfare,HGW,Supplies and Services,E,Print Stat & Gen Office Exps,ED,01/08/2012,PAY00495065,121.32,Revenue,Office Depot UK Limited
Brighton & Hove City Council,http://statistics.data.gov.uk/id/local-authority/00ML,Housing Services General Fund,BVAHOG,Management Services (DEC),MGT,Supplies and Services,E,Print Stat & Gen Office Exps,ED,01/08/2012,PAY00495065,54.86,Revenue,Office Depot UK Limited
Brighton & Hove City Council,http://statistics.data.gov.uk/id/local-authority/00ML,Housing Services General Fund,BVAHOG,Private Sector Hsing Renewal,PHR,Supplies and Services,E,Print Stat & Gen Office Exps,ED,01/08/2012,PAY00495065,83.02,Revenue,Office Depot UK Limited
Brighton & Hove City Council,http://statistics.data.gov.uk/id/local-authority/00ML,Housing Services General Fund,BVAHOG,Support Services (SSC),PPT,Supplies and Services,E,Print Stat & Gen Office Exps,ED,01/08/2012,PAY00495065,1.12,Revenue,Office Depot UK Limited
Brighton & Hove City Council,http://statistics.data.gov.uk/id/local-authority/00ML,Housing Services Revnue Acc,BVAHOU,Hsing Management - HRA,HGM,Supplies and Services,E,Equip't Furniture n Materials,EA,01/08/2012,PAY00495065,79.47,Revenue,Office Depot UK Limited
Brighton & Hove City Council,http://statistics.data.gov.uk/id/local-authority/00ML,Housing Services Revnue Acc,BVAHOU,Hsing Management - HRA,HGM,Supplies and Services,E,Print Stat & Gen Office Exps,ED,01/08/2012,PAY00495065,862.27,Revenue,Office Depot UK Limited
Brighton & Hove City Council,http://statistics.data.gov.uk/id/local-authority/00ML,Non SERCOP,BVANON,Non-Council,NNC,Supplies and Services,E,Print Stat & Gen Office Exps,ED,01/08/2012,PAY00495065,139.17,Revenue,Office Depot UK Limited
Brighton & Hove City Council,http://statistics.data.gov.uk/id/local-authority/00ML,Planning Services,BVAPLA,Building Control,BLD,Supplies and Services,E,Print Stat & Gen Office Exps,ED,01/08/2012,PAY00495065,97.50,Revenue,Office Depot UK Limited
Brighton & Hove City Council,http://statistics.data.gov.uk/id/local-authority/00ML,Planning Services,BVAPLA,Development Control,DEV,Supplies and Services,E,Print Stat & Gen Office Exps,ED,01/08/2012,PAY00495065,112.13,Revenue,Office Depot UK Limited
Brighton & Hove City Council,http://statistics.data.gov.uk/id/local-authority/00ML,Planning Services,BVAPLA,Economic Development,ECD,Supplies and Services,E,Miscellaneous Expenses,EM,01/08/2012,PAY00495065,32.77,Revenue,Office Depot UK Limited
Brighton & Hove City Council,http://statistics.data.gov.uk/id/local-authority/00ML,Planning Services,BVAPLA,Economic Development,ECD,Supplies and Services,E,Print Stat & Gen Office Exps,ED,01/08/2012,PAY00495065,30.10,Revenue,Office Depot UK Limited
Brighton & Hove City Council,http://statistics.data.gov.uk/id/local-authority/00ML,Planning Services,BVAPLA,Management Services (DEC),MGT,Supplies and Services,E,Print Stat & Gen Office Exps,ED,01/08/2012,PAY00495065,33.78,Revenue,Office Depot UK Limited
Brighton & Hove City Council,http://statistics.data.gov.uk/id/local-authority/00ML,Housing Services General Fund,BVAHOG,Hsing Welfare,HGW,Transfer Payments,G,Supporting People,GF,01/08/2012,PAY00495070,12241.17,Revenue,Impact Initiatives
Brighton & Hove City Council,http://statistics.data.gov.uk/id/local-authority/00ML,Cultural and Related Services,BVACUL,Culture & Heritage,CHG,Premises Related,C,Repair Maint n Alterations,CA,01/08/2012,PAY00495074,1210.00,Revenue,P & R Building Contractors Ltd
Brighton & Hove City Council,http://statistics.data.gov.uk/id/local-authority/00ML,Non SERCOP,BVANON,Cap - Education Services,4ED,Plant Machinery n Equipment,PE2,Level not required,NR5025,01/08/2012,PAY00495075,1323.20,Capital,Remploy Ltd
Brighton & Hove City Council,http://statistics.data.gov.uk/id/local-authority/00ML,Adult Social Care,BVASOC,S Svcs - Mental Health,MHT,Third Party Payments,F,Other Establishments,FH,01/08/2012,PAY00495076,2071.38,Revenue,Action on Hearing loss
Brighton & Hove City Council,http://statistics.data.gov.uk/id/local-authority/00ML,Adult Social Care,BVASOC,S Svcs - Physical Disability,PDY,Customer n Client Receipts,M,Fees n Charges,MB,01/08/2012,PAY00495076,-352.00,Revenue,Action on Hearing loss
Brighton & Hove City Council,http://statistics.data.gov.uk/id/local-authority/00ML,Adult Social Care,BVASOC,S Svcs - Physical Disability,PDY,Third Party Payments,F,Other Establishments,FH,01/08/2012,PAY00495076,2457.72,Revenue,Action on Hearing loss
Brighton & Hove City Council,http://statistics.data.gov.uk/id/local-authority/00ML,Housing Services General Fund,BVAHOG,Hsing Welfare,HGW,Transfer Payments,G,Supporting People,GF,01/08/2012,PAY00495077,37670.83,Revenue,Sanctuary Housing Association
Brighton & Hove City Council,http://statistics.data.gov.uk/id/local-authority/00ML,Central Services To The Public,BVACEN,Support Services (SSC),PPT,Premises Related,C,Repair Maint n Alterations,CA,01/08/2012,PAY00495080,637.50,Revenue,Thomas Door & Window Controls Ltd
Brighton & Hove City Council,http://statistics.data.gov.uk/id/local-authority/00ML,Education Services,BVAEDU,Ed - Ed Other - LA Attrib Sch,ELA,Transport Related,D,Other Transport Costs,DG,01/08/2012,PAY00495081,17392.04,Revenue,B & H City Cabs
Brighton & Hove City Council,http://statistics.data.gov.uk/id/local-authority/00ML,Housing Services General Fund,BVAHOG,Homelessness,HML,Supplies and Services,E,Miscellaneous Expenses,EM,01/08/2012,PAY00495081,14.28,Revenue,B & H City Cabs
Brighton & Hove City Council,http://statistics.data.gov.uk/id/local-authority/00ML,Housing Services General Fund,BVAHOG,Homelessness,HML,Transport Related,D,Public Transport,DD,01/08/2012,PAY00495081,56.28,Revenue,B & H City Cabs
Brighton & Hove City Council,http://statistics.data.gov.uk/id/local-authority/00ML,Housing Services Revnue Acc,BVAHOU,Hsing Management - HRA,HGM,Transport Related,D,Public Transport,DD,01/08/2012,PAY00495081,87.67,Revenue,B & H City Cabs
Brighton & Hove City Council,http://statistics.data.gov.uk/id/local-authority/00ML,Central Services To The Public,BVACEN,Support Services (SSC),PPT,Supplies and Services,E,Services,EF,01/08/2012,PAY00495086,1463.06,Revenue,Technical Engineering Ltd
Brighton & Hove City Council,http://statistics.data.gov.uk/id/local-authority/00ML,Education Services,BVAEDU,Ed - Mgmt & Support Services,EMG,Premises Related,C,Rents Payable,CC,01/08/2012,PAY00495089,1428.90,Revenue,University of Brighton Trading Co Ltd
Brighton & Hove City Council,http://statistics.data.gov.uk/id/local-authority/00ML,Central Services To The Public,BVACEN,Support Services (SSC),PPT,Premises Related,C,Repair Maint n Alterations,CA,01/08/2012,PAY00495090,1734.00,Revenue,Wakefield Security Systems Ltd
Brighton & Hove City Council,http://statistics.data.gov.uk/id/local-authority/00ML,Central Services To The Public,BVACEN,Support Services (SSC),PPT,Premises Related,C,Cleaning n Domestic Supps,CH,01/08/2012,PAY00495093,10627.34,Revenue,Wightman & Parrish Ltd
Brighton & Hove City Council,http://statistics.data.gov.uk/id/local-authority/00ML,Cultural and Related Services,BVACUL,Library Service,LBR,Premises Related,C,Cleaning n Domestic Supps,CH,01/08/2012,PAY00495093,33.15,Revenue,Wightman & Parrish Ltd
Brighton & Hove City Council,http://statistics.data.gov.uk/id/local-authority/00ML,Education Services,BVAEDU,Ed - EY - Central,EAE,Premises Related,C,Cleaning n Domestic Supps,CH,01/08/2012,PAY00495093,-51.07,Revenue,Wightman & Parrish Ltd
Brighton & Hove City Council,http://statistics.data.gov.uk/id/local-authority/00ML,Education Services,BVAEDU,Ed - Srvcs YP - Youth Srvcs,ENY,Premises Related,C,Cleaning n Domestic Supps,CH,01/08/2012,PAY00495093,-30.99,Revenue,Wightman & Parrish Ltd
Brighton & Hove City Council,http://statistics.data.gov.uk/id/local-authority/00ML,Environment and Regulatory Ser,BVAERS,Community Safety,CMY,Third Party Payments,F,Other Establishments,FH,01/08/2012,PAY00495094,179535.00,Revenue,"R.I.S.E (Refuge, Information, Support & Education)"
Brighton & Hove City Council,http://statistics.data.gov.uk/id/local-authority/00ML,Housing Services General Fund,BVAHOG,Hsing Welfare,HGW,Transfer Payments,G,Supporting People,GF,01/08/2012,PAY00495094,20086.08,Revenue,"R.I.S.E (Refuge, Information, Support & Education)"
Brighton & Hove City Council,http://statistics.data.gov.uk/id/local-authority/00ML,Children�s Social Care,BVACSC,Child Srvcs - Adoption,FAA,Supplies and Services,E,Miscellaneous Expenses,EM,01/08/2012,PAY00495095,888.00,Revenue,BAAF Registered Charity
Brighton & Hove City Council,http://statistics.data.gov.uk/id/local-authority/00ML,Adult Social Care,BVASOC,S Svcs - Learning Disability,LDY,Customer n Client Receipts,M,Fees n Charges,MB,01/08/2012,PAY00495096,-98.00,Revenue,Carewatch (Brighton & Hove)
Brighton & Hove City Council,http://statistics.data.gov.uk/id/local-authority/00ML,Adult Social Care,BVASOC,S Svcs - Learning Disability,LDY,Third Party Payments,F,Other Establishments,FH,01/08/2012,PAY00495096,552.89,Revenue,Carewatch (Brighton & Hove)
Brighton & Hove City Council,http://statistics.data.gov.uk/id/local-authority/00ML,Adult Social Care,BVASOC,S Svcs - Mental Health,MHT,Customer n Client Receipts,M,Fees n Charges,MB,01/08/2012,PAY00495096,54.00,Revenue,Carewatch (Brighton & Hove)
Brighton & Hove City Council,http://statistics.data.gov.uk/id/local-authority/00ML,Adult Social Care,BVASOC,S Svcs - Mental Health,MHT,Third Party Payments,F,Other Establishments,FH,01/08/2012,PAY00495096,509.65,Revenue,Carewatch (Brighton & Hove)
Brighton & Hove City Council,http://statistics.data.gov.uk/id/local-authority/00ML,Adult Social Care,BVASOC,S Svcs - Older People Svcs,PPL,Customer n Client Receipts,M,Fees n Charges,MB,01/08/2012,PAY00495096,-215.00,Revenue,Carewatch (Brighton & Hove)
Brighton & Hove City Council,http://statistics.data.gov.uk/id/local-authority/00ML,Adult Social Care,BVASOC,S Svcs - Older People Svcs,PPL,Supplies and Services,E,Miscellaneous Expenses,EM,01/08/2012,PAY00495096,690.00,Revenue,Carewatch (Brighton & Hove)
Brighton & Hove City Council,http://statistics.data.gov.uk/id/local-authority/00ML,Adult Social Care,BVASOC,S Svcs - Older People Svcs,PPL,Third Party Payments,F,Other Establishments,FH,01/08/2012,PAY00495096,27311.52,Revenue,Carewatch (Brighton & Hove)
Brighton & Hove City Council,http://statistics.data.gov.uk/id/local-authority/00ML,Adult Social Care,BVASOC,S Svcs - Other Adult Services,ADT,Third Party Payments,F,Other Establishments,FH,01/08/2012,PAY00495096,159.51,Revenue,Carewatch (Brighton & Hove)
Brighton & Hove City Council,http://statistics.data.gov.uk/id/local-authority/00ML,Adult Social Care,BVASOC,S Svcs - Physical Disability,PDY,Customer n Client Receipts,M,Fees n Charges,MB,01/08/2012,PAY00495096,1023.00,Revenue,Carewatch (Brighton & Hove)
Brighton & Hove City Council,http://statistics.data.gov.uk/id/local-authority/00ML,Adult Social Care,BVASOC,S Svcs - Physical Disability,PDY,Third Party Payments,F,Other Establishments,FH,01/08/2012,PAY00495096,6337.20,Revenue,Carewatch (Brighton & Hove)
Brighton & Hove City Council,http://statistics.data.gov.uk/id/local-authority/00ML,Adult Social Care,BVASOC,S Svcs - Learning Disability,LDY,Third Party Payments,F,Other Establishments,FH,01/08/2012,PAY00495097,42.00,Revenue,Enara Community Care
Brighton & Hove City Council,http://statistics.data.gov.uk/id/local-authority/00ML,Adult Social Care,BVASOC,S Svcs - Mental Health,MHT,Third Party Payments,F,Other Establishments,FH,01/08/2012,PAY00495097,215.74,Revenue,Enara Community Care
Brighton & Hove City Council,http://statistics.data.gov.uk/id/local-authority/00ML,Adult Social Care,BVASOC,S Svcs - Older People Svcs,PPL,Customer n Client Receipts,M,Fees n Charges,MB,01/08/2012,PAY00495097,744.96,Revenue,Enara Community Care
Brighton & Hove City Council,http://statistics.data.gov.uk/id/local-authority/00ML,Adult Social Care,BVASOC,S Svcs - Older People Svcs,PPL,Third Party Payments,F,Other Establishments,FH,01/08/2012,PAY00495097,15229.60,Revenue,Enara Community Care
Brighton & Hove City Council,http://statistics.data.gov.uk/id/local-authority/00ML,Adult Social Care,BVASOC,S Svcs - Other Adult Services,ADT,Customer n Client Receipts,M,Fees n Charges,MB,01/08/2012,PAY00495097,-10.00,Revenue,Enara Community Care
Brighton & Hove City Council,http://statistics.data.gov.uk/id/local-authority/00ML,Adult Social Care,BVASOC,S Svcs - Other Adult Services,ADT,Third Party Payments,F,Other Establishments,FH,01/08/2012,PAY00495097,42.00,Revenue,Enara Community Care
Brighton & Hove City Council,http://statistics.data.gov.uk/id/local-authority/00ML,Adult Social Care,BVASOC,S Svcs - Physical Disability,PDY,Customer n Client Receipts,M,Fees n Charges,MB,01/08/2012,PAY00495097,-337.20,Revenue,Enara Community Care
Brighton & Hove City Council,http://statistics.data.gov.uk/id/local-authority/00ML,Adult Social Care,BVASOC,S Svcs - Physical Disability,PDY,Third Party Payments,F,Other Establishments,FH,01/08/2012,PAY00495097,3000.22,Revenue,Enara Community Care
Brighton & Hove City Council,http://statistics.data.gov.uk/id/local-authority/00ML,Adult Social Care,BVASOC,S Svcs - Learning Disability,LDY,Customer n Client Receipts,M,Fees n Charges,MB,01/08/2012,PAY00495098,-1199.60,Revenue,Grace Eyre Foundation Ltd
Brighton & Hove City Council,http://statistics.data.gov.uk/id/local-authority/00ML,Adult Social Care,BVASOC,S Svcs - Learning Disability,LDY,Third Party Payments,F,Other Establishments,FH,01/08/2012,PAY00495098,45334.48,Revenue,Grace Eyre Foundation Ltd
Brighton & Hove City Council,http://statistics.data.gov.uk/id/local-authority/00ML,Adult Social Care,BVASOC,S Svcs - Older People Svcs,PPL,Customer n Client Receipts,M,Fees n Charges,MB,01/08/2012,PAY00495099,-7261.03,Revenue,Gate Cottage
Brighton & Hove City Council,http://statistics.data.gov.uk/id/local-authority/00ML,Adult Social Care,BVASOC,S Svcs - Older People Svcs,PPL,Third Party Payments,F,Other Establishments,FH,01/08/2012,PAY00495099,9722.86,Revenue,Gate Cottage
Brighton & Hove City Council,http://statistics.data.gov.uk/id/local-authority/00ML,Adult Social Care,BVASOC,S Svcs - Older People Svcs,PPL,Customer n Client Receipts,M,Fees n Charges,MB,01/08/2012,PAY00495102,-901.25,Revenue,Payment to Individual
Brighton & Hove City Council,http://statistics.data.gov.uk/id/local-authority/00ML,Adult Social Care,BVASOC,S Svcs - Older People Svcs,PPL,Third Party Payments,F,Other Establishments,FH,01/08/2012,PAY00495102,1708.57,Revenue,Payment to Individual
Brighton & Hove City Council,http://statistics.data.gov.uk/id/local-authority/00ML,Adult Social Care,BVASOC,S Svcs - Older People Svcs,PPL,Premises Related,C,Cleaning n Domestic Supps,CH,01/08/2012,PAY00495103,340.36,Revenue,Nursing & Hygiene Supplies
Brighton & Hove City Council,http://statistics.data.gov.uk/id/local-authority/00ML,Adult Social Care,BVASOC,S Svcs - Older People Svcs,PPL,Supplies and Services,E,Clothing Uniforms n Laundry,EC,01/08/2012,PAY00495103,128.55,Revenue,Nursing & Hygiene Supplies
Brighton & Hove City Council,http://statistics.data.gov.uk/id/local-authority/00ML,Adult Social Care,BVASOC,S Svcs - Older People Svcs,PPL,Supplies and Services,E,Equip't Furniture n Materials,EA,01/08/2012,PAY00495103,118.79,Revenue,Nursing & Hygiene Supplies
Brighton & Hove City Council,http://statistics.data.gov.uk/id/local-authority/00ML,Adult Social Care,BVASOC,S Svcs - Physical Disability,PDY,Supplies and Services,E,Equip't Furniture n Materials,EA,01/08/2012,PAY00495103,142.78,Revenue,Nursing & Hygiene Supplies
Brighton & Hove City Council,http://statistics.data.gov.uk/id/local-authority/00ML,Cultural and Related Services,BVACUL,Library Service,LBR,Supplies and Services,E,Print Stat & Gen Office Exps,ED,01/08/2012,PAY00495104,537.63,Revenue,Xerox Finance Ltd
Brighton & Hove City Council,http://statistics.data.gov.uk/id/local-authority/00ML,Adult Social Care,BVASOC,S Svcs - Physical Disability,PDY,Supplies and Services,E,Equip't Furniture n Materials,EA,01/08/2012,PAY00495105,1079.35,Revenue,Homecraft Rolyan/Patterson Medical Ltd
Brighton & Hove City Council,http://statistics.data.gov.uk/id/local-authority/00ML,Adult Social Care,BVASOC,S Svcs - Older People Svcs,PPL,Third Party Payments,F,Other Establishments,FH,01/08/2012,PAY00495106,1884.00,Revenue,"East Sussex, Brighton & Hove Crossroads"
Brighton & Hove City Council,http://statistics.data.gov.uk/id/local-authority/00ML,Adult Social Care,BVASOC,S Svcs - Mental Health,MHT,Customer n Client Receipts,M,Fees n Charges,MB,01/08/2012,PAY00495107,-1442.00,Revenue,Payment to Individual
Brighton & Hove City Council,http://statistics.data.gov.uk/id/local-authority/00ML,Adult Social Care,BVASOC,S Svcs - Mental Health,MHT,Third Party Payments,F,Other Establishments,FH,01/08/2012,PAY00495107,5172.00,Revenue,Payment to Individual
Brighton & Hove City Council,http://statistics.data.gov.uk/id/local-authority/00ML,Adult Social Care,BVASOC,S Svcs - Learning Disability,LDY,Customer n Client Receipts,M,Fees n Charges,MB,01/08/2012,PAY00495108,-332.00,Revenue,Payment to Individual
Brighton & Hove City Council,http://statistics.data.gov.uk/id/local-authority/00ML,Adult Social Care,BVASOC,S Svcs - Learning Disability,LDY,Third Party Payments,F,Other Establishments,FH,01/08/2012,PAY00495108,3993.60,Revenue,Payment to Individual
Brighton & Hove City Council,http://statistics.data.gov.uk/id/local-authority/00ML,Education Services,BVAEDU,Ed - Special Ed,EKE,Third Party Payments,F,Other Agencies,FL,01/08/2012,PAY00495110,18302.00,Revenue,Muntham House School Limited
Brighton & Hove City Council,http://statistics.data.gov.uk/id/local-authority/00ML,Adult Social Care,BVASOC,S Svcs - Older People Svcs,PPL,Customer n Client Receipts,M,Fees n Charges,MB,01/08/2012,PAY00495111,-1147.75,Revenue,Hallifax Care Ltd
Brighton & Hove City Council,http://statistics.data.gov.uk/id/local-authority/00ML,Adult Social Care,BVASOC,S Svcs - Older People Svcs,PPL,Third Party Payments,F,Other Establishments,FH,01/08/2012,PAY00495111,8159.46,Revenue,Hallifax Care Ltd
Brighton & Hove City Council,http://statistics.data.gov.uk/id/local-authority/00ML,Adult Social Care,BVASOC,S Svcs - Physical Disability,PDY,Customer n Client Receipts,M,Fees n Charges,MB,01/08/2012,PAY00495111,-44.00,Revenue,Hallifax Care Ltd
Brighton & Hove City Council,http://statistics.data.gov.uk/id/local-authority/00ML,Adult Social Care,BVASOC,S Svcs - Physical Disability,PDY,Third Party Payments,F,Other Establishments,FH,01/08/2012,PAY00495111,547.95,Revenue,Hallifax Care Ltd
Brighton & Hove City Council,http://statistics.data.gov.uk/id/local-authority/00ML,Adult Social Care,BVASOC,S Svcs - Older People Svcs,PPL,Indirect Employees,B,Misc Employee Costs,BP,01/08/2012,PAY00495112,3138.82,Revenue,Optima Low Vision Services Ltd
Brighton & Hove City Council,http://statistics.data.gov.uk/id/local-authority/00ML,Housing Services General Fund,BVAHOG,Hsing Welfare,HGW,Transfer Payments,G,Supporting People,GF,01/08/2012,PAY00495113,2500.00,Revenue,About Me Care & Support
Brighton & Hove City Council,http://statistics.data.gov.uk/id/local-authority/00ML,Adult Social Care,BVASOC,S Svcs - Learning Disability,LDY,Customer n Client Receipts,M,Fees n Charges,MB,01/08/2012,PAY00495114,-100.00,Revenue,Payment to Individual
Brighton & Hove City Council,http://statistics.data.gov.uk/id/local-authority/00ML,Adult Social Care,BVASOC,S Svcs - Learning Disability,LDY,Third Party Payments,F,Other Establishments,FH,01/08/2012,PAY00495114,1607.88,Revenue,Payment to Individual
Brighton & Hove City Council,http://statistics.data.gov.uk/id/local-authority/00ML,Adult Social Care,BVASOC,S Svcs - Learning Disability,LDY,Third Party Payments,F,Other Establishments,FH,01/08/2012,PAY00495116,5754.80,Revenue,Autism Sussex Ltd
Brighton & Hove City Council,http://statistics.data.gov.uk/id/local-authority/00ML,Cultural and Related Services,BVACUL,Culture & Heritage,CHG,Premises Related,C,Repair Maint n Alterations,CA,01/08/2012,PAY00495117,2428.00,Revenue,ADT Fire & Security Plc
Brighton & Hove City Council,http://statistics.data.gov.uk/id/local-authority/00ML,Central Services To The Public,BVACEN,Support Services (SSC),PPT,Premises Related,C,Repair Maint n Alterations,CA,01/08/2012,PAY00495118,8560.41,Revenue,Bramber Construction Co Ltd
Brighton & Hove City Council,http://statistics.data.gov.uk/id/local-authority/00ML,Adult Social Care,BVASOC,S Svcs - Learning Disability,LDY,Transport Related,D,Direct Transport Costs,DA,01/08/2012,PAY00495119,2892.23,Revenue,Colas Limited
Brighton & Hove City Council,http://statistics.data.gov.uk/id/local-authority/00ML,Adult Social Care,BVASOC,S Svcs - Older People Svcs,PPL,Transport Related,D,Direct Transport Costs,DA,01/08/2012,PAY00495119,2145.71,Revenue,Colas Limited
Brighton & Hove City Council,http://statistics.data.gov.uk/id/local-authority/00ML,Central Services To The Public,BVACEN,Support Services (SSC),PPT,Transport Related,D,Direct Transport Costs,DA,01/08/2012,PAY00495119,1008.99,Revenue,Colas Limited
Brighton & Hove City Council,http://statistics.data.gov.uk/id/local-authority/00ML,Cultural and Related Services,BVACUL,Culture & Heritage,CHG,Transport Related,D,Direct Transport Costs,DA,01/08/2012,PAY00495119,197.76,Revenue,Colas Limited
Brighton & Hove City Council,http://statistics.data.gov.uk/id/local-authority/00ML,Cultural and Related Services,BVACUL,Ed - Ed Other - Other,ENF,Transport Related,D,Direct Transport Costs,DA,01/08/2012,PAY00495119,1630.99,Revenue,Colas Limited
Brighton & Hove City Council,http://statistics.data.gov.uk/id/local-authority/00ML,Cultural and Related Services,BVACUL,Library Service,LBR,Transport Related,D,Direct Transport Costs,DA,01/08/2012,PAY00495119,150.52,Revenue,Colas Limited
Brighton & Hove City Council,http://statistics.data.gov.uk/id/local-authority/00ML,Education Services,BVAEDU,Ed - Secondary Schools,EJJ,Transport Related,D,Public Transport,DD,01/08/2012,PAY00495119,729.98,Revenue,Colas Limited
Brighton & Hove City Council,http://statistics.data.gov.uk/id/local-authority/00ML,Environment and Regulatory Ser,BVAERS,Management Services (DEC),MGT,Transport Related,D,Direct Transport Costs,DA,01/08/2012,PAY00495119,372.52,Revenue,Colas Limited
Brighton & Hove City Council,http://statistics.data.gov.uk/id/local-authority/00ML,Environment and Regulatory Ser,BVAERS,Street Cleansing,CLE,Transport Related,D,Direct Transport Costs,DA,01/08/2012,PAY00495119,171.93,Revenue,Colas Limited
Brighton & Hove City Council,http://statistics.data.gov.uk/id/local-authority/00ML,Environment and Regulatory Ser,BVAERS,Waste Management,WMT,Transport Related,D,Contract Hire n Operating Leas,DB,01/08/2012,PAY00495119,214.91,Revenue,Colas Limited
Brighton & Hove City Council,http://statistics.data.gov.uk/id/local-authority/00ML,Environment and Regulatory Ser,BVAERS,Waste Management,WMT,Transport Related,D,Direct Transport Costs,DA,01/08/2012,PAY00495119,1338.80,Revenue,Colas Limited
Brighton & Hove City Council,http://statistics.data.gov.uk/id/local-authority/00ML,Highways and Transportation,BVAHRT,Public transport,PTR,Transport Related,D,Direct Transport Costs,DA,01/08/2012,PAY00495119,439.68,Revenue,Colas Limited
Brighton & Hove City Council,http://statistics.data.gov.uk/id/local-authority/00ML,Housing Services Revnue Acc,BVAHOU,Hsing Management - HRA,HGM,Transport Related,D,Direct Transport Costs,DA,01/08/2012,PAY00495119,1569.90,Revenue,Colas Limited
Brighton & Hove City Council,http://statistics.data.gov.uk/id/local-authority/00ML,Central Services To The Public,BVACEN,Support Services (SSC),PPT,Premises Related,C,Repair Maint n Alterations,CA,01/08/2012,PAY00495120,96.00,Revenue,Kone Plc
Brighton & Hove City Council,http://statistics.data.gov.uk/id/local-authority/00ML,Cultural and Related Services,BVACUL,Culture & Heritage,CHG,Supplies and Services,E,Miscellaneous Expenses,EM,01/08/2012,PAY00495123,683.40,Revenue,R J Dance (Contractors) Ltd
Brighton & Hove City Council,http://statistics.data.gov.uk/id/local-authority/00ML,Non SERCOP,BVANON,Cap - Transport,4TR,New Construction n Conversion,PB,Level not required,NR5026,01/08/2012,PAY00495123,46402.24,Capital,R J Dance (Contractors) Ltd
Brighton & Hove City Council,http://statistics.data.gov.uk/id/local-authority/00ML,Non SERCOP,BVANON,Cap - Transport,4TR,New Construction n Conversion,PB,Level not required,NR5026,01/08/2012,PAY00495125,5027.84,Capital,C J Thorne & Co Ltd
Brighton & Hove City Council,http://statistics.data.gov.uk/id/local-authority/00ML,Adult Social Care,BVASOC,S Svcs - Learning Disability,LDY,Customer n Client Receipts,M,Fees n Charges,MB,01/08/2012,PAY00495126,-288.00,Revenue,Mencap H & S Region 4
Brighton & Hove City Council,http://statistics.data.gov.uk/id/local-authority/00ML,Adult Social Care,BVASOC,S Svcs - Learning Disability,LDY,Third Party Payments,F,Other Establishments,FH,01/08/2012,PAY00495126,5649.44,Revenue,Mencap H & S Region 4
Brighton & Hove City Council,http://statistics.data.gov.uk/id/local-authority/00ML,Central Services To The Public,BVACEN,Support Services (SSC),PPT,Premises Related,C,Repair Maint n Alterations,CA,01/08/2012,PAY00495127,757.63,Revenue,Catercraft Supplies Ltd
Brighton & Hove City Council,http://statistics.data.gov.uk/id/local-authority/00ML,Education Services,BVAEDU,Ed - Ed Other - Other,ENF,Premises Related,C,Repair Maint n Alterations,CA,01/08/2012,PAY00495127,2255.50,Revenue,Catercraft Supplies Ltd
Brighton & Hove City Council,http://statistics.data.gov.uk/id/local-authority/00ML,Adult Social Care,BVASOC,S Svcs - Learning Disability,LDY,Customer n Client Receipts,M,Fees n Charges,MB,01/08/2012,PAY00495128,-311.40,Revenue,Self Unlimited
Brighton & Hove City Council,http://statistics.data.gov.uk/id/local-authority/00ML,Adult Social Care,BVASOC,S Svcs - Learning Disability,LDY,Third Party Payments,F,Other Establishments,FH,01/08/2012,PAY00495128,2346.40,Revenue,Self Unlimited
Brighton & Hove City Council,http://statistics.data.gov.uk/id/local-authority/00ML,Central Services To The Public,BVACEN,Support Services (SSC),PPT,Supplies and Services,E,Communications n Computing,EH,01/08/2012,PAY00495129,1119.34,Revenue,Specialist Computer Centres Plc
Brighton & Hove City Council,http://statistics.data.gov.uk/id/local-authority/00ML,Education Services,BVAEDU,Ed - Secondary Ed,EJE,Supplies and Services,E,Print Stat & Gen Office Exps,ED,01/08/2012,PAY00495129,89.17,Revenue,Specialist Computer Centres Plc
Brighton & Hove City Council,http://statistics.data.gov.uk/id/local-authority/00ML,Highways and Transportation,BVAHRT,Highways and Roads - Mntnce,HRM,Supplies and Services,E,Communications n Computing,EH,01/08/2012,PAY00495129,266.16,Revenue,Specialist Computer Centres Plc
Brighton & Hove City Council,http://statistics.data.gov.uk/id/local-authority/00ML,Housing Services Revnue Acc,BVAHOU,Hsing Management - HRA,HGM,Supplies and Services,E,Communications n Computing,EH,01/08/2012,PAY00495129,266.16,Revenue,Specialist Computer Centres Plc
Brighton & Hove City Council,http://statistics.data.gov.uk/id/local-authority/00ML,Non SERCOP,BVANON,Trusts,TRT,Supplies and Services,E,Communications n Computing,EH,01/08/2012,PAY00495129,538.87,Revenue,Specialist Computer Centres Plc
Brighton & Hove City Council,http://statistics.data.gov.uk/id/local-authority/00ML,Highways and Transportation,BVAHRT,Highways and Roads - Mntnce,HRM,Supplies and Services,E,Communications n Computing,EH,01/08/2012,PAY00495130,1917.91,Revenue,British Telecommunications Plc
Brighton & Hove City Council,http://statistics.data.gov.uk/id/local-authority/00ML,Children�s Social Care,BVACSC,Child Srvcs - Leaving Care,FAL,Transfer Payments,G,Other Transfer Payments,GD,01/08/2012,PAY00495131,244.80,Revenue,Brighton & Hove Bus & Coach Co Ltd
Brighton & Hove City Council,http://statistics.data.gov.uk/id/local-authority/00ML,Environment and Regulatory Ser,BVAERS,Waste Management,WMT,Transport Related,D,Contract Hire n Operating Leas,DB,01/08/2012,PAY00495131,999.07,Revenue,Brighton & Hove Bus & Coach Co Ltd
Brighton & Hove City Council,http://statistics.data.gov.uk/id/local-authority/00ML,Highways and Transportation,BVAHRT,Public transport,PTR,Transport Related,D,Public Transport,DD,01/08/2012,PAY00495131,741487.50,Revenue,Brighton & Hove Bus & Coach Co Ltd
Brighton & Hove City Council,http://statistics.data.gov.uk/id/local-authority/00ML,Central Services To The Public,BVACEN,Support Services (SSC),PPT,Premises Related,C,Water Services,CE,01/08/2012,PAY00495134,5829.51,Revenue,Southern Water Services Ltd
Brighton & Hove City Council,http://statistics.data.gov.uk/id/local-authority/00ML,Cultural and Related Services,BVACUL,Culture & Heritage,CHG,Premises Related,C,Water Services,CE,01/08/2012,PAY00495134,328.73,Revenue,Southern Water Services Ltd
Brighton & Hove City Council,http://statistics.data.gov.uk/id/local-authority/00ML,Cultural and Related Services,BVACUL,Highways and Roads - Mntnce,HRM,Premises Related,C,Water Services,CE,01/08/2012,PAY00495134,140.71,Revenue,Southern Water Services Ltd
Brighton & Hove City Council,http://statistics.data.gov.uk/id/local-authority/00ML,Cultural and Related Services,BVACUL,Management Services (DEC),MGT,Premises Related,C,Water Services,CE,01/08/2012,PAY00495134,1052.31,Revenue,Southern Water Services Ltd
Brighton & Hove City Council,http://statistics.data.gov.uk/id/local-authority/00ML,Cultural and Related Services,BVACUL,Recreation and sport,REC,Premises Related,C,Water Services,CE,01/08/2012,PAY00495134,36.77,Revenue,Southern Water Services Ltd
Brighton & Hove City Council,http://statistics.data.gov.uk/id/local-authority/00ML,Environment and Regulatory Ser,BVAERS,Cem Crem and Mortuary Services,CCM,Premises Related,C,Water Services,CE,01/08/2012,PAY00495134,151.02,Revenue,Southern Water Services Ltd
Brighton & Hove City Council,http://statistics.data.gov.uk/id/local-authority/00ML,Environment and Regulatory Ser,BVAERS,Environmental Health,EVH,Premises Related,C,Water Services,CE,01/08/2012,PAY00495134,6293.67,Revenue,Southern Water Services Ltd
Brighton & Hove City Council,http://statistics.data.gov.uk/id/local-authority/00ML,Housing Services Revnue Acc,BVAHOU,Hsing Strategy - HRA,HGT,Premises Related,C,Water Services,CE,01/08/2012,PAY00495134,256.01,Revenue,Southern Water Services Ltd
Brighton & Hove City Council,http://statistics.data.gov.uk/id/local-authority/00ML,Housing Services General Fund,BVAHOG,Homelessness,HML,Premises Related,C,Rents Payable,CC,01/08/2012,PAY00495139,790.00,Revenue,Priors Letting Agency
Brighton & Hove City Council,http://statistics.data.gov.uk/id/local-authority/00ML,Housing Services General Fund,BVAHOG,Homelessness,HML,Premises Related,C,Rents Payable,CC,01/08/2012,PAY00495140,765.00,Revenue,Payment to Individual
Brighton & Hove City Council,http://statistics.data.gov.uk/id/local-authority/00ML,Cultural and Related Services,BVACUL,Open Spaces,PEN,Third Party Payments,F,Private Contractors,FJ,01/08/2012,PAY00495144,450.00,Revenue,Anderson Acoustics Limited
Brighton & Hove City Council,http://statistics.data.gov.uk/id/local-authority/00ML,Housing Services General Fund,BVAHOG,Homelessness,HML,Premises Related,C,Rents Payable,CC,01/08/2012,PAY00495146,775.00,Revenue,Payment to Individual
Brighton & Hove City Council,http://statistics.data.gov.uk/id/local-authority/00ML,Housing Services General Fund,BVAHOG,Homelessness,HML,Premises Related,C,Rents Payable,CC,01/08/2012,PAY00495147,850.00,Revenue,Payment to Individual
Brighton & Hove City Council,http://statistics.data.gov.uk/id/local-authority/00ML,Central Services To The Public,BVACEN,Local Tax Collection,LTC,Supplies and Services,E,Communications n Computing,EH,01/08/2012,PAY00495148,2029.19,Revenue,Northgate Information Solutions UK Ltd
Brighton & Hove City Council,http://statistics.data.gov.uk/id/local-authority/00ML,Highways and Transportation,BVAHRT,Parking Services,PRK,Supplies and Services,E,Print Stat & Gen Office Exps,ED,01/08/2012,PAY00495148,1401.65,Revenue,Northgate Information Solutions UK Ltd
Brighton & Hove City Council,http://statistics.data.gov.uk/id/local-authority/00ML,Housing Services General Fund,BVAHOG,Hsing Benefits,HGB,Supplies and Services,E,Communications n Computing,EH,01/08/2012,PAY00495148,2028.36,Revenue,Northgate Information Solutions UK Ltd
Brighton & Hove City Council,http://statistics.data.gov.uk/id/local-authority/00ML,Cultural and Related Services,BVACUL,Management Services (DEC),MGT,Supplies and Services,E,Miscellaneous Expenses,EM,01/08/2012,PAY00495149,1000.00,Revenue,Active Sussex
Brighton & Hove City Council,http://statistics.data.gov.uk/id/local-authority/00ML,Highways and Transportation,BVAHRT,Public transport,PTR,Transport Related,D,Public Transport,DD,01/08/2012,PAY00495151,1760.75,Revenue,Metrobus Ltd
Brighton & Hove City Council,http://statistics.data.gov.uk/id/local-authority/00ML,Non SERCOP,BVANON,Cap - Education Services,4ED,New Construction n Conversion,PB,Level not required,NR5026,01/08/2012,PAY00495154,946.34,Capital,Sustainable Evolution Ltd 
Brighton & Hove City Council,http://statistics.data.gov.uk/id/local-authority/00ML,Housing Services General Fund,BVAHOG,Homelessness,HML,Premises Related,C,Rents Payable,CC,01/08/2012,PAY00495155,930.00,Revenue,Payment to Individual
Brighton & Hove City Council,http://statistics.data.gov.uk/id/local-authority/00ML,Cultural and Related Services,BVACUL,Management Services (DEC),MGT,Third Party Payments,F,Private Contractors,FJ,01/08/2012,PAY00495157,685.00,Revenue,W L West & Sons Ltd
Brighton & Hove City Council,http://statistics.data.gov.uk/id/local-authority/00ML,Housing Services General Fund,BVAHOG,Homelessness,HML,Premises Related,C,Rents Payable,CC,01/08/2012,PAY00495159,1650.00,Revenue,Payment to Individual
Brighton & Hove City Council,http://statistics.data.gov.uk/id/local-authority/00ML,Highways and Transportation,BVAHRT,Parking Services,PRK,Supplies and Services,E,Miscellaneous Expenses,EM,01/08/2012,PAY00495160,1925.60,Revenue,SIX Card Solutions UK Ltd
Brighton & Hove City Council,http://statistics.data.gov.uk/id/local-authority/00ML,Housing Services General Fund,BVAHOG,Homelessness,HML,Premises Related,C,Rents Payable,CC,01/08/2012,PAY00495165,900.00,Revenue,Payment to Individual
Brighton & Hove City Council,http://statistics.data.gov.uk/id/local-authority/00ML,Adult Social Care,BVASOC,S Svcs - Learning Disability,LDY,Customer n Client Receipts,M,Fees n Charges,MB,01/08/2012,PAY00495168,-156.00,Revenue,Payment to Individual
Brighton & Hove City Council,http://statistics.data.gov.uk/id/local-authority/00ML,Adult Social Care,BVASOC,S Svcs - Learning Disability,LDY,Third Party Payments,F,Other Establishments,FH,01/08/2012,PAY00495168,1332.00,Revenue,Payment to Individual
Brighton & Hove City Council,http://statistics.data.gov.uk/id/local-authority/00ML,Children�s Social Care,BVACSC,Management Services (DEC),MGT,Supplies and Services,E,Services,EF,01/08/2012,PAY00495169,970.00,Revenue,Payment to Individual
Brighton & Hove City Council,http://statistics.data.gov.uk/id/local-authority/00ML,Children�s Social Care,BVACSC,Management Services (DEC),MGT,Supplies and Services,E,Services,EF,01/08/2012,PAY00495170,509.00,Revenue,Payment to Individual
Brighton & Hove City Council,http://statistics.data.gov.uk/id/local-authority/00ML,Housing Services General Fund,BVAHOG,Homelessness,HML,Premises Related,C,Rents Payable,CC,01/08/2012,PAY00495171,790.00,Revenue,Payment to Individual
Brighton & Hove City Council,http://statistics.data.gov.uk/id/local-authority/00ML,Adult Social Care,BVASOC,Hsing Welfare,HGW,Transport Related,D,Contract Hire n Operating Leas,DB,01/08/2012,PAY00495175,261.48,Revenue,Alphabet (UK) Fleet Management Limited
Brighton & Hove City Council,http://statistics.data.gov.uk/id/local-authority/00ML,Adult Social Care,BVASOC,S Svcs - Learning Disability,LDY,Transport Related,D,Contract Hire n Operating Leas,DB,01/08/2012,PAY00495175,985.96,Revenue,Alphabet (UK) Fleet Management Limited
Brighton & Hove City Council,http://statistics.data.gov.uk/id/local-authority/00ML,Adult Social Care,BVASOC,S Svcs - Mental Health,MHT,Transport Related,D,Contract Hire n Operating Leas,DB,01/08/2012,PAY00495175,167.03,Revenue,Alphabet (UK) Fleet Management Limited
Brighton & Hove City Council,http://statistics.data.gov.uk/id/local-authority/00ML,Adult Social Care,BVASOC,S Svcs - Older People Svcs,PPL,Transport Related,D,Contract Hire n Operating Leas,DB,01/08/2012,PAY00495175,1156.01,Revenue,Alphabet (UK) Fleet Management Limited
Brighton & Hove City Council,http://statistics.data.gov.uk/id/local-authority/00ML,Adult Social Care,BVASOC,S Svcs - Older People Svcs,PPL,Transport Related,D,Direct Transport Costs,DA,01/08/2012,PAY00495175,10.00,Revenue,Alphabet (UK) Fleet Management Limited
Brighton & Hove City Council,http://statistics.data.gov.uk/id/local-authority/00ML,Adult Social Care,BVASOC,S Svcs - Physical Disability,PDY,Transport Related,D,Contract Hire n Operating Leas,DB,01/08/2012,PAY00495175,190.84,Revenue,Alphabet (UK) Fleet Management Limited
Brighton & Hove City Council,http://statistics.data.gov.uk/id/local-authority/00ML,Adult Social Care,BVASOC,S Svcs - Supported Employment,EMP,Transport Related,D,Contract Hire n Operating Leas,DB,01/08/2012,PAY00495175,263.12,Revenue,Alphabet (UK) Fleet Management Limited
Brighton & Hove City Council,http://statistics.data.gov.uk/id/local-authority/00ML,Adult Social Care,BVASOC,S Svcs - Supported Employment,EMP,Transport Related,D,Direct Transport Costs,DA,01/08/2012,PAY00495175,35.00,Revenue,Alphabet (UK) Fleet Management Limited
Brighton & Hove City Council,http://statistics.data.gov.uk/id/local-authority/00ML,Adult Social Care,BVASOC,Support Services (SSC),PPT,Transport Related,D,Contract Hire n Operating Leas,DB,01/08/2012,PAY00495175,168.76,Revenue,Alphabet (UK) Fleet Management Limited
Brighton & Hove City Council,http://statistics.data.gov.uk/id/local-authority/00ML,Children�s Social Care,BVACSC,Child Srvcs - Com & Scl Work,FCW,Transport Related,D,Contract Hire n Operating Leas,DB,01/08/2012,PAY00495175,1114.73,Revenue,Alphabet (UK) Fleet Management Limited
Brighton & Hove City Council,http://statistics.data.gov.uk/id/local-authority/00ML,Children�s Social Care,BVACSC,Child Srvcs - Leaving Care,FAL,Transport Related,D,Contract Hire n Operating Leas,DB,01/08/2012,PAY00495175,160.34,Revenue,Alphabet (UK) Fleet Management Limited
Brighton & Hove City Council,http://statistics.data.gov.uk/id/local-authority/00ML,Children�s Social Care,BVACSC,Child Srvcs - Other Fam Supp,FFX,Transport Related,D,Contract Hire n Operating Leas,DB,01/08/2012,PAY00495175,289.08,Revenue,Alphabet (UK) Fleet Management Limited
Brighton & Hove City Council,http://statistics.data.gov.uk/id/local-authority/00ML,Children�s Social Care,BVACSC,Child Srvcs - Residential Svcs,FLR,Transport Related,D,Contract Hire n Operating Leas,DB,01/08/2012,PAY00495175,716.61,Revenue,Alphabet (UK) Fleet Management Limited
Brighton & Hove City Council,http://statistics.data.gov.uk/id/local-authority/00ML,Children�s Social Care,BVACSC,Child Srvcs - Yth Offender Tm,FYY,Transport Related,D,Contract Hire n Operating Leas,DB,01/08/2012,PAY00495175,246.43,Revenue,Alphabet (UK) Fleet Management Limited
Brighton & Hove City Council,http://statistics.data.gov.uk/id/local-authority/00ML,Highways and Transportation,BVAHRT,Parking Services,PRK,Transport Related,D,Contract Hire n Operating Leas,DB,01/08/2012,PAY00495175,368.68,Revenue,Alphabet (UK) Fleet Management Limited
Brighton & Hove City Council,http://statistics.data.gov.uk/id/local-authority/00ML,Housing Services Revnue Acc,BVAHOU,Hsing Management - HRA,HGM,Transport Related,D,Contract Hire n Operating Leas,DB,01/08/2012,PAY00495175,157.76,Revenue,Alphabet (UK) Fleet Management Limited
Brighton & Hove City Council,http://statistics.data.gov.uk/id/local-authority/00ML,Housing Services Revnue Acc,BVAHOU,Hsing Strategy - HRA,HGT,Transport Related,D,Contract Hire n Operating Leas,DB,01/08/2012,PAY00495175,240.93,Revenue,Alphabet (UK) Fleet Management Limited
Brighton & Hove City Council,http://statistics.data.gov.uk/id/local-authority/00ML,Planning Services,BVAPLA,Economic Development,ECD,Supplies and Services,E,Grants n Subscriptions,EK,01/08/2012,PAY00495177,500.00,Revenue,The Coldean Youth Project
Brighton & Hove City Council,http://statistics.data.gov.uk/id/local-authority/00ML,Adult Social Care,BVASOC,S Svcs - Learning Disability,LDY,Customer n Client Receipts,M,Fees n Charges,MB,01/08/2012,PAY00495186,-296.00,Revenue,Payment to Individual
Brighton & Hove City Council,http://statistics.data.gov.uk/id/local-authority/00ML,Adult Social Care,BVASOC,S Svcs - Learning Disability,LDY,Third Party Payments,F,Other Establishments,FH,01/08/2012,PAY00495186,4017.00,Revenue,Payment to Individual
Brighton & Hove City Council,http://statistics.data.gov.uk/id/local-authority/00ML,Cultural and Related Services,BVACUL,Management Services (DEC),MGT,Supplies and Services,E,Equip't Furniture n Materials,EA,01/08/2012,PAY00495188,1513.25,Revenue,Firefly Solar CIC
Brighton & Hove City Council,http://statistics.data.gov.uk/id/local-authority/00ML,Housing Services General Fund,BVAHOG,Homelessness,HML,Premises Related,C,Rents Payable,CC,01/08/2012,PAY00495192,760.00,Revenue,Payment to Individual
Brighton & Hove City Council,http://statistics.data.gov.uk/id/local-authority/00ML,Cultural and Related Services,BVACUL,Management Services (DEC),MGT,Supplies and Services,E,Equip't Furniture n Materials,EA,01/08/2012,PAY00495195,2795.00,Revenue,Aldred Associates Ltd
Brighton & Hove City Council,http://statistics.data.gov.uk/id/local-authority/00ML,Adult Social Care,BVASOC,S Svcs - Mental Health,MHT,Customer n Client Receipts,M,Fees n Charges,MB,01/08/2012,PAY00495201,-326.20,Revenue,Fieldings Rest Home
Brighton & Hove City Council,http://statistics.data.gov.uk/id/local-authority/00ML,Adult Social Care,BVASOC,S Svcs - Mental Health,MHT,Third Party Payments,F,Other Establishments,FH,01/08/2012,PAY00495201,6655.00,Revenue,Fieldings Rest Home
Brighton & Hove City Council,http://statistics.data.gov.uk/id/local-authority/00ML,Housing Services General Fund,BVAHOG,Homelessness,HML,Premises Related,C,Rents Payable,CC,01/08/2012,PAY00495202,775.00,Revenue,Payment to Individual
Brighton & Hove City Council,http://statistics.data.gov.uk/id/local-authority/00ML,Central Services To The Public,BVACEN,Support Services (SSC),PPT,Premises Related,C,Repair Maint n Alterations,CA,01/08/2012,PAY00495203,11985.89,Revenue,The Recycling Partnership
Brighton & Hove City Council,http://statistics.data.gov.uk/id/local-authority/00ML,Cultural and Related Services,BVACUL,Open Spaces,PEN,Third Party Payments,F,Private Contractors,FJ,01/08/2012,PAY00495207,2790.00,Revenue,Countrymans Contractors Ltd
Brighton & Hove City Council,http://statistics.data.gov.uk/id/local-authority/00ML,Housing Services General Fund,BVAHOG,Homelessness,HML,Premises Related,C,Rents Payable,CC,01/08/2012,PAY00495210,900.00,Revenue,Payment to Individual
Brighton & Hove City Council,http://statistics.data.gov.uk/id/local-authority/00ML,Adult Social Care,BVASOC,S Svcs - Physical Disability,PDY,Third Party Payments,F,Other Establishments,FH,01/08/2012,PAY00495211,645.00,Revenue,Payment to Individual
Brighton & Hove City Council,http://statistics.data.gov.uk/id/local-authority/00ML,Highways and Transportation,BVAHRT,Public transport,PTR,Transport Related,D,Public Transport,DD,01/08/2012,PAY00495213,36677.13,Revenue,Stagecoach South 
Brighton & Hove City Council,http://statistics.data.gov.uk/id/local-authority/00ML,Cultural and Related Services,BVACUL,Culture & Heritage,CHG,Supplies and Services,E,Catering,EB,01/08/2012,PAY00495216,833.99,Revenue,Sun Harvest Ltd
Brighton & Hove City Council,http://statistics.data.gov.uk/id/local-authority/00ML,Adult Social Care,BVASOC,S Svcs - Learning Disability,LDY,Customer n Client Receipts,M,Fees n Charges,MB,01/08/2012,PAY00495217,-311.40,Revenue,Bradfield House
Brighton & Hove City Council,http://statistics.data.gov.uk/id/local-authority/00ML,Adult Social Care,BVASOC,S Svcs - Learning Disability,LDY,Third Party Payments,F,Other Establishments,FH,01/08/2012,PAY00495217,12960.00,Revenue,Bradfield House
Brighton & Hove City Council,http://statistics.data.gov.uk/id/local-authority/00ML,Housing Services General Fund,BVAHOG,Homelessness,HML,Premises Related,C,Rents Payable,CC,01/08/2012,PAY00495219,1830.00,Revenue,Payment to Individual
Brighton & Hove City Council,http://statistics.data.gov.uk/id/local-authority/00ML,Children�s Social Care,BVACSC,Management Services (DEC),MGT,Supplies and Services,E,Services,EF,01/08/2012,PAY00495221,900.00,Revenue,Payment to Individual
Brighton & Hove City Council,http://statistics.data.gov.uk/id/local-authority/00ML,Adult Social Care,BVASOC,S Svcs - Learning Disability,LDY,Customer n Client Receipts,M,Fees n Charges,MB,01/08/2012,PAY00495225,-40.00,Revenue,Payment to Individual
Brighton & Hove City Council,http://statistics.data.gov.uk/id/local-authority/00ML,Adult Social Care,BVASOC,S Svcs - Learning Disability,LDY,Third Party Payments,F,Other Establishments,FH,01/08/2012,PAY00495225,1675.48,Revenue,Payment to Individual
Brighton & Hove City Council,http://statistics.data.gov.uk/id/local-authority/00ML,Cultural and Related Services,BVACUL,Tourism,TRM,Supplies and Services,E,Miscellaneous Expenses,EM,01/08/2012,PAY00495226,1045.00,Revenue,Press Dispensary Ltd
Brighton & Hove City Council,http://statistics.data.gov.uk/id/local-authority/00ML,Central Services To The Public,BVACEN,Support Services (SSC),PPT,Supplies and Services,E,Services,EF,01/08/2012,PAY00495228,1150.00,Revenue,Payment to Individual
Brighton & Hove City Council,http://statistics.data.gov.uk/id/local-authority/00ML,Cultural and Related Services,BVACUL,Open Spaces,PEN,Third Party Payments,F,Private Contractors,FJ,01/08/2012,PAY00495230,670.00,Revenue,Lewis & Co Planning (South East) Limited
Brighton & Hove City Council,http://statistics.data.gov.uk/id/local-authority/00ML,Cultural and Related Services,BVACUL,Management Services (DEC),MGT,Premises Related,C,Repair Maint n Alterations,CA,01/08/2012,PAY00495232,1483.30,Revenue,Cox Skips Ltd
Brighton & Hove City Council,http://statistics.data.gov.uk/id/local-authority/00ML,Cultural and Related Services,BVACUL,Culture & Heritage,CHG,Supplies and Services,E,Services,EF,01/08/2012,PAY00495233,3115.00,Revenue,Payment to Individual
Brighton & Hove City Council,http://statistics.data.gov.uk/id/local-authority/00ML,Adult Social Care,BVASOC,S Svcs - Older People Svcs,PPL,Third Party Payments,F,Other Establishments,FH,01/08/2012,PAY00495236,1772.12,Revenue,Filsham Lodge 
Brighton & Hove City Council,http://statistics.data.gov.uk/id/local-authority/00ML,Adult Social Care,BVASOC,S Svcs - Learning Disability,LDY,Customer n Client Receipts,M,Fees n Charges,MB,01/08/2012,PAY00495237,-268.00,Revenue,Payment to Individual
Brighton & Hove City Council,http://statistics.data.gov.uk/id/local-authority/00ML,Adult Social Care,BVASOC,S Svcs - Learning Disability,LDY,Third Party Payments,F,Other Establishments,FH,01/08/2012,PAY00495237,1509.60,Revenue,Payment to Individual
Brighton & Hove City Council,http://statistics.data.gov.uk/id/local-authority/00ML,Housing Services General Fund,BVAHOG,Homelessness,HML,Premises Related,C,Rents Payable,CC,01/08/2012,PAY00495240,825.00,Revenue,Payment to Individual
Brighton & Hove City Council,http://statistics.data.gov.uk/id/local-authority/00ML,Housing Services General Fund,BVAHOG,Hsing Welfare,HGW,Transfer Payments,G,Supporting People,GF,01/08/2012,PAY00495243,671.34,Revenue,Saxon Weald
Brighton & Hove City Council,http://statistics.data.gov.uk/id/local-authority/00ML,Housing Services Revnue Acc,BVAHOU,Hsing Management - HRA,HGM,Customer n Client Receipts,M,Fees n Charges,MB,01/08/2012,PAY00495244,-978.86,Revenue,Jardine Lloyd Thompson Tenant Risks
Brighton & Hove City Council,http://statistics.data.gov.uk/id/local-authority/00ML,Children�s Social Care,BVACSC,Child Srvcs - Leaving Care,FAL,Transfer Payments,G,Other Transfer Payments,GD,01/08/2012,PAY00495246,520.00,Revenue,The Downs Hotel
Brighton & Hove City Council,http://statistics.data.gov.uk/id/local-authority/00ML,Children�s Social Care,BVACSC,Child Srvcs - Other Fam Supp,FFX,Transfer Payments,G,Other Transfer Payments,GD,01/08/2012,PAY00495246,2575.35,Revenue,The Downs Hotel
Brighton & Hove City Council,http://statistics.data.gov.uk/id/local-authority/00ML,Cultural and Related Services,BVACUL,Open Spaces,PEN,Third Party Payments,F,Private Contractors,FJ,01/08/2012,PAY00495247,480.00,Revenue,County Tree Surgeons Ltd
Brighton & Hove City Council,http://statistics.data.gov.uk/id/local-authority/00ML,Housing Services General Fund,BVAHOG,Homelessness,HML,Premises Related,C,Rents Payable,CC,01/08/2012,PAY00495248,1000.00,Revenue,Payment to Individual
Brighton & Hove City Council,http://statistics.data.gov.uk/id/local-authority/00ML,Cultural and Related Services,BVACUL,Culture & Heritage,CHG,Supplies and Services,E,Miscellaneous Expenses,EM,01/08/2012,PAY00495250,3294.00,Revenue,Lucid Design
Brighton & Hove City Council,http://statistics.data.gov.uk/id/local-authority/00ML,Education Services,BVAEDU,Ed - Ed Other - Other,ENF,Supplies and Services,E,Equip't Furniture n Materials,EA,01/08/2012,PAY00495251,419.02,Revenue,Payment to Individual
Brighton & Hove City Council,http://statistics.data.gov.uk/id/local-authority/00ML,Highways and Transportation,BVAHRT,Public transport,PTR,Transport Related,D,Public Transport,DD,01/08/2012,PAY00495252,9576.24,Revenue,Countryliner Sussex Ltd
Brighton & Hove City Council,http://statistics.data.gov.uk/id/local-authority/00ML,Cultural and Related Services,BVACUL,Open Spaces,PEN,Indirect Employees,B,Training,BM,01/08/2012,PAY00495253,510.00,Revenue,Payment to Individual
Brighton & Hove City Council,http://statistics.data.gov.uk/id/local-authority/00ML,Children�s Social Care,BVACSC,Management Services (DEC),MGT,Supplies and Services,E,Services,EF,01/08/2012,PAY00495254,550.00,Revenue,Payment to Individual
Brighton & Hove City Council,http://statistics.data.gov.uk/id/local-authority/00ML,Housing Services General Fund,BVAHOG,Homelessness,HML,Premises Related,C,Rents Payable,CC,01/08/2012,PAY00495255,1000.00,Revenue,Payment to Individual
Brighton & Hove City Council,http://statistics.data.gov.uk/id/local-authority/00ML,Education Services,BVAEDU,Ed - Ed Other - Other,ENF,Premises Related,C,Repair Maint n Alterations,CA,01/08/2012,PAY00495257,58.00,Revenue,Arcool Ltd
Brighton & Hove City Council,http://statistics.data.gov.uk/id/local-authority/00ML,Education Services,BVAEDU,Ed - Ed Other - Other,ENF,Supplies and Services,E,Equip't Furniture n Materials,EA,01/08/2012,PAY00495257,500.85,Revenue,Arcool Ltd
Brighton & Hove City Council,http://statistics.data.gov.uk/id/local-authority/00ML,Housing Services General Fund,BVAHOG,Homelessness,HML,Premises Related,C,Rents Payable,CC,01/08/2012,PAY00495258,750.00,Revenue,Payment to Individual
Brighton & Hove City Council,http://statistics.data.gov.uk/id/local-authority/00ML,Adult Social Care,BVASOC,S Svcs - Learning Disability,LDY,Customer n Client Receipts,M,Fees n Charges,MB,01/08/2012,PAY00495259,-176.00,Revenue,Arundel Domiciliary Care Services
Brighton & Hove City Council,http://statistics.data.gov.uk/id/local-authority/00ML,Adult Social Care,BVASOC,S Svcs - Learning Disability,LDY,Third Party Payments,F,Other Establishments,FH,01/08/2012,PAY00495259,39455.52,Revenue,Arundel Domiciliary Care Services
Brighton & Hove City Council,http://statistics.data.gov.uk/id/local-authority/00ML,Central Services To The Public,BVACEN,Support Services (SSC),PPT,Supplies and Services,E,Services,EF,01/08/2012,PAY00495261,1228.00,Revenue,Treetop Printing & Design LLP
Brighton & Hove City Council,http://statistics.data.gov.uk/id/local-authority/00ML,Housing Services General Fund,BVAHOG,Homelessness,HML,Premises Related,C,Rents Payable,CC,01/08/2012,PAY00495264,800.00,Revenue,Payment to Individual
Brighton & Hove City Council,http://statistics.data.gov.uk/id/local-authority/00ML,Housing Services General Fund,BVAHOG,Homelessness,HML,Premises Related,C,Rents Payable,CC,01/08/2012,PAY00495266,620.00,Revenue,Payment to Individual
Brighton & Hove City Council,http://statistics.data.gov.uk/id/local-authority/00ML,Housing Services General Fund,BVAHOG,Homelessness,HML,Premises Related,C,Rents Payable,CC,01/08/2012,PAY00495267,750.00,Revenue,Payment to Individual
Brighton & Hove City Council,http://statistics.data.gov.uk/id/local-authority/00ML,Housing Services General Fund,BVAHOG,Homelessness,HML,Premises Related,C,Rents Payable,CC,01/08/2012,PAY00495268,850.00,Revenue,Payment to Individual
Brighton & Hove City Council,http://statistics.data.gov.uk/id/local-authority/00ML,Central Services To The Public,BVACEN,Support Services (SSC),PPT,Supplies and Services,E,Services,EF,01/08/2012,PAY00495270,7424.00,Revenue,Payment to Individual
Brighton & Hove City Council,http://statistics.data.gov.uk/id/local-authority/00ML,Children�s Social Care,BVACSC,Management Services (DEC),MGT,Supplies and Services,E,Services,EF,01/08/2012,PAY00495275,703.13,Revenue,London Psychology Consultants Ltd
Brighton & Hove City Council,http://statistics.data.gov.uk/id/local-authority/00ML,Housing Services General Fund,BVAHOG,Homelessness,HML,Premises Related,C,Rents Payable,CC,01/08/2012,PAY00495278,725.00,Revenue,Payment to Individual
Brighton & Hove City Council,http://statistics.data.gov.uk/id/local-authority/00ML,Housing Services General Fund,BVAHOG,Homelessness,HML,Premises Related,C,Rents Payable,CC,01/08/2012,PAY00495279,1025.00,Revenue,Payment to Individual
Brighton & Hove City Council,http://statistics.data.gov.uk/id/local-authority/00ML,Housing Services General Fund,BVAHOG,Homelessness,HML,Premises Related,C,Rents Payable,CC,01/08/2012,PAY00495282,1250.00,Revenue,Payment to Individual
Brighton & Hove City Council,http://statistics.data.gov.uk/id/local-authority/00ML,Housing Services General Fund,BVAHOG,Homelessness,HML,Premises Related,C,Rents Payable,CC,01/08/2012,PAY00495284,1250.00,Revenue,Payment to Individual
Brighton & Hove City Council,http://statistics.data.gov.uk/id/local-authority/00ML,Children�s Social Care,BVACSC,Management Services (DEC),MGT,Supplies and Services,E,Services,EF,01/08/2012,PAY00495288,750.00,Revenue,Dr Stephen Chapman Ltd
Brighton & Hove City Council,http://statistics.data.gov.uk/id/local-authority/00ML,Housing Services General Fund,BVAHOG,Homelessness,HML,Premises Related,C,Rents Payable,CC,01/08/2012,PAY00495293,760.00,Revenue,Payment to Individual
Brighton & Hove City Council,http://statistics.data.gov.uk/id/local-authority/00ML,Children�s Social Care,BVACSC,Management Services (DEC),MGT,Supplies and Services,E,Services,EF,01/08/2012,PAY00495294,855.00,Revenue,Payment to Individual
Brighton & Hove City Council,http://statistics.data.gov.uk/id/local-authority/00ML,Adult Social Care,BVASOC,S Svcs - Learning Disability,LDY,Customer n Client Receipts,M,Fees n Charges,MB,01/08/2012,PAY00495295,-460.00,Revenue,Payment to Individual
Brighton & Hove City Council,http://statistics.data.gov.uk/id/local-authority/00ML,Adult Social Care,BVASOC,S Svcs - Learning Disability,LDY,Third Party Payments,F,Other Establishments,FH,01/08/2012,PAY00495295,2664.00,Revenue,Payment to Individual
Brighton & Hove City Council,http://statistics.data.gov.uk/id/local-authority/00ML,Housing Services General Fund,BVAHOG,Homelessness,HML,Premises Related,C,Rents Payable,CC,01/08/2012,PAY00495299,875.00,Revenue,Payment to Individual
Brighton & Hove City Council,http://statistics.data.gov.uk/id/local-authority/00ML,Environment and Regulatory Ser,BVAERS,Waste Management,WMT,Transport Related,D,Contract Hire n Operating Leas,DB,01/08/2012,PAY00495301,2475.00,Revenue,Fiveways Municipal Vehicle Hire Ltd
Brighton & Hove City Council,http://statistics.data.gov.uk/id/local-authority/00ML,Housing Services General Fund,BVAHOG,Homelessness,HML,Premises Related,C,Rents Payable,CC,01/08/2012,PAY00495304,1434.00,Revenue,Payment to Individual
Brighton & Hove City Council,http://statistics.data.gov.uk/id/local-authority/00ML,Housing Services General Fund,BVAHOG,Homelessness,HML,Premises Related,C,Rents Payable,CC,01/08/2012,PAY00495307,880.00,Revenue,Payment to Individual
Brighton & Hove City Council,http://statistics.data.gov.uk/id/local-authority/00ML,Housing Services General Fund,BVAHOG,Homelessness,HML,Premises Related,C,Rents Payable,CC,01/08/2012,PAY00495308,1179.00,Revenue,Payment to Individual
Brighton & Hove City Council,http://statistics.data.gov.uk/id/local-authority/00ML,Central Services To The Public,BVACEN,Support Services (SSC),PPT,Premises Related,C,Repair Maint n Alterations,CA,01/08/2012,PAY00495310,5937.18,Revenue,Hertel Solutions Ltd
Brighton & Hove City Council,http://statistics.data.gov.uk/id/local-authority/00ML,Housing Services Revnue Acc,BVAHOU,Hsing Management - HRA,HGM,Premises Related,C,Repair Maint n Alterations,CA,01/08/2012,PAY00495310,25796.99,Revenue,Hertel Solutions Ltd
Brighton & Hove City Council,http://statistics.data.gov.uk/id/local-authority/00ML,Adult Social Care,BVASOC,S Svcs - Learning Disability,LDY,Customer n Client Receipts,M,Fees n Charges,MB,01/08/2012,PAY00495313,-621.71,Revenue,Small Opportunities Ltd
Brighton & Hove City Council,http://statistics.data.gov.uk/id/local-authority/00ML,Adult Social Care,BVASOC,S Svcs - Learning Disability,LDY,Third Party Payments,F,Other Establishments,FH,01/08/2012,PAY00495313,7510.00,Revenue,Small Opportunities Ltd
Brighton & Hove City Council,http://statistics.data.gov.uk/id/local-authority/00ML,Housing Services General Fund,BVAHOG,Homelessness,HML,Premises Related,C,Rents Payable,CC,01/08/2012,PAY00495321,830.00,Revenue,Payment to Individual
Brighton & Hove City Council,http://statistics.data.gov.uk/id/local-authority/00ML,Housing Services General Fund,BVAHOG,Homelessness,HML,Premises Related,C,Rents Payable,CC,01/08/2012,PAY00495323,850.00,Revenue,Payment to Individual
Brighton & Hove City Council,http://statistics.data.gov.uk/id/local-authority/00ML,Adult Social Care,BVASOC,S Svcs - Learning Disability,LDY,Supplies and Services,E,Miscellaneous Expenses,EM,01/08/2012,PAY00495343,1150.00,Revenue,The Gables Residential Care Home
Brighton & Hove City Council,http://statistics.data.gov.uk/id/local-authority/00ML,Adult Social Care,BVASOC,S Svcs - Learning Disability,LDY,Third Party Payments,F,Other Establishments,FH,01/08/2012,PAY00495343,7100.00,Revenue,The Gables Residential Care Home
Brighton & Hove City Council,http://statistics.data.gov.uk/id/local-authority/00ML,Environment and Regulatory Ser,BVAERS,Management Services (DEC),MGT,Supplies and Services,E,Equip't Furniture n Materials,EA,01/08/2012,PAY00495348,1242.80,Revenue,Safety Wear & Signs Ltd / Graft Workwear
Brighton & Hove City Council,http://statistics.data.gov.uk/id/local-authority/00ML,Non SERCOP,BVANON,Cap - Transport,4TR,New Construction n Conversion,PB,Level not required,NR5026,01/08/2012,PAY00495349,4790.00,Capital,Intelligent Data Collection Ltd
Brighton & Hove City Council,http://statistics.data.gov.uk/id/local-authority/00ML,Central Services To The Public,BVACEN,Support Services (SSC),PPT,Indirect Employees,B,Training,BM,01/08/2012,PAY00495350,687.00,Revenue,Herts Handling Training Limited
Brighton & Hove City Council,http://statistics.data.gov.uk/id/local-authority/00ML,Adult Social Care,BVASOC,S Svcs - Learning Disability,LDY,Customer n Client Receipts,M,Fees n Charges,MB,01/08/2012,PAY00495353,-60.00,Revenue,Payment to Individual
Brighton & Hove City Council,http://statistics.data.gov.uk/id/local-authority/00ML,Adult Social Care,BVASOC,S Svcs - Learning Disability,LDY,Third Party Payments,F,Other Establishments,FH,01/08/2012,PAY00495353,2231.00,Revenue,Payment to Individual
Brighton & Hove City Council,http://statistics.data.gov.uk/id/local-authority/00ML,Housing Services General Fund,BVAHOG,Hsing Welfare,HGW,Transfer Payments,G,Supporting People,GF,01/08/2012,PAY00495354,8263.92,Revenue,Mears Home Improvement Limited (formerly Anchor)
Brighton & Hove City Council,http://statistics.data.gov.uk/id/local-authority/00ML,Housing Services General Fund,BVAHOG,Homelessness,HML,Premises Related,C,Rents Payable,CC,01/08/2012,PAY00495366,550.00,Revenue,Payment to Individual
Brighton & Hove City Council,http://statistics.data.gov.uk/id/local-authority/00ML,Adult Social Care,BVASOC,S Svcs - Learning Disability,LDY,Transport Related,D,Direct Transport Costs,DA,01/08/2012,PAY00495367,20.00,Revenue,Days Contract Hi
Brighton & Hove City Council,http://statistics.data.gov.uk/id/local-authority/00ML,Children�s Social Care,BVACSC,Child Srvcs - Com & Scl Work,FCW,Transport Related,D,Contract Hire n Operating Leas,DB,01/08/2012,PAY00495367,2653.77,Revenue,Days Contract Hi
Brighton & Hove City Council,http://statistics.data.gov.uk/id/local-authority/00ML,Highways and Transportation,BVAHRT,Public transport,PTR,Supplies and Services,E,Miscellaneous Expenses,EM,01/08/2012,PAY00495368,700.00,Revenue,South Downs National Park Authority
Brighton & Hove City Council,http://statistics.data.gov.uk/id/local-authority/00ML,Housing Services General Fund,BVAHOG,Homelessness,HML,Premises Related,C,Rents Payable,CC,01/08/2012,PAY00495369,775.00,Revenue,Payment to Individual
Brighton & Hove City Council,http://statistics.data.gov.uk/id/local-authority/00ML,Non SERCOP,BVANON,Cap - Education Services,4ED,Plant Machinery n Equipment,PE2,Level not required,NR5025,01/08/2012,PAY00495371,2392.25,Capital,Netcomm Technologies Limited
Brighton & Hove City Council,http://statistics.data.gov.uk/id/local-authority/00ML,Adult Social Care,BVASOC,S Svcs - Mental Health,MHT,Third Party Payments,F,Other Establishments,FH,01/08/2012,PAY00495381,641.76,Revenue,Payment to Individual
Brighton & Hove City Council,http://statistics.data.gov.uk/id/local-authority/00ML,Housing Services General Fund,BVAHOG,Homelessness,HML,Premises Related,C,Rents Payable,CC,01/08/2012,PAY00495386,620.00,Revenue,Payment to Individual
Brighton & Hove City Council,http://statistics.data.gov.uk/id/local-authority/00ML,Children�s Social Care,BVACSC,Child Srvcs - Leaving Care,FAL,Transfer Payments,G,Other Transfer Payments,GD,01/08/2012,PAY00495387,855.00,Revenue,Payment to Individual
Brighton & Hove City Council,http://statistics.data.gov.uk/id/local-authority/00ML,Highways and Transportation,BVAHRT,Parking Services,PRK,Premises Related,C,Repair Maint n Alterations,CA,01/08/2012,PAY00495388,744.32,Revenue,TMP Worldwide
Brighton & Hove City Council,http://statistics.data.gov.uk/id/local-authority/00ML,Central Services To The Public,BVACEN,Support Services (SSC),PPT,Supplies and Services,E,Services,EF,01/08/2012,PAY00495390,4350.00,Revenue,Payment to Individual
Brighton & Hove City Council,http://statistics.data.gov.uk/id/local-authority/00ML,Housing Services General Fund,BVAHOG,Homelessness,HML,Premises Related,C,Rents Payable,CC,01/08/2012,PAY00495393,825.00,Revenue,Payment to Individual
Brighton & Hove City Council,http://statistics.data.gov.uk/id/local-authority/00ML,Adult Social Care,BVASOC,S Svcs - Older People Svcs,PPL,Customer n Client Receipts,M,Fees n Charges,MB,01/08/2012,PAY00495395,-1787.48,Revenue,St.Augustine`s Residential Care Home
Brighton & Hove City Council,http://statistics.data.gov.uk/id/local-authority/00ML,Adult Social Care,BVASOC,S Svcs - Older People Svcs,PPL,Third Party Payments,F,Other Establishments,FH,01/08/2012,PAY00495395,2500.00,Revenue,St.Augustine`s Residential Care Home
Brighton & Hove City Council,http://statistics.data.gov.uk/id/local-authority/00ML,Non SERCOP,BVANON,Cap - Education Services,4ED,New Construction n Conversion,PB,Level not required,NR5026,01/08/2012,PAY00495397,5869.89,Capital,Technology Supplies Ltd
Brighton & Hove City Council,http://statistics.data.gov.uk/id/local-authority/00ML,Adult Social Care,BVASOC,S Svcs - Learning Disability,LDY,Third Party Payments,F,Other Establishments,FH,01/08/2012,PAY00495398,1270.80,Revenue,Payment to Individual
Brighton & Hove City Council,http://statistics.data.gov.uk/id/local-authority/00ML,Adult Social Care,BVASOC,S Svcs - Older People Svcs,PPL,Customer n Client Receipts,M,Fees n Charges,MB,01/08/2012,PAY00495400,-476.80,Revenue,Tower Bridge Homes Care Ltd
Brighton & Hove City Council,http://statistics.data.gov.uk/id/local-authority/00ML,Adult Social Care,BVASOC,S Svcs - Older People Svcs,PPL,Third Party Payments,F,Other Establishments,FH,01/08/2012,PAY00495400,1880.00,Revenue,Tower Bridge Homes Care Ltd
Brighton & Hove City Council,http://statistics.data.gov.uk/id/local-authority/00ML,Housing Services General Fund,BVAHOG,Homelessness,HML,Customer n Client Receipts,M,Fees n Charges,MB,01/08/2012,PAY00495401,82592.00,Revenue,Brighton and Hove Seaside Community Homes Ltd
Brighton & Hove City Council,http://statistics.data.gov.uk/id/local-authority/00ML,Non SERCOP,BVANON,Cap - Mgmnt & Support Services,4PT,New Construction n Conversion,PB,Level not required,NR5026,01/08/2012,PAY00495404,562.50,Capital,Eco Van & Recycling Man
Brighton & Hove City Council,http://statistics.data.gov.uk/id/local-authority/00ML,Environment and Regulatory Ser,BVAERS,Waste Management,WMT,Third Party Payments,F,Private Contractors,FJ,01/08/2012,PAY00495405,1760.00,Revenue,Recresco Limited
Brighton & Hove City Council,http://statistics.data.gov.uk/id/local-authority/00ML,Adult Social Care,BVASOC,Hsing Welfare,HGW,Transport Related,D,Direct Transport Costs,DA,01/08/2012,PAY00495412,111.53,Revenue,Allstar Business Solutions Ltd
Brighton & Hove City Council,http://statistics.data.gov.uk/id/local-authority/00ML,Central Services To The Public,BVACEN,Holding Accounts,PPH,Transport Related,D,Direct Transport Costs,DA,01/08/2012,PAY00495412,21690.33,Revenue,Allstar Business Solutions Ltd
Brighton & Hove City Council,http://statistics.data.gov.uk/id/local-authority/00ML,Central Services To The Public,BVACEN,Support Services (SSC),PPT,Transport Related,D,Direct Transport Costs,DA,01/08/2012,PAY00495412,131.90,Revenue,Allstar Business Solutions Ltd
Brighton & Hove City Council,http://statistics.data.gov.uk/id/local-authority/00ML,Cultural and Related Services,BVACUL,Management Services (DEC),MGT,Transport Related,D,Direct Transport Costs,DA,01/08/2012,PAY00495412,9556.91,Revenue,Allstar Business Solutions Ltd
Brighton & Hove City Council,http://statistics.data.gov.uk/id/local-authority/00ML,Housing Services General Fund,BVAHOG,Homelessness,HML,Premises Related,C,Rents Payable,CC,01/08/2012,PAY00495414,750.00,Revenue,Payment to Individual
Brighton & Hove City Council,http://statistics.data.gov.uk/id/local-authority/00ML,Housing Services General Fund,BVAHOG,Homelessness,HML,Premises Related,C,Rents Payable,CC,01/08/2012,PAY00495422,950.00,Revenue,Payment to Individual
Brighton & Hove City Council,http://statistics.data.gov.uk/id/local-authority/00ML,Environment and Regulatory Ser,BVAERS,Waste Management,WMT,Third Party Payments,F,Private Contractors,FJ,01/08/2012,PAY00495427,1350.00,Revenue,Mid Sussex Wood Recycling Project
Brighton & Hove City Council,http://statistics.data.gov.uk/id/local-authority/00ML,Cultural and Related Services,BVACUL,Management Services (DEC),MGT,Transport Related,D,Direct Transport Costs,DA,01/08/2012,PAY00495430,1786.35,Revenue,Winchester Garden Machinery Ltd
Brighton & Hove City Council,http://statistics.data.gov.uk/id/local-authority/00ML,Children�s Social Care,BVACSC,Child Srvcs - Fostering,FLF,Supplies and Services,E,Services,EF,01/08/2012,PAY00495436,685.00,Revenue,Remark Ltd
Brighton & Hove City Council,http://statistics.data.gov.uk/id/local-authority/00ML,Central Services To The Public,BVACEN,Support Services (SSC),PPT,Supplies and Services,E,Services,EF,01/08/2012,PAY00495444,1900.00,Revenue,Payment to Individual
Brighton & Hove City Council,http://statistics.data.gov.uk/id/local-authority/00ML,Non SERCOP,BVANON,Cap - Sport & Recreation,4RC,New Construction n Conversion,PB,Level not required,NR5026,01/08/2012,PAY00495450,35901.00,Capital,Bendcrete Leisure Ltd
Brighton & Hove City Council,http://statistics.data.gov.uk/id/local-authority/00ML,Adult Social Care,BVASOC,S Svcs - Older People Svcs,PPL,Customer n Client Receipts,M,Fees n Charges,MB,01/08/2012,PAY00495454,-476.80,Revenue,Stanborough Lodge
Brighton & Hove City Council,http://statistics.data.gov.uk/id/local-authority/00ML,Adult Social Care,BVASOC,S Svcs - Older People Svcs,PPL,Third Party Payments,F,Other Establishments,FH,01/08/2012,PAY00495454,1790.00,Revenue,Stanborough Lodge
Brighton & Hove City Council,http://statistics.data.gov.uk/id/local-authority/00ML,Cultural and Related Services,BVACUL,Open Spaces,PEN,Third Party Payments,F,Private Contractors,FJ,01/08/2012,PAY00495456,1418.00,Revenue,Notts Sport (UK) LTD
Brighton & Hove City Council,http://statistics.data.gov.uk/id/local-authority/00ML,Housing Services General Fund,BVAHOG,Homelessness,HML,Premises Related,C,Rents Payable,CC,01/08/2012,PAY00495463,800.00,Revenue,Payment to Individual
Brighton & Hove City Council,http://statistics.data.gov.uk/id/local-authority/00ML,Cultural and Related Services,BVACUL,Recreation and sport,REC,Supplies and Services,E,Miscellaneous Expenses,EM,01/08/2012,PAY00495464,11637.80,Revenue,UK Table Tennis Ltd
Brighton & Hove City Council,http://statistics.data.gov.uk/id/local-authority/00ML,Central Services To The Public,BVACEN,Support Services (SSC),PPT,Supplies and Services,E,Miscellaneous Expenses,EM,01/08/2012,PAY00495475,650.00,Revenue,Micarmo
Brighton & Hove City Council,http://statistics.data.gov.uk/id/local-authority/00ML,Highways and Transportation,BVAHRT,Parking Services,PRK,Customer n Client Receipts,M,Fees n Charges,MB,01/08/2012,PAY00495511,416.67,Revenue,Payment to Individual
Brighton & Hove City Council,http://statistics.data.gov.uk/id/local-authority/00ML,Adult Social Care,BVASOC,S Svcs - Older People Svcs,PPL,Customer n Client Receipts,M,Fees n Charges,MB,02/08/2012,PAY492858,1296.00,Revenue,Payment to Individual
Brighton & Hove City Council,http://statistics.data.gov.uk/id/local-authority/00ML,Adult Social Care,BVASOC,S Svcs - Older People Svcs,PPL,Supplies and Services,E,Miscellaneous Expenses,EM,02/08/2012,PAY492877,1986.42,Revenue,Payment to Individual
Brighton & Hove City Council,http://statistics.data.gov.uk/id/local-authority/00ML,Housing Services General Fund,BVAHOG,Homelessness,HML,Third Party Payments,F,Other Establishments,FH,02/08/2012,PAY492879,650.00,Revenue,Payment to Individual
Brighton & Hove City Council,http://statistics.data.gov.uk/id/local-authority/00ML,Children�s Social Care,BVACSC,Child Srvcs - Leaving Care,FAL,Third Party Payments,F,Other Establishments,FH,02/08/2012,PAY492913,174.29,Revenue,Payment to Individual
Brighton & Hove City Council,http://statistics.data.gov.uk/id/local-authority/00ML,Children�s Social Care,BVACSC,Child Srvcs - Leaving Care,FAL,Transfer Payments,G,Other Transfer Payments,GD,02/08/2012,PAY492913,500.00,Revenue,Payment to Individual
Brighton & Hove City Council,http://statistics.data.gov.uk/id/local-authority/00ML,Children�s Social Care,BVACSC,Child Srvcs - Fostering,FLF,Third Party Payments,F,Other Establishments,FH,02/08/2012,PAY492914,657.00,Revenue,Payment to Individual
Brighton & Hove City Council,http://statistics.data.gov.uk/id/local-authority/00ML,Adult Social Care,BVASOC,S Svcs - Older People Svcs,PPL,Supplies and Services,E,Miscellaneous Expenses,EM,02/08/2012,PAY492918,1338.00,Revenue,Worthing Borough Council
Brighton & Hove City Council,http://statistics.data.gov.uk/id/local-authority/00ML,Cultural and Related Services,BVACUL,Culture & Heritage,CHG,Premises Related,C,Cleaning n Domestic Supps,CH,02/08/2012,PAY492931,8.33,Revenue,Petty Cash
Brighton & Hove City Council,http://statistics.data.gov.uk/id/local-authority/00ML,Cultural and Related Services,BVACUL,Culture & Heritage,CHG,Premises Related,C,Repair Maint n Alterations,CA,02/08/2012,PAY492931,140.43,Revenue,Petty Cash
Brighton & Hove City Council,http://statistics.data.gov.uk/id/local-authority/00ML,Cultural and Related Services,BVACUL,Culture & Heritage,CHG,Supplies and Services,E,Communications n Computing,EH,02/08/2012,PAY492931,22.45,Revenue,Petty Cash
Brighton & Hove City Council,http://statistics.data.gov.uk/id/local-authority/00ML,Cultural and Related Services,BVACUL,Culture & Heritage,CHG,Supplies and Services,E,Expenses,EJ,02/08/2012,PAY492931,70.86,Revenue,Petty Cash
Brighton & Hove City Council,http://statistics.data.gov.uk/id/local-authority/00ML,Cultural and Related Services,BVACUL,Culture & Heritage,CHG,Supplies and Services,E,Miscellaneous Expenses,EM,02/08/2012,PAY492931,440.28,Revenue,Petty Cash
Brighton & Hove City Council,http://statistics.data.gov.uk/id/local-authority/00ML,Cultural and Related Services,BVACUL,Culture & Heritage,CHG,Transport Related,D,Other Transport Costs,DG,02/08/2012,PAY492931,5.00,Revenue,Petty Cash
Brighton & Hove City Council,http://statistics.data.gov.uk/id/local-authority/00ML,Cultural and Related Services,BVACUL,Culture & Heritage,CHG,Transport Related,D,Public Transport,DD,02/08/2012,PAY492931,30.00,Revenue,Petty Cash
Brighton & Hove City Council,http://statistics.data.gov.uk/id/local-authority/00ML,Non SERCOP,BVANON,Trusts,TRT,Supplies and Services,E,Grants n Subscriptions,EK,02/08/2012,PAY492932,519.00,Revenue,Vokins Ltd
Brighton & Hove City Council,http://statistics.data.gov.uk/id/local-authority/00ML,Central Services To The Public,BVACEN,Support Services (SSC),PPT,Supplies and Services,E,Services,EF,02/08/2012,PAY492937,9555.00,Revenue,Payment to Individual
Brighton & Hove City Council,http://statistics.data.gov.uk/id/local-authority/00ML,Central Services To The Public,BVACEN,Support Services (SSC),PPT,Supplies and Services,E,Services,EF,02/08/2012,PAY492938,12410.00,Revenue,Payment to Individual
Brighton & Hove City Council,http://statistics.data.gov.uk/id/local-authority/00ML,Central Services To The Public,BVACEN,Support Services (SSC),PPT,Supplies and Services,E,Services,EF,02/08/2012,PAY492939,12985.00,Revenue,Payment to Individual
Brighton & Hove City Council,http://statistics.data.gov.uk/id/local-authority/00ML,Central Services To The Public,BVACEN,Support Services (SSC),PPT,Supplies and Services,E,Services,EF,02/08/2012,PAY492940,6834.00,Revenue,Payment to Individual
Brighton & Hove City Council,http://statistics.data.gov.uk/id/local-authority/00ML,Central Services To The Public,BVACEN,Support Services (SSC),PPT,Supplies and Services,E,Services,EF,02/08/2012,PAY492941,8536.00,Revenue,Payment to Individual
Brighton & Hove City Council,http://statistics.data.gov.uk/id/local-authority/00ML,Adult Social Care,BVASOC,S Svcs - Older People Svcs,PPL,Customer n Client Receipts,M,Fees n Charges,MB,03/08/2012,PAY00495597,-2265.48,Revenue,RNIB
Brighton & Hove City Council,http://statistics.data.gov.uk/id/local-authority/00ML,Adult Social Care,BVASOC,S Svcs - Older People Svcs,PPL,Third Party Payments,F,Other Establishments,FH,03/08/2012,PAY00495597,6736.00,Revenue,RNIB
Brighton & Hove City Council,http://statistics.data.gov.uk/id/local-authority/00ML,Cultural and Related Services,BVACUL,Culture & Heritage,CHG,Premises Related,C,Repair Maint n Alterations,CA,03/08/2012,PAY00495598,2193.00,Revenue,Opus Stained Glass
Brighton & Hove City Council,http://statistics.data.gov.uk/id/local-authority/00ML,Cultural and Related Services,BVACUL,Culture & Heritage,CHG,Supplies and Services,E,Equip't Furniture n Materials,EA,03/08/2012,PAY00495598,389.00,Revenue,Opus Stained Glass
Brighton & Hove City Council,http://statistics.data.gov.uk/id/local-authority/00ML,Adult Social Care,BVASOC,S Svcs - Older People Svcs,PPL,Customer n Client Receipts,M,Fees n Charges,MB,03/08/2012,PAY00495599,-1430.40,Revenue,K Ramadas/R Janmayur Care Home
Brighton & Hove City Council,http://statistics.data.gov.uk/id/local-authority/00ML,Adult Social Care,BVASOC,S Svcs - Older People Svcs,PPL,Third Party Payments,F,Other Establishments,FH,03/08/2012,PAY00495599,4860.00,Revenue,K Ramadas/R Janmayur Care Home
Brighton & Hove City Council,http://statistics.data.gov.uk/id/local-authority/00ML,Adult Social Care,BVASOC,S Svcs - Mental Health,MHT,Customer n Client Receipts,M,Fees n Charges,MB,03/08/2012,PAY00495600,-953.60,Revenue,Ennis House
Brighton & Hove City Council,http://statistics.data.gov.uk/id/local-authority/00ML,Adult Social Care,BVASOC,S Svcs - Mental Health,MHT,Third Party Payments,F,Other Establishments,FH,03/08/2012,PAY00495600,3375.16,Revenue,Ennis House
Brighton & Hove City Council,http://statistics.data.gov.uk/id/local-authority/00ML,Adult Social Care,BVASOC,S Svcs - Older People Svcs,PPL,Third Party Payments,F,Other Establishments,FH,03/08/2012,PAY00495600,4147.16,Revenue,Ennis House
Brighton & Hove City Council,http://statistics.data.gov.uk/id/local-authority/00ML,Adult Social Care,BVASOC,S Svcs - Learning Disability,LDY,Customer n Client Receipts,M,Fees n Charges,MB,03/08/2012,PAY00495601,-622.80,Revenue,Iver House Ltd
Brighton & Hove City Council,http://statistics.data.gov.uk/id/local-authority/00ML,Adult Social Care,BVASOC,S Svcs - Learning Disability,LDY,Third Party Payments,F,Other Establishments,FH,03/08/2012,PAY00495601,9946.00,Revenue,Iver House Ltd
Brighton & Hove City Council,http://statistics.data.gov.uk/id/local-authority/00ML,Housing Services General Fund,BVAHOG,Homelessness,HML,Premises Related,C,Rents Payable,CC,03/08/2012,PAY00495602,780.00,Revenue,Lincoln Estates Ltd
Brighton & Hove City Council,http://statistics.data.gov.uk/id/local-authority/00ML,Adult Social Care,BVASOC,S Svcs - Older People Svcs,PPL,Customer n Client Receipts,M,Fees n Charges,MB,03/08/2012,PAY00495603,-2485.38,Revenue,Camelot Nursing Home
Brighton & Hove City Council,http://statistics.data.gov.uk/id/local-authority/00ML,Adult Social Care,BVASOC,S Svcs - Older People Svcs,PPL,Third Party Payments,F,Other Establishments,FH,03/08/2012,PAY00495603,6652.80,Revenue,Camelot Nursing Home
Brighton & Hove City Council,http://statistics.data.gov.uk/id/local-authority/00ML,Children�s Social Care,BVACSC,Child Srvcs - Other Fam Supp,FFX,Transfer Payments,G,Other Transfer Payments,GD,03/08/2012,PAY00495604,1750.00,Revenue,Greenways Guest House
Brighton & Hove City Council,http://statistics.data.gov.uk/id/local-authority/00ML,Housing Services General Fund,BVAHOG,Homelessness,HML,Premises Related,C,Rents Payable,CC,03/08/2012,PAY00495607,850.00,Revenue,Edmonds Letting
Brighton & Hove City Council,http://statistics.data.gov.uk/id/local-authority/00ML,Children�s Social Care,BVACSC,Child Srvcs - Fostering,FLF,Third Party Payments,F,Other Establishments,FH,03/08/2012,PAY00495611,590.56,Revenue,Payment to Individual
Brighton & Hove City Council,http://statistics.data.gov.uk/id/local-authority/00ML,Children�s Social Care,BVACSC,Child Srvcs - Fostering,FLF,Third Party Payments,F,Other Establishments,FH,03/08/2012,PAY00495614,779.00,Revenue,Payment to Individual
Brighton & Hove City Council,http://statistics.data.gov.uk/id/local-authority/00ML,Adult Social Care,BVASOC,S Svcs - Older People Svcs,PPL,Customer n Client Receipts,M,Fees n Charges,MB,03/08/2012,PAY00495618,-1753.60,Revenue,Brighton & Hove Bethesda Home
Brighton & Hove City Council,http://statistics.data.gov.uk/id/local-authority/00ML,Adult Social Care,BVASOC,S Svcs - Older People Svcs,PPL,Third Party Payments,F,Other Establishments,FH,03/08/2012,PAY00495618,4968.00,Revenue,Brighton & Hove Bethesda Home
Brighton & Hove City Council,http://statistics.data.gov.uk/id/local-authority/00ML,Adult Social Care,BVASOC,S Svcs - Older People Svcs,PPL,Customer n Client Receipts,M,Fees n Charges,MB,03/08/2012,PAY00495619,-3330.86,Revenue,Charlesworth Rest Home
Brighton & Hove City Council,http://statistics.data.gov.uk/id/local-authority/00ML,Adult Social Care,BVASOC,S Svcs - Older People Svcs,PPL,Third Party Payments,F,Other Establishments,FH,03/08/2012,PAY00495619,11801.43,Revenue,Charlesworth Rest Home
Brighton & Hove City Council,http://statistics.data.gov.uk/id/local-authority/00ML,Adult Social Care,BVASOC,S Svcs - Older People Svcs,PPL,Customer n Client Receipts,M,Fees n Charges,MB,03/08/2012,PAY00495620,-2025.92,Revenue,Payment to Individual
Brighton & Hove City Council,http://statistics.data.gov.uk/id/local-authority/00ML,Adult Social Care,BVASOC,S Svcs - Older People Svcs,PPL,Third Party Payments,F,Other Establishments,FH,03/08/2012,PAY00495620,6808.00,Revenue,Payment to Individual
Brighton & Hove City Council,http://statistics.data.gov.uk/id/local-authority/00ML,Adult Social Care,BVASOC,S Svcs - Older People Svcs,PPL,Customer n Client Receipts,M,Fees n Charges,MB,03/08/2012,PAY00495621,-8335.93,Revenue,Payment to Individual
Brighton & Hove City Council,http://statistics.data.gov.uk/id/local-authority/00ML,Adult Social Care,BVASOC,S Svcs - Older People Svcs,PPL,Third Party Payments,F,Other Establishments,FH,03/08/2012,PAY00495621,24184.00,Revenue,Payment to Individual
Brighton & Hove City Council,http://statistics.data.gov.uk/id/local-authority/00ML,Adult Social Care,BVASOC,S Svcs - Older People Svcs,PPL,Customer n Client Receipts,M,Fees n Charges,MB,03/08/2012,PAY00495622,-2952.04,Revenue,Grace & Compassion Benedictines
Brighton & Hove City Council,http://statistics.data.gov.uk/id/local-authority/00ML,Adult Social Care,BVASOC,S Svcs - Older People Svcs,PPL,Third Party Payments,F,Other Establishments,FH,03/08/2012,PAY00495622,8808.00,Revenue,Grace & Compassion Benedictines
Brighton & Hove City Council,http://statistics.data.gov.uk/id/local-authority/00ML,Adult Social Care,BVASOC,S Svcs - Older People Svcs,PPL,Customer n Client Receipts,M,Fees n Charges,MB,03/08/2012,PAY00495623,-957.92,Revenue,Greenways Rest Home
Brighton & Hove City Council,http://statistics.data.gov.uk/id/local-authority/00ML,Adult Social Care,BVASOC,S Svcs - Older People Svcs,PPL,Third Party Payments,F,Other Establishments,FH,03/08/2012,PAY00495623,3057.00,Revenue,Greenways Rest Home
Brighton & Hove City Council,http://statistics.data.gov.uk/id/local-authority/00ML,Adult Social Care,BVASOC,S Svcs - Learning Disability,LDY,Customer n Client Receipts,M,Fees n Charges,MB,03/08/2012,PAY00495624,-543.53,Revenue,Oak House RH
Brighton & Hove City Council,http://statistics.data.gov.uk/id/local-authority/00ML,Adult Social Care,BVASOC,S Svcs - Learning Disability,LDY,Third Party Payments,F,Other Establishments,FH,03/08/2012,PAY00495624,3233.55,Revenue,Oak House RH
Brighton & Hove City Council,http://statistics.data.gov.uk/id/local-authority/00ML,Adult Social Care,BVASOC,S Svcs - Older People Svcs,PPL,Customer n Client Receipts,M,Fees n Charges,MB,03/08/2012,PAY00495624,-1089.40,Revenue,Oak House RH
Brighton & Hove City Council,http://statistics.data.gov.uk/id/local-authority/00ML,Adult Social Care,BVASOC,S Svcs - Older People Svcs,PPL,Third Party Payments,F,Other Establishments,FH,03/08/2012,PAY00495624,5644.00,Revenue,Oak House RH
Brighton & Hove City Council,http://statistics.data.gov.uk/id/local-authority/00ML,Adult Social Care,BVASOC,S Svcs - Older People Svcs,PPL,Customer n Client Receipts,M,Fees n Charges,MB,03/08/2012,PAY00495626,-1022.80,Revenue,Holy Cross Care Home
Brighton & Hove City Council,http://statistics.data.gov.uk/id/local-authority/00ML,Adult Social Care,BVASOC,S Svcs - Older People Svcs,PPL,Third Party Payments,F,Other Establishments,FH,03/08/2012,PAY00495626,3458.24,Revenue,Holy Cross Care Home
Brighton & Hove City Council,http://statistics.data.gov.uk/id/local-authority/00ML,Education Services,BVAEDU,Ed - Ed Other - LA Attrib Sch,ELA,Transport Related,D,Other Transport Costs,DG,03/08/2012,PAY00495628,4494.00,Revenue,Minibus Travel Services Ltd
Brighton & Hove City Council,http://statistics.data.gov.uk/id/local-authority/00ML,Adult Social Care,BVASOC,S Svcs - Learning Disability,LDY,Customer n Client Receipts,M,Fees n Charges,MB,03/08/2012,PAY00495629,-22.00,Revenue,Mears Care
Brighton & Hove City Council,http://statistics.data.gov.uk/id/local-authority/00ML,Adult Social Care,BVASOC,S Svcs - Learning Disability,LDY,Third Party Payments,F,Other Establishments,FH,03/08/2012,PAY00495629,45.38,Revenue,Mears Care
Brighton & Hove City Council,http://statistics.data.gov.uk/id/local-authority/00ML,Adult Social Care,BVASOC,S Svcs - Mental Health,MHT,Third Party Payments,F,Other Establishments,FH,03/08/2012,PAY00495629,54.37,Revenue,Mears Care
Brighton & Hove City Council,http://statistics.data.gov.uk/id/local-authority/00ML,Adult Social Care,BVASOC,S Svcs - Older People Svcs,PPL,Customer n Client Receipts,M,Fees n Charges,MB,03/08/2012,PAY00495629,-258.00,Revenue,Mears Care
Brighton & Hove City Council,http://statistics.data.gov.uk/id/local-authority/00ML,Adult Social Care,BVASOC,S Svcs - Older People Svcs,PPL,Third Party Payments,F,Other Establishments,FH,03/08/2012,PAY00495629,1496.01,Revenue,Mears Care
Brighton & Hove City Council,http://statistics.data.gov.uk/id/local-authority/00ML,Adult Social Care,BVASOC,S Svcs - Physical Disability,PDY,Third Party Payments,F,Other Establishments,FH,03/08/2012,PAY00495629,294.51,Revenue,Mears Care
Brighton & Hove City Council,http://statistics.data.gov.uk/id/local-authority/00ML,Adult Social Care,BVASOC,S Svcs - Learning Disability,LDY,Customer n Client Receipts,M,Fees n Charges,MB,03/08/2012,PAY00495630,-1114.40,Revenue,Outlook Foundation
Brighton & Hove City Council,http://statistics.data.gov.uk/id/local-authority/00ML,Adult Social Care,BVASOC,S Svcs - Learning Disability,LDY,Third Party Payments,F,Other Establishments,FH,03/08/2012,PAY00495630,14048.96,Revenue,Outlook Foundation
Brighton & Hove City Council,http://statistics.data.gov.uk/id/local-authority/00ML,Adult Social Care,BVASOC,S Svcs - Physical Disability,PDY,Customer n Client Receipts,M,Fees n Charges,MB,03/08/2012,PAY00495631,-1099.60,Revenue,The Chaseley Trust
Brighton & Hove City Council,http://statistics.data.gov.uk/id/local-authority/00ML,Adult Social Care,BVASOC,S Svcs - Physical Disability,PDY,Third Party Payments,F,Other Establishments,FH,03/08/2012,PAY00495631,15660.00,Revenue,The Chaseley Trust
Brighton & Hove City Council,http://statistics.data.gov.uk/id/local-authority/00ML,Adult Social Care,BVASOC,S Svcs - Older People Svcs,PPL,Customer n Client Receipts,M,Fees n Charges,MB,03/08/2012,PAY00495632,-6528.56,Revenue,Jewish Care
Brighton & Hove City Council,http://statistics.data.gov.uk/id/local-authority/00ML,Adult Social Care,BVASOC,S Svcs - Older People Svcs,PPL,Third Party Payments,F,Other Establishments,FH,03/08/2012,PAY00495632,26618.40,Revenue,Jewish Care
Brighton & Hove City Council,http://statistics.data.gov.uk/id/local-authority/00ML,Adult Social Care,BVASOC,S Svcs - Older People Svcs,PPL,Premises Related,C,Repair Maint n Alterations,CA,03/08/2012,PAY00495634,210.00,Revenue,The Imprest Holder
Brighton & Hove City Council,http://statistics.data.gov.uk/id/local-authority/00ML,Adult Social Care,BVASOC,S Svcs - Older People Svcs,PPL,Supplies and Services,E,Catering,EB,03/08/2012,PAY00495634,493.30,Revenue,The Imprest Holder
